Workbook

Sheet Stock
A1: Canvas Size | B1: X | C1: 1920 | D1: Y | E1: 1058 | G1: Min RPM | H1: 2500 | I1: X | J1: 94
A2: Overlay Size | B2: X | C2: 1920 | D2: Y | E2: 1058 | G2: Max RPM | H2: 8100 | I2: X | J2: 1818
A3: Overlay Start | B3: X | C3: 0 | D3: Y | E3: 0 | G3: Min-Y | H3: 130 | I3: Y | J3: 746
G4: Max-Y | H4: 530 | I4: Y | J4: 32
A5: X | B5: Y | C5: X' | D5: Y' | E5: RPM | F5: NM | G5: TQ | H5: HP
A6: 94 | B6: 449 | C6: =A6+$C$3 -> 94 | D6: =($E$1-1)-(B6+$E$3) -> 608 | E6: =((C6-$J$1) *($H$2-$H$1)/($J$2-$J$1))+$H$1 -> 2500 | F6: =((D6-($E$1-$J$3))*($H$4-$H$3)/($J$3-$J$4))+$H$3 -> 295.8263305 | G6: =F6*0.737562149277 -> 218.1903042 | H6: =(G6*E6)/5252 -> 103.8605789
A7: 94 | B7: 450 | C7: =A7+$C$3 -> 94 | D7: =($E$1-1)-(B7+$E$3) -> 607 | E7: =((C7-$J$1) *($H$2-$H$1)/($J$2-$J$1))+$H$1 -> 2500 | F7: =((D7-($E$1-$J$3))*($H$4-$H$3)/($J$3-$J$4))+$H$3 -> 295.2661064 | G7: =F7*0.737562149277 -> 217.7771041 | H7: =(G7*E7)/5252 -> 103.6638919
A8: 95 | B8: 448 | C8: =A8+$C$3 -> 95 | D8: =($E$1-1)-(B8+$E$3) -> 609 | E8: =((C8-$J$1) *($H$2-$H$1)/($J$2-$J$1))+$H$1 -> 2503.24826 | F8: =((D8-($E$1-$J$3))*($H$4-$H$3)/($J$3-$J$4))+$H$3 -> 296.3865546 | G8: =F8*0.737562149277 -> 218.6035042 | H8: =(G8*E8)/5252 -> 104.1924679
A9: 95 | B9: 449 | C9: =A9+$C$3 -> 95 | D9: =($E$1-1)-(B9+$E$3) -> 608 | E9: =((C9-$J$1) *($H$2-$H$1)/($J$2-$J$1))+$H$1 -> 2503.24826 | F9: =((D9-($E$1-$J$3))*($H$4-$H$3)/($J$3-$J$4))+$H$3 -> 295.8263305 | G9: =F9*0.737562149277 -> 218.1903042 | H9: =(G9*E9)/5252 -> 103.9955254
A10: 95 | B10: 450 | C10: =A10+$C$3 -> 95 | D10: =($E$1-1)-(B10+$E$3) -> 607 | E10: =((C10-$J$1) *($H$2-$H$1)/($J$2-$J$1))+$H$1 -> 2503.24826 | F10: =((D10-($E$1-$J$3))*($H$4-$H$3)/($J$3-$J$4))+$H$3 -> 295.2661064 | G10: =F10*0.737562149277 -> 217.7771041 | H10: =(G10*E10)/5252 -> 103.7985828
A11: 95 | B11: 451 | C11: =A11+$C$3 -> 95 | D11: =($E$1-1)-(B11+$E$3) -> 606 | E11: =((C11-$J$1) *($H$2-$H$1)/($J$2-$J$1))+$H$1 -> 2503.24826 | F11: =((D11-($E$1-$J$3))*($H$4-$H$3)/($J$3-$J$4))+$H$3 -> 294.7058824 | G11: =F11*0.737562149277 -> 217.363904 | H11: =(G11*E11)/5252 -> 103.6016402
A12: 96 | B12: 449 | C12: =A12+$C$3 -> 96 | D12: =($E$1-1)-(B12+$E$3) -> 608 | E12: =((C12-$J$1) *($H$2-$H$1)/($J$2-$J$1))+$H$1 -> 2506.49652 | F12: =((D12-($E$1-$J$3))*($H$4-$H$3)/($J$3-$J$4))+$H$3 -> 295.8263305 | G12: =F12*0.737562149277 -> 218.1903042 | H12: =(G12*E12)/5252 -> 104.1304718
A13: 96 | B13: 450 | C13: =A13+$C$3 -> 96 | D13: =($E$1-1)-(B13+$E$3) -> 607 | E13: =((C13-$J$1) *($H$2-$H$1)/($J$2-$J$1))+$H$1 -> 2506.49652 | F13: =((D13-($E$1-$J$3))*($H$4-$H$3)/($J$3-$J$4))+$H$3 -> 295.2661064 | G13: =F13*0.737562149277 -> 217.7771041 | H13: =(G13*E13)/5252 -> 103.9332737
A14: 96 | B14: 451 | C14: =A14+$C$3 -> 96 | D14: =($E$1-1)-(B14+$E$3) -> 606 | E14: =((C14-$J$1) *($H$2-$H$1)/($J$2-$J$1))+$H$1 -> 2506.49652 | F14: =((D14-($E$1-$J$3))*($H$4-$H$3)/($J$3-$J$4))+$H$3 -> 294.7058824 | G14: =F14*0.737562149277 -> 217.363904 | H14: =(G14*E14)/5252 -> 103.7360756
A15: 97 | B15: 450 | C15: =A15+$C$3 -> 97 | D15: =($E$1-1)-(B15+$E$3) -> 607 | E15: =((C15-$J$1) *($H$2-$H$1)/($J$2-$J$1))+$H$1 -> 2509.74478 | F15: =((D15-($E$1-$J$3))*($H$4-$H$3)/($J$3-$J$4))+$H$3 -> 295.2661064 | G15: =F15*0.737562149277 -> 217.7771041 | H15: =(G15*E15)/5252 -> 104.0679646
A16: 97 | B16: 451 | C16: =A16+$C$3 -> 97 | D16: =($E$1-1)-(B16+$E$3) -> 606 | E16: =((C16-$J$1) *($H$2-$H$1)/($J$2-$J$1))+$H$1 -> 2509.74478 | F16: =((D16-($E$1-$J$3))*($H$4-$H$3)/($J$3-$J$4))+$H$3 -> 294.7058824 | G16: =F16*0.737562149277 -> 217.363904 | H16: =(G16*E16)/5252 -> 103.8705109
A17: 98 | B17: 450 | C17: =A17+$C$3 -> 98 | D17: =($E$1-1)-(B17+$E$3) -> 607 | E17: =((C17-$J$1) *($H$2-$H$1)/($J$2-$J$1))+$H$1 -> 2512.993039 | F17: =((D17-($E$1-$J$3))*($H$4-$H$3)/($J$3-$J$4))+$H$3 -> 295.2661064 | G17: =F17*0.737562149277 -> 217.7771041 | H17: =(G17*E17)/5252 -> 104.2026555
A18: 98 | B18: 451 | C18: =A18+$C$3 -> 98 | D18: =($E$1-1)-(B18+$E$3) -> 606 | E18: =((C18-$J$1) *($H$2-$H$1)/($J$2-$J$1))+$H$1 -> 2512.993039 | F18: =((D18-($E$1-$J$3))*($H$4-$H$3)/($J$3-$J$4))+$H$3 -> 294.7058824 | G18: =F18*0.737562149277 -> 217.363904 | H18: =(G18*E18)/5252 -> 104.0049463
A19: 99 | B19: 450 | C19: =A19+$C$3 -> 99 | D19: =($E$1-1)-(B19+$E$3) -> 607 | E19: =((C19-$J$1) *($H$2-$H$1)/($J$2-$J$1))+$H$1 -> 2516.241299 | F19: =((D19-($E$1-$J$3))*($H$4-$H$3)/($J$3-$J$4))+$H$3 -> 295.2661064 | G19: =F19*0.737562149277 -> 217.7771041 | H19: =(G19*E19)/5252 -> 104.3373464
A20: 99 | B20: 451 | C20: =A20+$C$3 -> 99 | D20: =($E$1-1)-(B20+$E$3) -> 606 | E20: =((C20-$J$1) *($H$2-$H$1)/($J$2-$J$1))+$H$1 -> 2516.241299 | F20: =((D20-($E$1-$J$3))*($H$4-$H$3)/($J$3-$J$4))+$H$3 -> 294.7058824 | G20: =F20*0.737562149277 -> 217.363904 | H20: =(G20*E20)/5252 -> 104.1393816
A21: 100 | B21: 450 | C21: =A21+$C$3 -> 100 | D21: =($E$1-1)-(B21+$E$3) -> 607 | E21: =((C21-$J$1) *($H$2-$H$1)/($J$2-$J$1))+$H$1 -> 2519.489559 | F21: =((D21-($E$1-$J$3))*($H$4-$H$3)/($J$3-$J$4))+$H$3 -> 295.2661064 | G21: =F21*0.737562149277 -> 217.7771041 | H21: =(G21*E21)/5252 -> 104.4720373
A22: 100 | B22: 451 | C22: =A22+$C$3 -> 100 | D22: =($E$1-1)-(B22+$E$3) -> 606 | E22: =((C22-$J$1) *($H$2-$H$1)/($J$2-$J$1))+$H$1 -> 2519.489559 | F22: =((D22-($E$1-$J$3))*($H$4-$H$3)/($J$3-$J$4))+$H$3 -> 294.7058824 | G22: =F22*0.737562149277 -> 217.363904 | H22: =(G22*E22)/5252 -> 104.273817
A23: 100 | B23: 452 | C23: =A23+$C$3 -> 100 | D23: =($E$1-1)-(B23+$E$3) -> 605 | E23: =((C23-$J$1) *($H$2-$H$1)/($J$2-$J$1))+$H$1 -> 2519.489559 | F23: =((D23-($E$1-$J$3))*($H$4-$H$3)/($J$3-$J$4))+$H$3 -> 294.1456583 | G23: =F23*0.737562149277 -> 216.9507039 | H23: =(G23*E23)/5252 -> 104.0755966
A24: 100 | B24: 453 | C24: =A24+$C$3 -> 100 | D24: =($E$1-1)-(B24+$E$3) -> 604 | E24: =((C24-$J$1) *($H$2-$H$1)/($J$2-$J$1))+$H$1 -> 2519.489559 | F24: =((D24-($E$1-$J$3))*($H$4-$H$3)/($J$3-$J$4))+$H$3 -> 293.5854342 | G24: =F24*0.737562149277 -> 216.5375038 | H24: =(G24*E24)/5252 -> 103.8773762
A25: 101 | B25: 450 | C25: =A25+$C$3 -> 101 | D25: =($E$1-1)-(B25+$E$3) -> 607 | E25: =((C25-$J$1) *($H$2-$H$1)/($J$2-$J$1))+$H$1 -> 2522.737819 | F25: =((D25-($E$1-$J$3))*($H$4-$H$3)/($J$3-$J$4))+$H$3 -> 295.2661064 | G25: =F25*0.737562149277 -> 217.7771041 | H25: =(G25*E25)/5252 -> 104.6067282
A26: 101 | B26: 451 | C26: =A26+$C$3 -> 101 | D26: =($E$1-1)-(B26+$E$3) -> 606 | E26: =((C26-$J$1) *($H$2-$H$1)/($J$2-$J$1))+$H$1 -> 2522.737819 | F26: =((D26-($E$1-$J$3))*($H$4-$H$3)/($J$3-$J$4))+$H$3 -> 294.7058824 | G26: =F26*0.737562149277 -> 217.363904 | H26: =(G26*E26)/5252 -> 104.4082523
A27: 101 | B27: 452 | C27: =A27+$C$3 -> 101 | D27: =($E$1-1)-(B27+$E$3) -> 605 | E27: =((C27-$J$1) *($H$2-$H$1)/($J$2-$J$1))+$H$1 -> 2522.737819 | F27: =((D27-($E$1-$J$3))*($H$4-$H$3)/($J$3-$J$4))+$H$3 -> 294.1456583 | G27: =F27*0.737562149277 -> 216.9507039 | H27: =(G27*E27)/5252 -> 104.2097764
A28: 101 | B28: 453 | C28: =A28+$C$3 -> 101 | D28: =($E$1-1)-(B28+$E$3) -> 604 | E28: =((C28-$J$1) *($H$2-$H$1)/($J$2-$J$1))+$H$1 -> 2522.737819 | F28: =((D28-($E$1-$J$3))*($H$4-$H$3)/($J$3-$J$4))+$H$3 -> 293.5854342 | G28: =F28*0.737562149277 -> 216.5375038 | H28: =(G28*E28)/5252 -> 104.0113005
A29: 102 | B29: 450 | C29: =A29+$C$3 -> 102 | D29: =($E$1-1)-(B29+$E$3) -> 607 | E29: =((C29-$J$1) *($H$2-$H$1)/($J$2-$J$1))+$H$1 -> 2525.986079 | F29: =((D29-($E$1-$J$3))*($H$4-$H$3)/($J$3-$J$4))+$H$3 -> 295.2661064 | G29: =F29*0.737562149277 -> 217.7771041 | H29: =(G29*E29)/5252 -> 104.7414191
A30: 102 | B30: 451 | C30: =A30+$C$3 -> 102 | D30: =($E$1-1)-(B30+$E$3) -> 606 | E30: =((C30-$J$1) *($H$2-$H$1)/($J$2-$J$1))+$H$1 -> 2525.986079 | F30: =((D30-($E$1-$J$3))*($H$4-$H$3)/($J$3-$J$4))+$H$3 -> 294.7058824 | G30: =F30*0.737562149277 -> 217.363904 | H30: =(G30*E30)/5252 -> 104.5426877
A31: 102 | B31: 452 | C31: =A31+$C$3 -> 102 | D31: =($E$1-1)-(B31+$E$3) -> 605 | E31: =((C31-$J$1) *($H$2-$H$1)/($J$2-$J$1))+$H$1 -> 2525.986079 | F31: =((D31-($E$1-$J$3))*($H$4-$H$3)/($J$3-$J$4))+$H$3 -> 294.1456583 | G31: =F31*0.737562149277 -> 216.9507039 | H31: =(G31*E31)/5252 -> 104.3439562
A32: 102 | B32: 453 | C32: =A32+$C$3 -> 102 | D32: =($E$1-1)-(B32+$E$3) -> 604 | E32: =((C32-$J$1) *($H$2-$H$1)/($J$2-$J$1))+$H$1 -> 2525.986079 | F32: =((D32-($E$1-$J$3))*($H$4-$H$3)/($J$3-$J$4))+$H$3 -> 293.5854342 | G32: =F32*0.737562149277 -> 216.5375038 | H32: =(G32*E32)/5252 -> 104.1452247
A33: 103 | B33: 450 | C33: =A33+$C$3 -> 103 | D33: =($E$1-1)-(B33+$E$3) -> 607 | E33: =((C33-$J$1) *($H$2-$H$1)/($J$2-$J$1))+$H$1 -> 2529.234339 | F33: =((D33-($E$1-$J$3))*($H$4-$H$3)/($J$3-$J$4))+$H$3 -> 295.2661064 | G33: =F33*0.737562149277 -> 217.7771041 | H33: =(G33*E33)/5252 -> 104.87611
A34: 103 | B34: 451 | C34: =A34+$C$3 -> 103 | D34: =($E$1-1)-(B34+$E$3) -> 606 | E34: =((C34-$J$1) *($H$2-$H$1)/($J$2-$J$1))+$H$1 -> 2529.234339 | F34: =((D34-($E$1-$J$3))*($H$4-$H$3)/($J$3-$J$4))+$H$3 -> 294.7058824 | G34: =F34*0.737562149277 -> 217.363904 | H34: =(G34*E34)/5252 -> 104.677123
A35: 103 | B35: 452 | C35: =A35+$C$3 -> 103 | D35: =($E$1-1)-(B35+$E$3) -> 605 | E35: =((C35-$J$1) *($H$2-$H$1)/($J$2-$J$1))+$H$1 -> 2529.234339 | F35: =((D35-($E$1-$J$3))*($H$4-$H$3)/($J$3-$J$4))+$H$3 -> 294.1456583 | G35: =F35*0.737562149277 -> 216.9507039 | H35: =(G35*E35)/5252 -> 104.478136
A36: 103 | B36: 453 | C36: =A36+$C$3 -> 103 | D36: =($E$1-1)-(B36+$E$3) -> 604 | E36: =((C36-$J$1) *($H$2-$H$1)/($J$2-$J$1))+$H$1 -> 2529.234339 | F36: =((D36-($E$1-$J$3))*($H$4-$H$3)/($J$3-$J$4))+$H$3 -> 293.5854342 | G36: =F36*0.737562149277 -> 216.5375038 | H36: =(G36*E36)/5252 -> 104.279149
A37: 104 | B37: 450 | C37: =A37+$C$3 -> 104 | D37: =($E$1-1)-(B37+$E$3) -> 607 | E37: =((C37-$J$1) *($H$2-$H$1)/($J$2-$J$1))+$H$1 -> 2532.482599 | F37: =((D37-($E$1-$J$3))*($H$4-$H$3)/($J$3-$J$4))+$H$3 -> 295.2661064 | G37: =F37*0.737562149277 -> 217.7771041 | H37: =(G37*E37)/5252 -> 105.0108009
A38: 104 | B38: 451 | C38: =A38+$C$3 -> 104 | D38: =($E$1-1)-(B38+$E$3) -> 606 | E38: =((C38-$J$1) *($H$2-$H$1)/($J$2-$J$1))+$H$1 -> 2532.482599 | F38: =((D38-($E$1-$J$3))*($H$4-$H$3)/($J$3-$J$4))+$H$3 -> 294.7058824 | G38: =F38*0.737562149277 -> 217.363904 | H38: =(G38*E38)/5252 -> 104.8115583
A39: 104 | B39: 452 | C39: =A39+$C$3 -> 104 | D39: =($E$1-1)-(B39+$E$3) -> 605 | E39: =((C39-$J$1) *($H$2-$H$1)/($J$2-$J$1))+$H$1 -> 2532.482599 | F39: =((D39-($E$1-$J$3))*($H$4-$H$3)/($J$3-$J$4))+$H$3 -> 294.1456583 | G39: =F39*0.737562149277 -> 216.9507039 | H39: =(G39*E39)/5252 -> 104.6123158
A40: 104 | B40: 453 | C40: =A40+$C$3 -> 104 | D40: =($E$1-1)-(B40+$E$3) -> 604 | E40: =((C40-$J$1) *($H$2-$H$1)/($J$2-$J$1))+$H$1 -> 2532.482599 | F40: =((D40-($E$1-$J$3))*($H$4-$H$3)/($J$3-$J$4))+$H$3 -> 293.5854342 | G40: =F40*0.737562149277 -> 216.5375038 | H40: =(G40*E40)/5252 -> 104.4130732
A41: 105 | B41: 450 | C41: =A41+$C$3 -> 105 | D41: =($E$1-1)-(B41+$E$3) -> 607 | E41: =((C41-$J$1) *($H$2-$H$1)/($J$2-$J$1))+$H$1 -> 2535.730858 | F41: =((D41-($E$1-$J$3))*($H$4-$H$3)/($J$3-$J$4))+$H$3 -> 295.2661064 | G41: =F41*0.737562149277 -> 217.7771041 | H41: =(G41*E41)/5252 -> 105.1454918
A42: 105 | B42: 451 | C42: =A42+$C$3 -> 105 | D42: =($E$1-1)-(B42+$E$3) -> 606 | E42: =((C42-$J$1) *($H$2-$H$1)/($J$2-$J$1))+$H$1 -> 2535.730858 | F42: =((D42-($E$1-$J$3))*($H$4-$H$3)/($J$3-$J$4))+$H$3 -> 294.7058824 | G42: =F42*0.737562149277 -> 217.363904 | H42: =(G42*E42)/5252 -> 104.9459937
A43: 105 | B43: 452 | C43: =A43+$C$3 -> 105 | D43: =($E$1-1)-(B43+$E$3) -> 605 | E43: =((C43-$J$1) *($H$2-$H$1)/($J$2-$J$1))+$H$1 -> 2535.730858 | F43: =((D43-($E$1-$J$3))*($H$4-$H$3)/($J$3-$J$4))+$H$3 -> 294.1456583 | G43: =F43*0.737562149277 -> 216.9507039 | H43: =(G43*E43)/5252 -> 104.7464956
A44: 105 | B44: 453 | C44: =A44+$C$3 -> 105 | D44: =($E$1-1)-(B44+$E$3) -> 604 | E44: =((C44-$J$1) *($H$2-$H$1)/($J$2-$J$1))+$H$1 -> 2535.730858 | F44: =((D44-($E$1-$J$3))*($H$4-$H$3)/($J$3-$J$4))+$H$3 -> 293.5854342 | G44: =F44*0.737562149277 -> 216.5375038 | H44: =(G44*E44)/5252 -> 104.5469974
A45: 106 | B45: 451 | C45: =A45+$C$3 -> 106 | D45: =($E$1-1)-(B45+$E$3) -> 606 | E45: =((C45-$J$1) *($H$2-$H$1)/($J$2-$J$1))+$H$1 -> 2538.979118 | F45: =((D45-($E$1-$J$3))*($H$4-$H$3)/($J$3-$J$4))+$H$3 -> 294.7058824 | G45: =F45*0.737562149277 -> 217.363904 | H45: =(G45*E45)/5252 -> 105.080429
A46: 106 | B46: 452 | C46: =A46+$C$3 -> 106 | D46: =($E$1-1)-(B46+$E$3) -> 605 | E46: =((C46-$J$1) *($H$2-$H$1)/($J$2-$J$1))+$H$1 -> 2538.979118 | F46: =((D46-($E$1-$J$3))*($H$4-$H$3)/($J$3-$J$4))+$H$3 -> 294.1456583 | G46: =F46*0.737562149277 -> 216.9507039 | H46: =(G46*E46)/5252 -> 104.8806753
A47: 106 | B47: 453 | C47: =A47+$C$3 -> 106 | D47: =($E$1-1)-(B47+$E$3) -> 604 | E47: =((C47-$J$1) *($H$2-$H$1)/($J$2-$J$1))+$H$1 -> 2538.979118 | F47: =((D47-($E$1-$J$3))*($H$4-$H$3)/($J$3-$J$4))+$H$3 -> 293.5854342 | G47: =F47*0.737562149277 -> 216.5375038 | H47: =(G47*E47)/5252 -> 104.6809217
A48: 107 | B48: 452 | C48: =A48+$C$3 -> 107 | D48: =($E$1-1)-(B48+$E$3) -> 605 | E48: =((C48-$J$1) *($H$2-$H$1)/($J$2-$J$1))+$H$1 -> 2542.227378 | F48: =((D48-($E$1-$J$3))*($H$4-$H$3)/($J$3-$J$4))+$H$3 -> 294.1456583 | G48: =F48*0.737562149277 -> 216.9507039 | H48: =(G48*E48)/5252 -> 105.0148551
A49: 107 | B49: 453 | C49: =A49+$C$3 -> 107 | D49: =($E$1-1)-(B49+$E$3) -> 604 | E49: =((C49-$J$1) *($H$2-$H$1)/($J$2-$J$1))+$H$1 -> 2542.227378 | F49: =((D49-($E$1-$J$3))*($H$4-$H$3)/($J$3-$J$4))+$H$3 -> 293.5854342 | G49: =F49*0.737562149277 -> 216.5375038 | H49: =(G49*E49)/5252 -> 104.8148459
A50: 108 | B50: 452 | C50: =A50+$C$3 -> 108 | D50: =($E$1-1)-(B50+$E$3) -> 605 | E50: =((C50-$J$1) *($H$2-$H$1)/($J$2-$J$1))+$H$1 -> 2545.475638 | F50: =((D50-($E$1-$J$3))*($H$4-$H$3)/($J$3-$J$4))+$H$3 -> 294.1456583 | G50: =F50*0.737562149277 -> 216.9507039 | H50: =(G50*E50)/5252 -> 105.1490349
A51: 108 | B51: 453 | C51: =A51+$C$3 -> 108 | D51: =($E$1-1)-(B51+$E$3) -> 604 | E51: =((C51-$J$1) *($H$2-$H$1)/($J$2-$J$1))+$H$1 -> 2545.475638 | F51: =((D51-($E$1-$J$3))*($H$4-$H$3)/($J$3-$J$4))+$H$3 -> 293.5854342 | G51: =F51*0.737562149277 -> 216.5375038 | H51: =(G51*E51)/5252 -> 104.9487701
A52: 109 | B52: 452 | C52: =A52+$C$3 -> 109 | D52: =($E$1-1)-(B52+$E$3) -> 605 | E52: =((C52-$J$1) *($H$2-$H$1)/($J$2-$J$1))+$H$1 -> 2548.723898 | F52: =((D52-($E$1-$J$3))*($H$4-$H$3)/($J$3-$J$4))+$H$3 -> 294.1456583 | G52: =F52*0.737562149277 -> 216.9507039 | H52: =(G52*E52)/5252 -> 105.2832147
A53: 109 | B53: 453 | C53: =A53+$C$3 -> 109 | D53: =($E$1-1)-(B53+$E$3) -> 604 | E53: =((C53-$J$1) *($H$2-$H$1)/($J$2-$J$1))+$H$1 -> 2548.723898 | F53: =((D53-($E$1-$J$3))*($H$4-$H$3)/($J$3-$J$4))+$H$3 -> 293.5854342 | G53: =F53*0.737562149277 -> 216.5375038 | H53: =(G53*E53)/5252 -> 105.0826944
A54: 110 | B54: 452 | C54: =A54+$C$3 -> 110 | D54: =($E$1-1)-(B54+$E$3) -> 605 | E54: =((C54-$J$1) *($H$2-$H$1)/($J$2-$J$1))+$H$1 -> 2551.972158 | F54: =((D54-($E$1-$J$3))*($H$4-$H$3)/($J$3-$J$4))+$H$3 -> 294.1456583 | G54: =F54*0.737562149277 -> 216.9507039 | H54: =(G54*E54)/5252 -> 105.4173945
A55: 110 | B55: 453 | C55: =A55+$C$3 -> 110 | D55: =($E$1-1)-(B55+$E$3) -> 604 | E55: =((C55-$J$1) *($H$2-$H$1)/($J$2-$J$1))+$H$1 -> 2551.972158 | F55: =((D55-($E$1-$J$3))*($H$4-$H$3)/($J$3-$J$4))+$H$3 -> 293.5854342 | G55: =F55*0.737562149277 -> 216.5375038 | H55: =(G55*E55)/5252 -> 105.2166186
A56: 111 | B56: 452 | C56: =A56+$C$3 -> 111 | D56: =($E$1-1)-(B56+$E$3) -> 605 | E56: =((C56-$J$1) *($H$2-$H$1)/($J$2-$J$1))+$H$1 -> 2555.220418 | F56: =((D56-($E$1-$J$3))*($H$4-$H$3)/($J$3-$J$4))+$H$3 -> 294.1456583 | G56: =F56*0.737562149277 -> 216.9507039 | H56: =(G56*E56)/5252 -> 105.5515743
A57: 111 | B57: 453 | C57: =A57+$C$3 -> 111 | D57: =($E$1-1)-(B57+$E$3) -> 604 | E57: =((C57-$J$1) *($H$2-$H$1)/($J$2-$J$1))+$H$1 -> 2555.220418 | F57: =((D57-($E$1-$J$3))*($H$4-$H$3)/($J$3-$J$4))+$H$3 -> 293.5854342 | G57: =F57*0.737562149277 -> 216.5375038 | H57: =(G57*E57)/5252 -> 105.3505428
A58: 111 | B58: 454 | C58: =A58+$C$3 -> 111 | D58: =($E$1-1)-(B58+$E$3) -> 603 | E58: =((C58-$J$1) *($H$2-$H$1)/($J$2-$J$1))+$H$1 -> 2555.220418 | F58: =((D58-($E$1-$J$3))*($H$4-$H$3)/($J$3-$J$4))+$H$3 -> 293.0252101 | G58: =F58*0.737562149277 -> 216.1243037 | H58: =(G58*E58)/5252 -> 105.1495114
A59: 112 | B59: 452 | C59: =A59+$C$3 -> 112 | D59: =($E$1-1)-(B59+$E$3) -> 605 | E59: =((C59-$J$1) *($H$2-$H$1)/($J$2-$J$1))+$H$1 -> 2558.468677 | F59: =((D59-($E$1-$J$3))*($H$4-$H$3)/($J$3-$J$4))+$H$3 -> 294.1456583 | G59: =F59*0.737562149277 -> 216.9507039 | H59: =(G59*E59)/5252 -> 105.6857541
A60: 112 | B60: 453 | C60: =A60+$C$3 -> 112 | D60: =($E$1-1)-(B60+$E$3) -> 604 | E60: =((C60-$J$1) *($H$2-$H$1)/($J$2-$J$1))+$H$1 -> 2558.468677 | F60: =((D60-($E$1-$J$3))*($H$4-$H$3)/($J$3-$J$4))+$H$3 -> 293.5854342 | G60: =F60*0.737562149277 -> 216.5375038 | H60: =(G60*E60)/5252 -> 105.4844671
A61: 112 | B61: 454 | C61: =A61+$C$3 -> 112 | D61: =($E$1-1)-(B61+$E$3) -> 603 | E61: =((C61-$J$1) *($H$2-$H$1)/($J$2-$J$1))+$H$1 -> 2558.468677 | F61: =((D61-($E$1-$J$3))*($H$4-$H$3)/($J$3-$J$4))+$H$3 -> 293.0252101 | G61: =F61*0.737562149277 -> 216.1243037 | H61: =(G61*E61)/5252 -> 105.28318
A62: 112 | B62: 455 | C62: =A62+$C$3 -> 112 | D62: =($E$1-1)-(B62+$E$3) -> 602 | E62: =((C62-$J$1) *($H$2-$H$1)/($J$2-$J$1))+$H$1 -> 2558.468677 | F62: =((D62-($E$1-$J$3))*($H$4-$H$3)/($J$3-$J$4))+$H$3 -> 292.464986 | G62: =F62*0.737562149277 -> 215.7111037 | H62: =(G62*E62)/5252 -> 105.081893
A63: 113 | B63: 452 | C63: =A63+$C$3 -> 113 | D63: =($E$1-1)-(B63+$E$3) -> 605 | E63: =((C63-$J$1) *($H$2-$H$1)/($J$2-$J$1))+$H$1 -> 2561.716937 | F63: =((D63-($E$1-$J$3))*($H$4-$H$3)/($J$3-$J$4))+$H$3 -> 294.1456583 | G63: =F63*0.737562149277 -> 216.9507039 | H63: =(G63*E63)/5252 -> 105.8199339
A64: 113 | B64: 453 | C64: =A64+$C$3 -> 113 | D64: =($E$1-1)-(B64+$E$3) -> 604 | E64: =((C64-$J$1) *($H$2-$H$1)/($J$2-$J$1))+$H$1 -> 2561.716937 | F64: =((D64-($E$1-$J$3))*($H$4-$H$3)/($J$3-$J$4))+$H$3 -> 293.5854342 | G64: =F64*0.737562149277 -> 216.5375038 | H64: =(G64*E64)/5252 -> 105.6183913
A65: 113 | B65: 454 | C65: =A65+$C$3 -> 113 | D65: =($E$1-1)-(B65+$E$3) -> 603 | E65: =((C65-$J$1) *($H$2-$H$1)/($J$2-$J$1))+$H$1 -> 2561.716937 | F65: =((D65-($E$1-$J$3))*($H$4-$H$3)/($J$3-$J$4))+$H$3 -> 293.0252101 | G65: =F65*0.737562149277 -> 216.1243037 | H65: =(G65*E65)/5252 -> 105.4168487
A66: 113 | B66: 455 | C66: =A66+$C$3 -> 113 | D66: =($E$1-1)-(B66+$E$3) -> 602 | E66: =((C66-$J$1) *($H$2-$H$1)/($J$2-$J$1))+$H$1 -> 2561.716937 | F66: =((D66-($E$1-$J$3))*($H$4-$H$3)/($J$3-$J$4))+$H$3 -> 292.464986 | G66: =F66*0.737562149277 -> 215.7111037 | H66: =(G66*E66)/5252 -> 105.2153061
A67: 114 | B67: 452 | C67: =A67+$C$3 -> 114 | D67: =($E$1-1)-(B67+$E$3) -> 605 | E67: =((C67-$J$1) *($H$2-$H$1)/($J$2-$J$1))+$H$1 -> 2564.965197 | F67: =((D67-($E$1-$J$3))*($H$4-$H$3)/($J$3-$J$4))+$H$3 -> 294.1456583 | G67: =F67*0.737562149277 -> 216.9507039 | H67: =(G67*E67)/5252 -> 105.9541137
A68: 114 | B68: 453 | C68: =A68+$C$3 -> 114 | D68: =($E$1-1)-(B68+$E$3) -> 604 | E68: =((C68-$J$1) *($H$2-$H$1)/($J$2-$J$1))+$H$1 -> 2564.965197 | F68: =((D68-($E$1-$J$3))*($H$4-$H$3)/($J$3-$J$4))+$H$3 -> 293.5854342 | G68: =F68*0.737562149277 -> 216.5375038 | H68: =(G68*E68)/5252 -> 105.7523155
A69: 114 | B69: 454 | C69: =A69+$C$3 -> 114 | D69: =($E$1-1)-(B69+$E$3) -> 603 | E69: =((C69-$J$1) *($H$2-$H$1)/($J$2-$J$1))+$H$1 -> 2564.965197 | F69: =((D69-($E$1-$J$3))*($H$4-$H$3)/($J$3-$J$4))+$H$3 -> 293.0252101 | G69: =F69*0.737562149277 -> 216.1243037 | H69: =(G69*E69)/5252 -> 105.5505174
A70: 114 | B70: 455 | C70: =A70+$C$3 -> 114 | D70: =($E$1-1)-(B70+$E$3) -> 602 | E70: =((C70-$J$1) *($H$2-$H$1)/($J$2-$J$1))+$H$1 -> 2564.965197 | F70: =((D70-($E$1-$J$3))*($H$4-$H$3)/($J$3-$J$4))+$H$3 -> 292.464986 | G70: =F70*0.737562149277 -> 215.7111037 | H70: =(G70*E70)/5252 -> 105.3487193
A71: 115 | B71: 452 | C71: =A71+$C$3 -> 115 | D71: =($E$1-1)-(B71+$E$3) -> 605 | E71: =((C71-$J$1) *($H$2-$H$1)/($J$2-$J$1))+$H$1 -> 2568.213457 | F71: =((D71-($E$1-$J$3))*($H$4-$H$3)/($J$3-$J$4))+$H$3 -> 294.1456583 | G71: =F71*0.737562149277 -> 216.9507039 | H71: =(G71*E71)/5252 -> 106.0882935
A72: 115 | B72: 453 | C72: =A72+$C$3 -> 115 | D72: =($E$1-1)-(B72+$E$3) -> 604 | E72: =((C72-$J$1) *($H$2-$H$1)/($J$2-$J$1))+$H$1 -> 2568.213457 | F72: =((D72-($E$1-$J$3))*($H$4-$H$3)/($J$3-$J$4))+$H$3 -> 293.5854342 | G72: =F72*0.737562149277 -> 216.5375038 | H72: =(G72*E72)/5252 -> 105.8862398
A73: 115 | B73: 454 | C73: =A73+$C$3 -> 115 | D73: =($E$1-1)-(B73+$E$3) -> 603 | E73: =((C73-$J$1) *($H$2-$H$1)/($J$2-$J$1))+$H$1 -> 2568.213457 | F73: =((D73-($E$1-$J$3))*($H$4-$H$3)/($J$3-$J$4))+$H$3 -> 293.0252101 | G73: =F73*0.737562149277 -> 216.1243037 | H73: =(G73*E73)/5252 -> 105.6841861
A74: 115 | B74: 455 | C74: =A74+$C$3 -> 115 | D74: =($E$1-1)-(B74+$E$3) -> 602 | E74: =((C74-$J$1) *($H$2-$H$1)/($J$2-$J$1))+$H$1 -> 2568.213457 | F74: =((D74-($E$1-$J$3))*($H$4-$H$3)/($J$3-$J$4))+$H$3 -> 292.464986 | G74: =F74*0.737562149277 -> 215.7111037 | H74: =(G74*E74)/5252 -> 105.4821324
A75: 116 | B75: 452 | C75: =A75+$C$3 -> 116 | D75: =($E$1-1)-(B75+$E$3) -> 605 | E75: =((C75-$J$1) *($H$2-$H$1)/($J$2-$J$1))+$H$1 -> 2571.461717 | F75: =((D75-($E$1-$J$3))*($H$4-$H$3)/($J$3-$J$4))+$H$3 -> 294.1456583 | G75: =F75*0.737562149277 -> 216.9507039 | H75: =(G75*E75)/5252 -> 106.2224733
A76: 116 | B76: 453 | C76: =A76+$C$3 -> 116 | D76: =($E$1-1)-(B76+$E$3) -> 604 | E76: =((C76-$J$1) *($H$2-$H$1)/($J$2-$J$1))+$H$1 -> 2571.461717 | F76: =((D76-($E$1-$J$3))*($H$4-$H$3)/($J$3-$J$4))+$H$3 -> 293.5854342 | G76: =F76*0.737562149277 -> 216.5375038 | H76: =(G76*E76)/5252 -> 106.020164
A77: 116 | B77: 454 | C77: =A77+$C$3 -> 116 | D77: =($E$1-1)-(B77+$E$3) -> 603 | E77: =((C77-$J$1) *($H$2-$H$1)/($J$2-$J$1))+$H$1 -> 2571.461717 | F77: =((D77-($E$1-$J$3))*($H$4-$H$3)/($J$3-$J$4))+$H$3 -> 293.0252101 | G77: =F77*0.737562149277 -> 216.1243037 | H77: =(G77*E77)/5252 -> 105.8178548
A78: 116 | B78: 455 | C78: =A78+$C$3 -> 116 | D78: =($E$1-1)-(B78+$E$3) -> 602 | E78: =((C78-$J$1) *($H$2-$H$1)/($J$2-$J$1))+$H$1 -> 2571.461717 | F78: =((D78-($E$1-$J$3))*($H$4-$H$3)/($J$3-$J$4))+$H$3 -> 292.464986 | G78: =F78*0.737562149277 -> 215.7111037 | H78: =(G78*E78)/5252 -> 105.6155455
A79: 117 | B79: 452 | C79: =A79+$C$3 -> 117 | D79: =($E$1-1)-(B79+$E$3) -> 605 | E79: =((C79-$J$1) *($H$2-$H$1)/($J$2-$J$1))+$H$1 -> 2574.709977 | F79: =((D79-($E$1-$J$3))*($H$4-$H$3)/($J$3-$J$4))+$H$3 -> 294.1456583 | G79: =F79*0.737562149277 -> 216.9507039 | H79: =(G79*E79)/5252 -> 106.3566531
A80: 117 | B80: 453 | C80: =A80+$C$3 -> 117 | D80: =($E$1-1)-(B80+$E$3) -> 604 | E80: =((C80-$J$1) *($H$2-$H$1)/($J$2-$J$1))+$H$1 -> 2574.709977 | F80: =((D80-($E$1-$J$3))*($H$4-$H$3)/($J$3-$J$4))+$H$3 -> 293.5854342 | G80: =F80*0.737562149277 -> 216.5375038 | H80: =(G80*E80)/5252 -> 106.1540882
A81: 117 | B81: 454 | C81: =A81+$C$3 -> 117 | D81: =($E$1-1)-(B81+$E$3) -> 603 | E81: =((C81-$J$1) *($H$2-$H$1)/($J$2-$J$1))+$H$1 -> 2574.709977 | F81: =((D81-($E$1-$J$3))*($H$4-$H$3)/($J$3-$J$4))+$H$3 -> 293.0252101 | G81: =F81*0.737562149277 -> 216.1243037 | H81: =(G81*E81)/5252 -> 105.9515234
A82: 117 | B82: 455 | C82: =A82+$C$3 -> 117 | D82: =($E$1-1)-(B82+$E$3) -> 602 | E82: =((C82-$J$1) *($H$2-$H$1)/($J$2-$J$1))+$H$1 -> 2574.709977 | F82: =((D82-($E$1-$J$3))*($H$4-$H$3)/($J$3-$J$4))+$H$3 -> 292.464986 | G82: =F82*0.737562149277 -> 215.7111037 | H82: =(G82*E82)/5252 -> 105.7489586
A83: 118 | B83: 452 | C83: =A83+$C$3 -> 118 | D83: =($E$1-1)-(B83+$E$3) -> 605 | E83: =((C83-$J$1) *($H$2-$H$1)/($J$2-$J$1))+$H$1 -> 2577.958237 | F83: =((D83-($E$1-$J$3))*($H$4-$H$3)/($J$3-$J$4))+$H$3 -> 294.1456583 | G83: =F83*0.737562149277 -> 216.9507039 | H83: =(G83*E83)/5252 -> 106.4908328
A84: 118 | B84: 453 | C84: =A84+$C$3 -> 118 | D84: =($E$1-1)-(B84+$E$3) -> 604 | E84: =((C84-$J$1) *($H$2-$H$1)/($J$2-$J$1))+$H$1 -> 2577.958237 | F84: =((D84-($E$1-$J$3))*($H$4-$H$3)/($J$3-$J$4))+$H$3 -> 293.5854342 | G84: =F84*0.737562149277 -> 216.5375038 | H84: =(G84*E84)/5252 -> 106.2880125
A85: 118 | B85: 454 | C85: =A85+$C$3 -> 118 | D85: =($E$1-1)-(B85+$E$3) -> 603 | E85: =((C85-$J$1) *($H$2-$H$1)/($J$2-$J$1))+$H$1 -> 2577.958237 | F85: =((D85-($E$1-$J$3))*($H$4-$H$3)/($J$3-$J$4))+$H$3 -> 293.0252101 | G85: =F85*0.737562149277 -> 216.1243037 | H85: =(G85*E85)/5252 -> 106.0851921
A86: 118 | B86: 455 | C86: =A86+$C$3 -> 118 | D86: =($E$1-1)-(B86+$E$3) -> 602 | E86: =((C86-$J$1) *($H$2-$H$1)/($J$2-$J$1))+$H$1 -> 2577.958237 | F86: =((D86-($E$1-$J$3))*($H$4-$H$3)/($J$3-$J$4))+$H$3 -> 292.464986 | G86: =F86*0.737562149277 -> 215.7111037 | H86: =(G86*E86)/5252 -> 105.8823717
A87: 119 | B87: 452 | C87: =A87+$C$3 -> 119 | D87: =($E$1-1)-(B87+$E$3) -> 605 | E87: =((C87-$J$1) *($H$2-$H$1)/($J$2-$J$1))+$H$1 -> 2581.206497 | F87: =((D87-($E$1-$J$3))*($H$4-$H$3)/($J$3-$J$4))+$H$3 -> 294.1456583 | G87: =F87*0.737562149277 -> 216.9507039 | H87: =(G87*E87)/5252 -> 106.6250126
A88: 119 | B88: 453 | C88: =A88+$C$3 -> 119 | D88: =($E$1-1)-(B88+$E$3) -> 604 | E88: =((C88-$J$1) *($H$2-$H$1)/($J$2-$J$1))+$H$1 -> 2581.206497 | F88: =((D88-($E$1-$J$3))*($H$4-$H$3)/($J$3-$J$4))+$H$3 -> 293.5854342 | G88: =F88*0.737562149277 -> 216.5375038 | H88: =(G88*E88)/5252 -> 106.4219367
A89: 119 | B89: 454 | C89: =A89+$C$3 -> 119 | D89: =($E$1-1)-(B89+$E$3) -> 603 | E89: =((C89-$J$1) *($H$2-$H$1)/($J$2-$J$1))+$H$1 -> 2581.206497 | F89: =((D89-($E$1-$J$3))*($H$4-$H$3)/($J$3-$J$4))+$H$3 -> 293.0252101 | G89: =F89*0.737562149277 -> 216.1243037 | H89: =(G89*E89)/5252 -> 106.2188608
A90: 119 | B90: 455 | C90: =A90+$C$3 -> 119 | D90: =($E$1-1)-(B90+$E$3) -> 602 | E90: =((C90-$J$1) *($H$2-$H$1)/($J$2-$J$1))+$H$1 -> 2581.206497 | F90: =((D90-($E$1-$J$3))*($H$4-$H$3)/($J$3-$J$4))+$H$3 -> 292.464986 | G90: =F90*0.737562149277 -> 215.7111037 | H90: =(G90*E90)/5252 -> 106.0157849
A91: 120 | B91: 454 | C91: =A91+$C$3 -> 120 | D91: =($E$1-1)-(B91+$E$3) -> 603 | E91: =((C91-$J$1) *($H$2-$H$1)/($J$2-$J$1))+$H$1 -> 2584.454756 | F91: =((D91-($E$1-$J$3))*($H$4-$H$3)/($J$3-$J$4))+$H$3 -> 293.0252101 | G91: =F91*0.737562149277 -> 216.1243037 | H91: =(G91*E91)/5252 -> 106.3525295
A92: 120 | B92: 455 | C92: =A92+$C$3 -> 120 | D92: =($E$1-1)-(B92+$E$3) -> 602 | E92: =((C92-$J$1) *($H$2-$H$1)/($J$2-$J$1))+$H$1 -> 2584.454756 | F92: =((D92-($E$1-$J$3))*($H$4-$H$3)/($J$3-$J$4))+$H$3 -> 292.464986 | G92: =F92*0.737562149277 -> 215.7111037 | H92: =(G92*E92)/5252 -> 106.149198
A93: 121 | B93: 454 | C93: =A93+$C$3 -> 121 | D93: =($E$1-1)-(B93+$E$3) -> 603 | E93: =((C93-$J$1) *($H$2-$H$1)/($J$2-$J$1))+$H$1 -> 2587.703016 | F93: =((D93-($E$1-$J$3))*($H$4-$H$3)/($J$3-$J$4))+$H$3 -> 293.0252101 | G93: =F93*0.737562149277 -> 216.1243037 | H93: =(G93*E93)/5252 -> 106.4861981
A94: 121 | B94: 455 | C94: =A94+$C$3 -> 121 | D94: =($E$1-1)-(B94+$E$3) -> 602 | E94: =((C94-$J$1) *($H$2-$H$1)/($J$2-$J$1))+$H$1 -> 2587.703016 | F94: =((D94-($E$1-$J$3))*($H$4-$H$3)/($J$3-$J$4))+$H$3 -> 292.464986 | G94: =F94*0.737562149277 -> 215.7111037 | H94: =(G94*E94)/5252 -> 106.2826111
A95: 122 | B95: 454 | C95: =A95+$C$3 -> 122 | D95: =($E$1-1)-(B95+$E$3) -> 603 | E95: =((C95-$J$1) *($H$2-$H$1)/($J$2-$J$1))+$H$1 -> 2590.951276 | F95: =((D95-($E$1-$J$3))*($H$4-$H$3)/($J$3-$J$4))+$H$3 -> 293.0252101 | G95: =F95*0.737562149277 -> 216.1243037 | H95: =(G95*E95)/5252 -> 106.6198668
A96: 122 | B96: 455 | C96: =A96+$C$3 -> 122 | D96: =($E$1-1)-(B96+$E$3) -> 602 | E96: =((C96-$J$1) *($H$2-$H$1)/($J$2-$J$1))+$H$1 -> 2590.951276 | F96: =((D96-($E$1-$J$3))*($H$4-$H$3)/($J$3-$J$4))+$H$3 -> 292.464986 | G96: =F96*0.737562149277 -> 215.7111037 | H96: =(G96*E96)/5252 -> 106.4160242
A97: 123 | B97: 454 | C97: =A97+$C$3 -> 123 | D97: =($E$1-1)-(B97+$E$3) -> 603 | E97: =((C97-$J$1) *($H$2-$H$1)/($J$2-$J$1))+$H$1 -> 2594.199536 | F97: =((D97-($E$1-$J$3))*($H$4-$H$3)/($J$3-$J$4))+$H$3 -> 293.0252101 | G97: =F97*0.737562149277 -> 216.1243037 | H97: =(G97*E97)/5252 -> 106.7535355
A98: 123 | B98: 455 | C98: =A98+$C$3 -> 123 | D98: =($E$1-1)-(B98+$E$3) -> 602 | E98: =((C98-$J$1) *($H$2-$H$1)/($J$2-$J$1))+$H$1 -> 2594.199536 | F98: =((D98-($E$1-$J$3))*($H$4-$H$3)/($J$3-$J$4))+$H$3 -> 292.464986 | G98: =F98*0.737562149277 -> 215.7111037 | H98: =(G98*E98)/5252 -> 106.5494374
A99: 124 | B99: 454 | C99: =A99+$C$3 -> 124 | D99: =($E$1-1)-(B99+$E$3) -> 603 | E99: =((C99-$J$1) *($H$2-$H$1)/($J$2-$J$1))+$H$1 -> 2597.447796 | F99: =((D99-($E$1-$J$3))*($H$4-$H$3)/($J$3-$J$4))+$H$3 -> 293.0252101 | G99: =F99*0.737562149277 -> 216.1243037 | H99: =(G99*E99)/5252 -> 106.8872042
A100: 124 | B100: 455 | C100: =A100+$C$3 -> 124 | D100: =($E$1-1)-(B100+$E$3) -> 602 | E100: =((C100-$J$1) *($H$2-$H$1)/($J$2-$J$1))+$H$1 -> 2597.447796 | F100: =((D100-($E$1-$J$3))*($H$4-$H$3)/($J$3-$J$4))+$H$3 -> 292.464986 | G100: =F100*0.737562149277 -> 215.7111037 | H100: =(G100*E100)/5252 -> 106.6828505
A101: 125 | B101: 454 | C101: =A101+$C$3 -> 125 | D101: =($E$1-1)-(B101+$E$3) -> 603 | E101: =((C101-$J$1) *($H$2-$H$1)/($J$2-$J$1))+$H$1 -> 2600.696056 | F101: =((D101-($E$1-$J$3))*($H$4-$H$3)/($J$3-$J$4))+$H$3 -> 293.0252101 | G101: =F101*0.737562149277 -> 216.1243037 | H101: =(G101*E101)/5252 -> 107.0208729
A102: 125 | B102: 455 | C102: =A102+$C$3 -> 125 | D102: =($E$1-1)-(B102+$E$3) -> 602 | E102: =((C102-$J$1) *($H$2-$H$1)/($J$2-$J$1))+$H$1 -> 2600.696056 | F102: =((D102-($E$1-$J$3))*($H$4-$H$3)/($J$3-$J$4))+$H$3 -> 292.464986 | G102: =F102*0.737562149277 -> 215.7111037 | H102: =(G102*E102)/5252 -> 106.8162636
A103: 126 | B103: 454 | C103: =A103+$C$3 -> 126 | D103: =($E$1-1)-(B103+$E$3) -> 603 | E103: =((C103-$J$1) *($H$2-$H$1)/($J$2-$J$1))+$H$1 -> 2603.944316 | F103: =((D103-($E$1-$J$3))*($H$4-$H$3)/($J$3-$J$4))+$H$3 -> 293.0252101 | G103: =F103*0.737562149277 -> 216.1243037 | H103: =(G103*E103)/5252 -> 107.1545415
A104: 126 | B104: 455 | C104: =A104+$C$3 -> 126 | D104: =($E$1-1)-(B104+$E$3) -> 602 | E104: =((C104-$J$1) *($H$2-$H$1)/($J$2-$J$1))+$H$1 -> 2603.944316 | F104: =((D104-($E$1-$J$3))*($H$4-$H$3)/($J$3-$J$4))+$H$3 -> 292.464986 | G104: =F104*0.737562149277 -> 215.7111037 | H104: =(G104*E104)/5252 -> 106.9496767
A105: 127 | B105: 454 | C105: =A105+$C$3 -> 127 | D105: =($E$1-1)-(B105+$E$3) -> 603 | E105: =((C105-$J$1) *($H$2-$H$1)/($J$2-$J$1))+$H$1 -> 2607.192575 | F105: =((D105-($E$1-$J$3))*($H$4-$H$3)/($J$3-$J$4))+$H$3 -> 293.0252101 | G105: =F105*0.737562149277 -> 216.1243037 | H105: =(G105*E105)/5252 -> 107.2882102
A106: 127 | B106: 455 | C106: =A106+$C$3 -> 127 | D106: =($E$1-1)-(B106+$E$3) -> 602 | E106: =((C106-$J$1) *($H$2-$H$1)/($J$2-$J$1))+$H$1 -> 2607.192575 | F106: =((D106-($E$1-$J$3))*($H$4-$H$3)/($J$3-$J$4))+$H$3 -> 292.464986 | G106: =F106*0.737562149277 -> 215.7111037 | H106: =(G106*E106)/5252 -> 107.0830898
A107: 128 | B107: 454 | C107: =A107+$C$3 -> 128 | D107: =($E$1-1)-(B107+$E$3) -> 603 | E107: =((C107-$J$1) *($H$2-$H$1)/($J$2-$J$1))+$H$1 -> 2610.440835 | F107: =((D107-($E$1-$J$3))*($H$4-$H$3)/($J$3-$J$4))+$H$3 -> 293.0252101 | G107: =F107*0.737562149277 -> 216.1243037 | H107: =(G107*E107)/5252 -> 107.4218789
A108: 128 | B108: 455 | C108: =A108+$C$3 -> 128 | D108: =($E$1-1)-(B108+$E$3) -> 602 | E108: =((C108-$J$1) *($H$2-$H$1)/($J$2-$J$1))+$H$1 -> 2610.440835 | F108: =((D108-($E$1-$J$3))*($H$4-$H$3)/($J$3-$J$4))+$H$3 -> 292.464986 | G108: =F108*0.737562149277 -> 215.7111037 | H108: =(G108*E108)/5252 -> 107.216503
A109: 129 | B109: 454 | C109: =A109+$C$3 -> 129 | D109: =($E$1-1)-(B109+$E$3) -> 603 | E109: =((C109-$J$1) *($H$2-$H$1)/($J$2-$J$1))+$H$1 -> 2613.689095 | F109: =((D109-($E$1-$J$3))*($H$4-$H$3)/($J$3-$J$4))+$H$3 -> 293.0252101 | G109: =F109*0.737562149277 -> 216.1243037 | H109: =(G109*E109)/5252 -> 107.5555476
A110: 129 | B110: 455 | C110: =A110+$C$3 -> 129 | D110: =($E$1-1)-(B110+$E$3) -> 602 | E110: =((C110-$J$1) *($H$2-$H$1)/($J$2-$J$1))+$H$1 -> 2613.689095 | F110: =((D110-($E$1-$J$3))*($H$4-$H$3)/($J$3-$J$4))+$H$3 -> 292.464986 | G110: =F110*0.737562149277 -> 215.7111037 | H110: =(G110*E110)/5252 -> 107.3499161
A111: 130 | B111: 454 | C111: =A111+$C$3 -> 130 | D111: =($E$1-1)-(B111+$E$3) -> 603 | E111: =((C111-$J$1) *($H$2-$H$1)/($J$2-$J$1))+$H$1 -> 2616.937355 | F111: =((D111-($E$1-$J$3))*($H$4-$H$3)/($J$3-$J$4))+$H$3 -> 293.0252101 | G111: =F111*0.737562149277 -> 216.1243037 | H111: =(G111*E111)/5252 -> 107.6892163
A112: 130 | B112: 455 | C112: =A112+$C$3 -> 130 | D112: =($E$1-1)-(B112+$E$3) -> 602 | E112: =((C112-$J$1) *($H$2-$H$1)/($J$2-$J$1))+$H$1 -> 2616.937355 | F112: =((D112-($E$1-$J$3))*($H$4-$H$3)/($J$3-$J$4))+$H$3 -> 292.464986 | G112: =F112*0.737562149277 -> 215.7111037 | H112: =(G112*E112)/5252 -> 107.4833292
A113: 131 | B113: 454 | C113: =A113+$C$3 -> 131 | D113: =($E$1-1)-(B113+$E$3) -> 603 | E113: =((C113-$J$1) *($H$2-$H$1)/($J$2-$J$1))+$H$1 -> 2620.185615 | F113: =((D113-($E$1-$J$3))*($H$4-$H$3)/($J$3-$J$4))+$H$3 -> 293.0252101 | G113: =F113*0.737562149277 -> 216.1243037 | H113: =(G113*E113)/5252 -> 107.8228849
A114: 131 | B114: 455 | C114: =A114+$C$3 -> 131 | D114: =($E$1-1)-(B114+$E$3) -> 602 | E114: =((C114-$J$1) *($H$2-$H$1)/($J$2-$J$1))+$H$1 -> 2620.185615 | F114: =((D114-($E$1-$J$3))*($H$4-$H$3)/($J$3-$J$4))+$H$3 -> 292.464986 | G114: =F114*0.737562149277 -> 215.7111037 | H114: =(G114*E114)/5252 -> 107.6167423
A115: 132 | B115: 454 | C115: =A115+$C$3 -> 132 | D115: =($E$1-1)-(B115+$E$3) -> 603 | E115: =((C115-$J$1) *($H$2-$H$1)/($J$2-$J$1))+$H$1 -> 2623.433875 | F115: =((D115-($E$1-$J$3))*($H$4-$H$3)/($J$3-$J$4))+$H$3 -> 293.0252101 | G115: =F115*0.737562149277 -> 216.1243037 | H115: =(G115*E115)/5252 -> 107.9565536
A116: 132 | B116: 455 | C116: =A116+$C$3 -> 132 | D116: =($E$1-1)-(B116+$E$3) -> 602 | E116: =((C116-$J$1) *($H$2-$H$1)/($J$2-$J$1))+$H$1 -> 2623.433875 | F116: =((D116-($E$1-$J$3))*($H$4-$H$3)/($J$3-$J$4))+$H$3 -> 292.464986 | G116: =F116*0.737562149277 -> 215.7111037 | H116: =(G116*E116)/5252 -> 107.7501555
A117: 133 | B117: 454 | C117: =A117+$C$3 -> 133 | D117: =($E$1-1)-(B117+$E$3) -> 603 | E117: =((C117-$J$1) *($H$2-$H$1)/($J$2-$J$1))+$H$1 -> 2626.682135 | F117: =((D117-($E$1-$J$3))*($H$4-$H$3)/($J$3-$J$4))+$H$3 -> 293.0252101 | G117: =F117*0.737562149277 -> 216.1243037 | H117: =(G117*E117)/5252 -> 108.0902223
A118: 133 | B118: 455 | C118: =A118+$C$3 -> 133 | D118: =($E$1-1)-(B118+$E$3) -> 602 | E118: =((C118-$J$1) *($H$2-$H$1)/($J$2-$J$1))+$H$1 -> 2626.682135 | F118: =((D118-($E$1-$J$3))*($H$4-$H$3)/($J$3-$J$4))+$H$3 -> 292.464986 | G118: =F118*0.737562149277 -> 215.7111037 | H118: =(G118*E118)/5252 -> 107.8835686
A119: 134 | B119: 454 | C119: =A119+$C$3 -> 134 | D119: =($E$1-1)-(B119+$E$3) -> 603 | E119: =((C119-$J$1) *($H$2-$H$1)/($J$2-$J$1))+$H$1 -> 2629.930394 | F119: =((D119-($E$1-$J$3))*($H$4-$H$3)/($J$3-$J$4))+$H$3 -> 293.0252101 | G119: =F119*0.737562149277 -> 216.1243037 | H119: =(G119*E119)/5252 -> 108.223891
A120: 134 | B120: 455 | C120: =A120+$C$3 -> 134 | D120: =($E$1-1)-(B120+$E$3) -> 602 | E120: =((C120-$J$1) *($H$2-$H$1)/($J$2-$J$1))+$H$1 -> 2629.930394 | F120: =((D120-($E$1-$J$3))*($H$4-$H$3)/($J$3-$J$4))+$H$3 -> 292.464986 | G120: =F120*0.737562149277 -> 215.7111037 | H120: =(G120*E120)/5252 -> 108.0169817
A121: 135 | B121: 454 | C121: =A121+$C$3 -> 135 | D121: =($E$1-1)-(B121+$E$3) -> 603 | E121: =((C121-$J$1) *($H$2-$H$1)/($J$2-$J$1))+$H$1 -> 2633.178654 | F121: =((D121-($E$1-$J$3))*($H$4-$H$3)/($J$3-$J$4))+$H$3 -> 293.0252101 | G121: =F121*0.737562149277 -> 216.1243037 | H121: =(G121*E121)/5252 -> 108.3575597
A122: 135 | B122: 455 | C122: =A122+$C$3 -> 135 | D122: =($E$1-1)-(B122+$E$3) -> 602 | E122: =((C122-$J$1) *($H$2-$H$1)/($J$2-$J$1))+$H$1 -> 2633.178654 | F122: =((D122-($E$1-$J$3))*($H$4-$H$3)/($J$3-$J$4))+$H$3 -> 292.464986 | G122: =F122*0.737562149277 -> 215.7111037 | H122: =(G122*E122)/5252 -> 108.1503948
A123: 136 | B123: 454 | C123: =A123+$C$3 -> 136 | D123: =($E$1-1)-(B123+$E$3) -> 603 | E123: =((C123-$J$1) *($H$2-$H$1)/($J$2-$J$1))+$H$1 -> 2636.426914 | F123: =((D123-($E$1-$J$3))*($H$4-$H$3)/($J$3-$J$4))+$H$3 -> 293.0252101 | G123: =F123*0.737562149277 -> 216.1243037 | H123: =(G123*E123)/5252 -> 108.4912283
A124: 136 | B124: 455 | C124: =A124+$C$3 -> 136 | D124: =($E$1-1)-(B124+$E$3) -> 602 | E124: =((C124-$J$1) *($H$2-$H$1)/($J$2-$J$1))+$H$1 -> 2636.426914 | F124: =((D124-($E$1-$J$3))*($H$4-$H$3)/($J$3-$J$4))+$H$3 -> 292.464986 | G124: =F124*0.737562149277 -> 215.7111037 | H124: =(G124*E124)/5252 -> 108.283808
A125: 137 | B125: 454 | C125: =A125+$C$3 -> 137 | D125: =($E$1-1)-(B125+$E$3) -> 603 | E125: =((C125-$J$1) *($H$2-$H$1)/($J$2-$J$1))+$H$1 -> 2639.675174 | F125: =((D125-($E$1-$J$3))*($H$4-$H$3)/($J$3-$J$4))+$H$3 -> 293.0252101 | G125: =F125*0.737562149277 -> 216.1243037 | H125: =(G125*E125)/5252 -> 108.624897
A126: 137 | B126: 455 | C126: =A126+$C$3 -> 137 | D126: =($E$1-1)-(B126+$E$3) -> 602 | E126: =((C126-$J$1) *($H$2-$H$1)/($J$2-$J$1))+$H$1 -> 2639.675174 | F126: =((D126-($E$1-$J$3))*($H$4-$H$3)/($J$3-$J$4))+$H$3 -> 292.464986 | G126: =F126*0.737562149277 -> 215.7111037 | H126: =(G126*E126)/5252 -> 108.4172211
A127: 138 | B127: 454 | C127: =A127+$C$3 -> 138 | D127: =($E$1-1)-(B127+$E$3) -> 603 | E127: =((C127-$J$1) *($H$2-$H$1)/($J$2-$J$1))+$H$1 -> 2642.923434 | F127: =((D127-($E$1-$J$3))*($H$4-$H$3)/($J$3-$J$4))+$H$3 -> 293.0252101 | G127: =F127*0.737562149277 -> 216.1243037 | H127: =(G127*E127)/5252 -> 108.7585657
A128: 138 | B128: 455 | C128: =A128+$C$3 -> 138 | D128: =($E$1-1)-(B128+$E$3) -> 602 | E128: =((C128-$J$1) *($H$2-$H$1)/($J$2-$J$1))+$H$1 -> 2642.923434 | F128: =((D128-($E$1-$J$3))*($H$4-$H$3)/($J$3-$J$4))+$H$3 -> 292.464986 | G128: =F128*0.737562149277 -> 215.7111037 | H128: =(G128*E128)/5252 -> 108.5506342
A129: 139 | B129: 454 | C129: =A129+$C$3 -> 139 | D129: =($E$1-1)-(B129+$E$3) -> 603 | E129: =((C129-$J$1) *($H$2-$H$1)/($J$2-$J$1))+$H$1 -> 2646.171694 | F129: =((D129-($E$1-$J$3))*($H$4-$H$3)/($J$3-$J$4))+$H$3 -> 293.0252101 | G129: =F129*0.737562149277 -> 216.1243037 | H129: =(G129*E129)/5252 -> 108.8922344
A130: 139 | B130: 455 | C130: =A130+$C$3 -> 139 | D130: =($E$1-1)-(B130+$E$3) -> 602 | E130: =((C130-$J$1) *($H$2-$H$1)/($J$2-$J$1))+$H$1 -> 2646.171694 | F130: =((D130-($E$1-$J$3))*($H$4-$H$3)/($J$3-$J$4))+$H$3 -> 292.464986 | G130: =F130*0.737562149277 -> 215.7111037 | H130: =(G130*E130)/5252 -> 108.6840473
A131: 140 | B131: 452 | C131: =A131+$C$3 -> 140 | D131: =($E$1-1)-(B131+$E$3) -> 605 | E131: =((C131-$J$1) *($H$2-$H$1)/($J$2-$J$1))+$H$1 -> 2649.419954 | F131: =((D131-($E$1-$J$3))*($H$4-$H$3)/($J$3-$J$4))+$H$3 -> 294.1456583 | G131: =F131*0.737562149277 -> 216.9507039 | H131: =(G131*E131)/5252 -> 109.4427882
A132: 140 | B132: 453 | C132: =A132+$C$3 -> 140 | D132: =($E$1-1)-(B132+$E$3) -> 604 | E132: =((C132-$J$1) *($H$2-$H$1)/($J$2-$J$1))+$H$1 -> 2649.419954 | F132: =((D132-($E$1-$J$3))*($H$4-$H$3)/($J$3-$J$4))+$H$3 -> 293.5854342 | G132: =F132*0.737562149277 -> 216.5375038 | H132: =(G132*E132)/5252 -> 109.2343456
A133: 140 | B133: 454 | C133: =A133+$C$3 -> 140 | D133: =($E$1-1)-(B133+$E$3) -> 603 | E133: =((C133-$J$1) *($H$2-$H$1)/($J$2-$J$1))+$H$1 -> 2649.419954 | F133: =((D133-($E$1-$J$3))*($H$4-$H$3)/($J$3-$J$4))+$H$3 -> 293.0252101 | G133: =F133*0.737562149277 -> 216.1243037 | H133: =(G133*E133)/5252 -> 109.025903
A134: 140 | B134: 455 | C134: =A134+$C$3 -> 140 | D134: =($E$1-1)-(B134+$E$3) -> 602 | E134: =((C134-$J$1) *($H$2-$H$1)/($J$2-$J$1))+$H$1 -> 2649.419954 | F134: =((D134-($E$1-$J$3))*($H$4-$H$3)/($J$3-$J$4))+$H$3 -> 292.464986 | G134: =F134*0.737562149277 -> 215.7111037 | H134: =(G134*E134)/5252 -> 108.8174604
A135: 141 | B135: 452 | C135: =A135+$C$3 -> 141 | D135: =($E$1-1)-(B135+$E$3) -> 605 | E135: =((C135-$J$1) *($H$2-$H$1)/($J$2-$J$1))+$H$1 -> 2652.668213 | F135: =((D135-($E$1-$J$3))*($H$4-$H$3)/($J$3-$J$4))+$H$3 -> 294.1456583 | G135: =F135*0.737562149277 -> 216.9507039 | H135: =(G135*E135)/5252 -> 109.576968
A136: 141 | B136: 453 | C136: =A136+$C$3 -> 141 | D136: =($E$1-1)-(B136+$E$3) -> 604 | E136: =((C136-$J$1) *($H$2-$H$1)/($J$2-$J$1))+$H$1 -> 2652.668213 | F136: =((D136-($E$1-$J$3))*($H$4-$H$3)/($J$3-$J$4))+$H$3 -> 293.5854342 | G136: =F136*0.737562149277 -> 216.5375038 | H136: =(G136*E136)/5252 -> 109.3682699
A137: 141 | B137: 454 | C137: =A137+$C$3 -> 141 | D137: =($E$1-1)-(B137+$E$3) -> 603 | E137: =((C137-$J$1) *($H$2-$H$1)/($J$2-$J$1))+$H$1 -> 2652.668213 | F137: =((D137-($E$1-$J$3))*($H$4-$H$3)/($J$3-$J$4))+$H$3 -> 293.0252101 | G137: =F137*0.737562149277 -> 216.1243037 | H137: =(G137*E137)/5252 -> 109.1595717
A138: 141 | B138: 455 | C138: =A138+$C$3 -> 141 | D138: =($E$1-1)-(B138+$E$3) -> 602 | E138: =((C138-$J$1) *($H$2-$H$1)/($J$2-$J$1))+$H$1 -> 2652.668213 | F138: =((D138-($E$1-$J$3))*($H$4-$H$3)/($J$3-$J$4))+$H$3 -> 292.464986 | G138: =F138*0.737562149277 -> 215.7111037 | H138: =(G138*E138)/5252 -> 108.9508736
A139: 142 | B139: 452 | C139: =A139+$C$3 -> 142 | D139: =($E$1-1)-(B139+$E$3) -> 605 | E139: =((C139-$J$1) *($H$2-$H$1)/($J$2-$J$1))+$H$1 -> 2655.916473 | F139: =((D139-($E$1-$J$3))*($H$4-$H$3)/($J$3-$J$4))+$H$3 -> 294.1456583 | G139: =F139*0.737562149277 -> 216.9507039 | H139: =(G139*E139)/5252 -> 109.7111478
A140: 142 | B140: 453 | C140: =A140+$C$3 -> 142 | D140: =($E$1-1)-(B140+$E$3) -> 604 | E140: =((C140-$J$1) *($H$2-$H$1)/($J$2-$J$1))+$H$1 -> 2655.916473 | F140: =((D140-($E$1-$J$3))*($H$4-$H$3)/($J$3-$J$4))+$H$3 -> 293.5854342 | G140: =F140*0.737562149277 -> 216.5375038 | H140: =(G140*E140)/5252 -> 109.5021941
A141: 142 | B141: 454 | C141: =A141+$C$3 -> 142 | D141: =($E$1-1)-(B141+$E$3) -> 603 | E141: =((C141-$J$1) *($H$2-$H$1)/($J$2-$J$1))+$H$1 -> 2655.916473 | F141: =((D141-($E$1-$J$3))*($H$4-$H$3)/($J$3-$J$4))+$H$3 -> 293.0252101 | G141: =F141*0.737562149277 -> 216.1243037 | H141: =(G141*E141)/5252 -> 109.2932404
A142: 142 | B142: 455 | C142: =A142+$C$3 -> 142 | D142: =($E$1-1)-(B142+$E$3) -> 602 | E142: =((C142-$J$1) *($H$2-$H$1)/($J$2-$J$1))+$H$1 -> 2655.916473 | F142: =((D142-($E$1-$J$3))*($H$4-$H$3)/($J$3-$J$4))+$H$3 -> 292.464986 | G142: =F142*0.737562149277 -> 215.7111037 | H142: =(G142*E142)/5252 -> 109.0842867
A143: 143 | B143: 452 | C143: =A143+$C$3 -> 143 | D143: =($E$1-1)-(B143+$E$3) -> 605 | E143: =((C143-$J$1) *($H$2-$H$1)/($J$2-$J$1))+$H$1 -> 2659.164733 | F143: =((D143-($E$1-$J$3))*($H$4-$H$3)/($J$3-$J$4))+$H$3 -> 294.1456583 | G143: =F143*0.737562149277 -> 216.9507039 | H143: =(G143*E143)/5252 -> 109.8453276
A144: 143 | B144: 453 | C144: =A144+$C$3 -> 143 | D144: =($E$1-1)-(B144+$E$3) -> 604 | E144: =((C144-$J$1) *($H$2-$H$1)/($J$2-$J$1))+$H$1 -> 2659.164733 | F144: =((D144-($E$1-$J$3))*($H$4-$H$3)/($J$3-$J$4))+$H$3 -> 293.5854342 | G144: =F144*0.737562149277 -> 216.5375038 | H144: =(G144*E144)/5252 -> 109.6361184
A145: 143 | B145: 454 | C145: =A145+$C$3 -> 143 | D145: =($E$1-1)-(B145+$E$3) -> 603 | E145: =((C145-$J$1) *($H$2-$H$1)/($J$2-$J$1))+$H$1 -> 2659.164733 | F145: =((D145-($E$1-$J$3))*($H$4-$H$3)/($J$3-$J$4))+$H$3 -> 293.0252101 | G145: =F145*0.737562149277 -> 216.1243037 | H145: =(G145*E145)/5252 -> 109.4269091
A146: 143 | B146: 455 | C146: =A146+$C$3 -> 143 | D146: =($E$1-1)-(B146+$E$3) -> 602 | E146: =((C146-$J$1) *($H$2-$H$1)/($J$2-$J$1))+$H$1 -> 2659.164733 | F146: =((D146-($E$1-$J$3))*($H$4-$H$3)/($J$3-$J$4))+$H$3 -> 292.464986 | G146: =F146*0.737562149277 -> 215.7111037 | H146: =(G146*E146)/5252 -> 109.2176998
A147: 144 | B147: 452 | C147: =A147+$C$3 -> 144 | D147: =($E$1-1)-(B147+$E$3) -> 605 | E147: =((C147-$J$1) *($H$2-$H$1)/($J$2-$J$1))+$H$1 -> 2662.412993 | F147: =((D147-($E$1-$J$3))*($H$4-$H$3)/($J$3-$J$4))+$H$3 -> 294.1456583 | G147: =F147*0.737562149277 -> 216.9507039 | H147: =(G147*E147)/5252 -> 109.9795074
A148: 144 | B148: 453 | C148: =A148+$C$3 -> 144 | D148: =($E$1-1)-(B148+$E$3) -> 604 | E148: =((C148-$J$1) *($H$2-$H$1)/($J$2-$J$1))+$H$1 -> 2662.412993 | F148: =((D148-($E$1-$J$3))*($H$4-$H$3)/($J$3-$J$4))+$H$3 -> 293.5854342 | G148: =F148*0.737562149277 -> 216.5375038 | H148: =(G148*E148)/5252 -> 109.7700426
A149: 144 | B149: 454 | C149: =A149+$C$3 -> 144 | D149: =($E$1-1)-(B149+$E$3) -> 603 | E149: =((C149-$J$1) *($H$2-$H$1)/($J$2-$J$1))+$H$1 -> 2662.412993 | F149: =((D149-($E$1-$J$3))*($H$4-$H$3)/($J$3-$J$4))+$H$3 -> 293.0252101 | G149: =F149*0.737562149277 -> 216.1243037 | H149: =(G149*E149)/5252 -> 109.5605778
A150: 144 | B150: 455 | C150: =A150+$C$3 -> 144 | D150: =($E$1-1)-(B150+$E$3) -> 602 | E150: =((C150-$J$1) *($H$2-$H$1)/($J$2-$J$1))+$H$1 -> 2662.412993 | F150: =((D150-($E$1-$J$3))*($H$4-$H$3)/($J$3-$J$4))+$H$3 -> 292.464986 | G150: =F150*0.737562149277 -> 215.7111037 | H150: =(G150*E150)/5252 -> 109.3511129
A151: 145 | B151: 452 | C151: =A151+$C$3 -> 145 | D151: =($E$1-1)-(B151+$E$3) -> 605 | E151: =((C151-$J$1) *($H$2-$H$1)/($J$2-$J$1))+$H$1 -> 2665.661253 | F151: =((D151-($E$1-$J$3))*($H$4-$H$3)/($J$3-$J$4))+$H$3 -> 294.1456583 | G151: =F151*0.737562149277 -> 216.9507039 | H151: =(G151*E151)/5252 -> 110.1136872
A152: 145 | B152: 453 | C152: =A152+$C$3 -> 145 | D152: =($E$1-1)-(B152+$E$3) -> 604 | E152: =((C152-$J$1) *($H$2-$H$1)/($J$2-$J$1))+$H$1 -> 2665.661253 | F152: =((D152-($E$1-$J$3))*($H$4-$H$3)/($J$3-$J$4))+$H$3 -> 293.5854342 | G152: =F152*0.737562149277 -> 216.5375038 | H152: =(G152*E152)/5252 -> 109.9039668
A153: 145 | B153: 454 | C153: =A153+$C$3 -> 145 | D153: =($E$1-1)-(B153+$E$3) -> 603 | E153: =((C153-$J$1) *($H$2-$H$1)/($J$2-$J$1))+$H$1 -> 2665.661253 | F153: =((D153-($E$1-$J$3))*($H$4-$H$3)/($J$3-$J$4))+$H$3 -> 293.0252101 | G153: =F153*0.737562149277 -> 216.1243037 | H153: =(G153*E153)/5252 -> 109.6942464
A154: 145 | B154: 455 | C154: =A154+$C$3 -> 145 | D154: =($E$1-1)-(B154+$E$3) -> 602 | E154: =((C154-$J$1) *($H$2-$H$1)/($J$2-$J$1))+$H$1 -> 2665.661253 | F154: =((D154-($E$1-$J$3))*($H$4-$H$3)/($J$3-$J$4))+$H$3 -> 292.464986 | G154: =F154*0.737562149277 -> 215.7111037 | H154: =(G154*E154)/5252 -> 109.4845261
A155: 146 | B155: 452 | C155: =A155+$C$3 -> 146 | D155: =($E$1-1)-(B155+$E$3) -> 605 | E155: =((C155-$J$1) *($H$2-$H$1)/($J$2-$J$1))+$H$1 -> 2668.909513 | F155: =((D155-($E$1-$J$3))*($H$4-$H$3)/($J$3-$J$4))+$H$3 -> 294.1456583 | G155: =F155*0.737562149277 -> 216.9507039 | H155: =(G155*E155)/5252 -> 110.247867
A156: 146 | B156: 453 | C156: =A156+$C$3 -> 146 | D156: =($E$1-1)-(B156+$E$3) -> 604 | E156: =((C156-$J$1) *($H$2-$H$1)/($J$2-$J$1))+$H$1 -> 2668.909513 | F156: =((D156-($E$1-$J$3))*($H$4-$H$3)/($J$3-$J$4))+$H$3 -> 293.5854342 | G156: =F156*0.737562149277 -> 216.5375038 | H156: =(G156*E156)/5252 -> 110.0378911
A157: 146 | B157: 454 | C157: =A157+$C$3 -> 146 | D157: =($E$1-1)-(B157+$E$3) -> 603 | E157: =((C157-$J$1) *($H$2-$H$1)/($J$2-$J$1))+$H$1 -> 2668.909513 | F157: =((D157-($E$1-$J$3))*($H$4-$H$3)/($J$3-$J$4))+$H$3 -> 293.0252101 | G157: =F157*0.737562149277 -> 216.1243037 | H157: =(G157*E157)/5252 -> 109.8279151
A158: 146 | B158: 455 | C158: =A158+$C$3 -> 146 | D158: =($E$1-1)-(B158+$E$3) -> 602 | E158: =((C158-$J$1) *($H$2-$H$1)/($J$2-$J$1))+$H$1 -> 2668.909513 | F158: =((D158-($E$1-$J$3))*($H$4-$H$3)/($J$3-$J$4))+$H$3 -> 292.464986 | G158: =F158*0.737562149277 -> 215.7111037 | H158: =(G158*E158)/5252 -> 109.6179392
A159: 147 | B159: 452 | C159: =A159+$C$3 -> 147 | D159: =($E$1-1)-(B159+$E$3) -> 605 | E159: =((C159-$J$1) *($H$2-$H$1)/($J$2-$J$1))+$H$1 -> 2672.157773 | F159: =((D159-($E$1-$J$3))*($H$4-$H$3)/($J$3-$J$4))+$H$3 -> 294.1456583 | G159: =F159*0.737562149277 -> 216.9507039 | H159: =(G159*E159)/5252 -> 110.3820468
A160: 147 | B160: 453 | C160: =A160+$C$3 -> 147 | D160: =($E$1-1)-(B160+$E$3) -> 604 | E160: =((C160-$J$1) *($H$2-$H$1)/($J$2-$J$1))+$H$1 -> 2672.157773 | F160: =((D160-($E$1-$J$3))*($H$4-$H$3)/($J$3-$J$4))+$H$3 -> 293.5854342 | G160: =F160*0.737562149277 -> 216.5375038 | H160: =(G160*E160)/5252 -> 110.1718153
A161: 147 | B161: 454 | C161: =A161+$C$3 -> 147 | D161: =($E$1-1)-(B161+$E$3) -> 603 | E161: =((C161-$J$1) *($H$2-$H$1)/($J$2-$J$1))+$H$1 -> 2672.157773 | F161: =((D161-($E$1-$J$3))*($H$4-$H$3)/($J$3-$J$4))+$H$3 -> 293.0252101 | G161: =F161*0.737562149277 -> 216.1243037 | H161: =(G161*E161)/5252 -> 109.9615838
A162: 147 | B162: 455 | C162: =A162+$C$3 -> 147 | D162: =($E$1-1)-(B162+$E$3) -> 602 | E162: =((C162-$J$1) *($H$2-$H$1)/($J$2-$J$1))+$H$1 -> 2672.157773 | F162: =((D162-($E$1-$J$3))*($H$4-$H$3)/($J$3-$J$4))+$H$3 -> 292.464986 | G162: =F162*0.737562149277 -> 215.7111037 | H162: =(G162*E162)/5252 -> 109.7513523
A163: 148 | B163: 452 | C163: =A163+$C$3 -> 148 | D163: =($E$1-1)-(B163+$E$3) -> 605 | E163: =((C163-$J$1) *($H$2-$H$1)/($J$2-$J$1))+$H$1 -> 2675.406032 | F163: =((D163-($E$1-$J$3))*($H$4-$H$3)/($J$3-$J$4))+$H$3 -> 294.1456583 | G163: =F163*0.737562149277 -> 216.9507039 | H163: =(G163*E163)/5252 -> 110.5162266
A164: 148 | B164: 453 | C164: =A164+$C$3 -> 148 | D164: =($E$1-1)-(B164+$E$3) -> 604 | E164: =((C164-$J$1) *($H$2-$H$1)/($J$2-$J$1))+$H$1 -> 2675.406032 | F164: =((D164-($E$1-$J$3))*($H$4-$H$3)/($J$3-$J$4))+$H$3 -> 293.5854342 | G164: =F164*0.737562149277 -> 216.5375038 | H164: =(G164*E164)/5252 -> 110.3057395
A165: 149 | B165: 452 | C165: =A165+$C$3 -> 149 | D165: =($E$1-1)-(B165+$E$3) -> 605 | E165: =((C165-$J$1) *($H$2-$H$1)/($J$2-$J$1))+$H$1 -> 2678.654292 | F165: =((D165-($E$1-$J$3))*($H$4-$H$3)/($J$3-$J$4))+$H$3 -> 294.1456583 | G165: =F165*0.737562149277 -> 216.9507039 | H165: =(G165*E165)/5252 -> 110.6504064
A166: 149 | B166: 453 | C166: =A166+$C$3 -> 149 | D166: =($E$1-1)-(B166+$E$3) -> 604 | E166: =((C166-$J$1) *($H$2-$H$1)/($J$2-$J$1))+$H$1 -> 2678.654292 | F166: =((D166-($E$1-$J$3))*($H$4-$H$3)/($J$3-$J$4))+$H$3 -> 293.5854342 | G166: =F166*0.737562149277 -> 216.5375038 | H166: =(G166*E166)/5252 -> 110.4396638
A167: 150 | B167: 452 | C167: =A167+$C$3 -> 150 | D167: =($E$1-1)-(B167+$E$3) -> 605 | E167: =((C167-$J$1) *($H$2-$H$1)/($J$2-$J$1))+$H$1 -> 2681.902552 | F167: =((D167-($E$1-$J$3))*($H$4-$H$3)/($J$3-$J$4))+$H$3 -> 294.1456583 | G167: =F167*0.737562149277 -> 216.9507039 | H167: =(G167*E167)/5252 -> 110.7845862
A168: 150 | B168: 453 | C168: =A168+$C$3 -> 150 | D168: =($E$1-1)-(B168+$E$3) -> 604 | E168: =((C168-$J$1) *($H$2-$H$1)/($J$2-$J$1))+$H$1 -> 2681.902552 | F168: =((D168-($E$1-$J$3))*($H$4-$H$3)/($J$3-$J$4))+$H$3 -> 293.5854342 | G168: =F168*0.737562149277 -> 216.5375038 | H168: =(G168*E168)/5252 -> 110.573588
A169: 151 | B169: 452 | C169: =A169+$C$3 -> 151 | D169: =($E$1-1)-(B169+$E$3) -> 605 | E169: =((C169-$J$1) *($H$2-$H$1)/($J$2-$J$1))+$H$1 -> 2685.150812 | F169: =((D169-($E$1-$J$3))*($H$4-$H$3)/($J$3-$J$4))+$H$3 -> 294.1456583 | G169: =F169*0.737562149277 -> 216.9507039 | H169: =(G169*E169)/5252 -> 110.918766
A170: 151 | B170: 453 | C170: =A170+$C$3 -> 151 | D170: =($E$1-1)-(B170+$E$3) -> 604 | E170: =((C170-$J$1) *($H$2-$H$1)/($J$2-$J$1))+$H$1 -> 2685.150812 | F170: =((D170-($E$1-$J$3))*($H$4-$H$3)/($J$3-$J$4))+$H$3 -> 293.5854342 | G170: =F170*0.737562149277 -> 216.5375038 | H170: =(G170*E170)/5252 -> 110.7075122
A171: 152 | B171: 452 | C171: =A171+$C$3 -> 152 | D171: =($E$1-1)-(B171+$E$3) -> 605 | E171: =((C171-$J$1) *($H$2-$H$1)/($J$2-$J$1))+$H$1 -> 2688.399072 | F171: =((D171-($E$1-$J$3))*($H$4-$H$3)/($J$3-$J$4))+$H$3 -> 294.1456583 | G171: =F171*0.737562149277 -> 216.9507039 | H171: =(G171*E171)/5252 -> 111.0529457
A172: 152 | B172: 453 | C172: =A172+$C$3 -> 152 | D172: =($E$1-1)-(B172+$E$3) -> 604 | E172: =((C172-$J$1) *($H$2-$H$1)/($J$2-$J$1))+$H$1 -> 2688.399072 | F172: =((D172-($E$1-$J$3))*($H$4-$H$3)/($J$3-$J$4))+$H$3 -> 293.5854342 | G172: =F172*0.737562149277 -> 216.5375038 | H172: =(G172*E172)/5252 -> 110.8414365
A173: 153 | B173: 451 | C173: =A173+$C$3 -> 153 | D173: =($E$1-1)-(B173+$E$3) -> 606 | E173: =((C173-$J$1) *($H$2-$H$1)/($J$2-$J$1))+$H$1 -> 2691.647332 | F173: =((D173-($E$1-$J$3))*($H$4-$H$3)/($J$3-$J$4))+$H$3 -> 294.7058824 | G173: =F173*0.737562149277 -> 217.363904 | H173: =(G173*E173)/5252 -> 111.3988904
A174: 153 | B174: 452 | C174: =A174+$C$3 -> 153 | D174: =($E$1-1)-(B174+$E$3) -> 605 | E174: =((C174-$J$1) *($H$2-$H$1)/($J$2-$J$1))+$H$1 -> 2691.647332 | F174: =((D174-($E$1-$J$3))*($H$4-$H$3)/($J$3-$J$4))+$H$3 -> 294.1456583 | G174: =F174*0.737562149277 -> 216.9507039 | H174: =(G174*E174)/5252 -> 111.1871255
A175: 153 | B175: 453 | C175: =A175+$C$3 -> 153 | D175: =($E$1-1)-(B175+$E$3) -> 604 | E175: =((C175-$J$1) *($H$2-$H$1)/($J$2-$J$1))+$H$1 -> 2691.647332 | F175: =((D175-($E$1-$J$3))*($H$4-$H$3)/($J$3-$J$4))+$H$3 -> 293.5854342 | G175: =F175*0.737562149277 -> 216.5375038 | H175: =(G175*E175)/5252 -> 110.9753607
A176: 154 | B176: 450 | C176: =A176+$C$3 -> 154 | D176: =($E$1-1)-(B176+$E$3) -> 607 | E176: =((C176-$J$1) *($H$2-$H$1)/($J$2-$J$1))+$H$1 -> 2694.895592 | F176: =((D176-($E$1-$J$3))*($H$4-$H$3)/($J$3-$J$4))+$H$3 -> 295.2661064 | G176: =F176*0.737562149277 -> 217.7771041 | H176: =(G176*E176)/5252 -> 111.7453461
A177: 154 | B177: 451 | C177: =A177+$C$3 -> 154 | D177: =($E$1-1)-(B177+$E$3) -> 606 | E177: =((C177-$J$1) *($H$2-$H$1)/($J$2-$J$1))+$H$1 -> 2694.895592 | F177: =((D177-($E$1-$J$3))*($H$4-$H$3)/($J$3-$J$4))+$H$3 -> 294.7058824 | G177: =F177*0.737562149277 -> 217.363904 | H177: =(G177*E177)/5252 -> 111.5333257
A178: 154 | B178: 452 | C178: =A178+$C$3 -> 154 | D178: =($E$1-1)-(B178+$E$3) -> 605 | E178: =((C178-$J$1) *($H$2-$H$1)/($J$2-$J$1))+$H$1 -> 2694.895592 | F178: =((D178-($E$1-$J$3))*($H$4-$H$3)/($J$3-$J$4))+$H$3 -> 294.1456583 | G178: =F178*0.737562149277 -> 216.9507039 | H178: =(G178*E178)/5252 -> 111.3213053
A179: 154 | B179: 453 | C179: =A179+$C$3 -> 154 | D179: =($E$1-1)-(B179+$E$3) -> 604 | E179: =((C179-$J$1) *($H$2-$H$1)/($J$2-$J$1))+$H$1 -> 2694.895592 | F179: =((D179-($E$1-$J$3))*($H$4-$H$3)/($J$3-$J$4))+$H$3 -> 293.5854342 | G179: =F179*0.737562149277 -> 216.5375038 | H179: =(G179*E179)/5252 -> 111.1092849
A180: 155 | B180: 450 | C180: =A180+$C$3 -> 155 | D180: =($E$1-1)-(B180+$E$3) -> 607 | E180: =((C180-$J$1) *($H$2-$H$1)/($J$2-$J$1))+$H$1 -> 2698.143852 | F180: =((D180-($E$1-$J$3))*($H$4-$H$3)/($J$3-$J$4))+$H$3 -> 295.2661064 | G180: =F180*0.737562149277 -> 217.7771041 | H180: =(G180*E180)/5252 -> 111.880037
A181: 155 | B181: 451 | C181: =A181+$C$3 -> 155 | D181: =($E$1-1)-(B181+$E$3) -> 606 | E181: =((C181-$J$1) *($H$2-$H$1)/($J$2-$J$1))+$H$1 -> 2698.143852 | F181: =((D181-($E$1-$J$3))*($H$4-$H$3)/($J$3-$J$4))+$H$3 -> 294.7058824 | G181: =F181*0.737562149277 -> 217.363904 | H181: =(G181*E181)/5252 -> 111.6677611
A182: 155 | B182: 452 | C182: =A182+$C$3 -> 155 | D182: =($E$1-1)-(B182+$E$3) -> 605 | E182: =((C182-$J$1) *($H$2-$H$1)/($J$2-$J$1))+$H$1 -> 2698.143852 | F182: =((D182-($E$1-$J$3))*($H$4-$H$3)/($J$3-$J$4))+$H$3 -> 294.1456583 | G182: =F182*0.737562149277 -> 216.9507039 | H182: =(G182*E182)/5252 -> 111.4554851
A183: 156 | B183: 450 | C183: =A183+$C$3 -> 156 | D183: =($E$1-1)-(B183+$E$3) -> 607 | E183: =((C183-$J$1) *($H$2-$H$1)/($J$2-$J$1))+$H$1 -> 2701.392111 | F183: =((D183-($E$1-$J$3))*($H$4-$H$3)/($J$3-$J$4))+$H$3 -> 295.2661064 | G183: =F183*0.737562149277 -> 217.7771041 | H183: =(G183*E183)/5252 -> 112.0147279
A184: 156 | B184: 451 | C184: =A184+$C$3 -> 156 | D184: =($E$1-1)-(B184+$E$3) -> 606 | E184: =((C184-$J$1) *($H$2-$H$1)/($J$2-$J$1))+$H$1 -> 2701.392111 | F184: =((D184-($E$1-$J$3))*($H$4-$H$3)/($J$3-$J$4))+$H$3 -> 294.7058824 | G184: =F184*0.737562149277 -> 217.363904 | H184: =(G184*E184)/5252 -> 111.8021964
A185: 156 | B185: 452 | C185: =A185+$C$3 -> 156 | D185: =($E$1-1)-(B185+$E$3) -> 605 | E185: =((C185-$J$1) *($H$2-$H$1)/($J$2-$J$1))+$H$1 -> 2701.392111 | F185: =((D185-($E$1-$J$3))*($H$4-$H$3)/($J$3-$J$4))+$H$3 -> 294.1456583 | G185: =F185*0.737562149277 -> 216.9507039 | H185: =(G185*E185)/5252 -> 111.5896649
A186: 157 | B186: 450 | C186: =A186+$C$3 -> 157 | D186: =($E$1-1)-(B186+$E$3) -> 607 | E186: =((C186-$J$1) *($H$2-$H$1)/($J$2-$J$1))+$H$1 -> 2704.640371 | F186: =((D186-($E$1-$J$3))*($H$4-$H$3)/($J$3-$J$4))+$H$3 -> 295.2661064 | G186: =F186*0.737562149277 -> 217.7771041 | H186: =(G186*E186)/5252 -> 112.1494188
A187: 157 | B187: 451 | C187: =A187+$C$3 -> 157 | D187: =($E$1-1)-(B187+$E$3) -> 606 | E187: =((C187-$J$1) *($H$2-$H$1)/($J$2-$J$1))+$H$1 -> 2704.640371 | F187: =((D187-($E$1-$J$3))*($H$4-$H$3)/($J$3-$J$4))+$H$3 -> 294.7058824 | G187: =F187*0.737562149277 -> 217.363904 | H187: =(G187*E187)/5252 -> 111.9366318
A188: 158 | B188: 450 | C188: =A188+$C$3 -> 158 | D188: =($E$1-1)-(B188+$E$3) -> 607 | E188: =((C188-$J$1) *($H$2-$H$1)/($J$2-$J$1))+$H$1 -> 2707.888631 | F188: =((D188-($E$1-$J$3))*($H$4-$H$3)/($J$3-$J$4))+$H$3 -> 295.2661064 | G188: =F188*0.737562149277 -> 217.7771041 | H188: =(G188*E188)/5252 -> 112.2841097
A189: 158 | B189: 451 | C189: =A189+$C$3 -> 158 | D189: =($E$1-1)-(B189+$E$3) -> 606 | E189: =((C189-$J$1) *($H$2-$H$1)/($J$2-$J$1))+$H$1 -> 2707.888631 | F189: =((D189-($E$1-$J$3))*($H$4-$H$3)/($J$3-$J$4))+$H$3 -> 294.7058824 | G189: =F189*0.737562149277 -> 217.363904 | H189: =(G189*E189)/5252 -> 112.0710671
A190: 159 | B190: 450 | C190: =A190+$C$3 -> 159 | D190: =($E$1-1)-(B190+$E$3) -> 607 | E190: =((C190-$J$1) *($H$2-$H$1)/($J$2-$J$1))+$H$1 -> 2711.136891 | F190: =((D190-($E$1-$J$3))*($H$4-$H$3)/($J$3-$J$4))+$H$3 -> 295.2661064 | G190: =F190*0.737562149277 -> 217.7771041 | H190: =(G190*E190)/5252 -> 112.4188006
A191: 159 | B191: 451 | C191: =A191+$C$3 -> 159 | D191: =($E$1-1)-(B191+$E$3) -> 606 | E191: =((C191-$J$1) *($H$2-$H$1)/($J$2-$J$1))+$H$1 -> 2711.136891 | F191: =((D191-($E$1-$J$3))*($H$4-$H$3)/($J$3-$J$4))+$H$3 -> 294.7058824 | G191: =F191*0.737562149277 -> 217.363904 | H191: =(G191*E191)/5252 -> 112.2055025
A192: 160 | B192: 449 | C192: =A192+$C$3 -> 160 | D192: =($E$1-1)-(B192+$E$3) -> 608 | E192: =((C192-$J$1) *($H$2-$H$1)/($J$2-$J$1))+$H$1 -> 2714.385151 | F192: =((D192-($E$1-$J$3))*($H$4-$H$3)/($J$3-$J$4))+$H$3 -> 295.8263305 | G192: =F192*0.737562149277 -> 218.1903042 | H192: =(G192*E192)/5252 -> 112.7670453
A193: 160 | B193: 450 | C193: =A193+$C$3 -> 160 | D193: =($E$1-1)-(B193+$E$3) -> 607 | E193: =((C193-$J$1) *($H$2-$H$1)/($J$2-$J$1))+$H$1 -> 2714.385151 | F193: =((D193-($E$1-$J$3))*($H$4-$H$3)/($J$3-$J$4))+$H$3 -> 295.2661064 | G193: =F193*0.737562149277 -> 217.7771041 | H193: =(G193*E193)/5252 -> 112.5534915
A194: 160 | B194: 451 | C194: =A194+$C$3 -> 160 | D194: =($E$1-1)-(B194+$E$3) -> 606 | E194: =((C194-$J$1) *($H$2-$H$1)/($J$2-$J$1))+$H$1 -> 2714.385151 | F194: =((D194-($E$1-$J$3))*($H$4-$H$3)/($J$3-$J$4))+$H$3 -> 294.7058824 | G194: =F194*0.737562149277 -> 217.363904 | H194: =(G194*E194)/5252 -> 112.3399378
A195: 161 | B195: 448 | C195: =A195+$C$3 -> 161 | D195: =($E$1-1)-(B195+$E$3) -> 609 | E195: =((C195-$J$1) *($H$2-$H$1)/($J$2-$J$1))+$H$1 -> 2717.633411 | F195: =((D195-($E$1-$J$3))*($H$4-$H$3)/($J$3-$J$4))+$H$3 -> 296.3865546 | G195: =F195*0.737562149277 -> 218.6035042 | H195: =(G195*E195)/5252 -> 113.115801
A196: 161 | B196: 449 | C196: =A196+$C$3 -> 161 | D196: =($E$1-1)-(B196+$E$3) -> 608 | E196: =((C196-$J$1) *($H$2-$H$1)/($J$2-$J$1))+$H$1 -> 2717.633411 | F196: =((D196-($E$1-$J$3))*($H$4-$H$3)/($J$3-$J$4))+$H$3 -> 295.8263305 | G196: =F196*0.737562149277 -> 218.1903042 | H196: =(G196*E196)/5252 -> 112.9019917
A197: 161 | B197: 450 | C197: =A197+$C$3 -> 161 | D197: =($E$1-1)-(B197+$E$3) -> 607 | E197: =((C197-$J$1) *($H$2-$H$1)/($J$2-$J$1))+$H$1 -> 2717.633411 | F197: =((D197-($E$1-$J$3))*($H$4-$H$3)/($J$3-$J$4))+$H$3 -> 295.2661064 | G197: =F197*0.737562149277 -> 217.7771041 | H197: =(G197*E197)/5252 -> 112.6881824
A198: 161 | B198: 451 | C198: =A198+$C$3 -> 161 | D198: =($E$1-1)-(B198+$E$3) -> 606 | E198: =((C198-$J$1) *($H$2-$H$1)/($J$2-$J$1))+$H$1 -> 2717.633411 | F198: =((D198-($E$1-$J$3))*($H$4-$H$3)/($J$3-$J$4))+$H$3 -> 294.7058824 | G198: =F198*0.737562149277 -> 217.363904 | H198: =(G198*E198)/5252 -> 112.4743731
A199: 162 | B199: 448 | C199: =A199+$C$3 -> 162 | D199: =($E$1-1)-(B199+$E$3) -> 609 | E199: =((C199-$J$1) *($H$2-$H$1)/($J$2-$J$1))+$H$1 -> 2720.881671 | F199: =((D199-($E$1-$J$3))*($H$4-$H$3)/($J$3-$J$4))+$H$3 -> 296.3865546 | G199: =F199*0.737562149277 -> 218.6035042 | H199: =(G199*E199)/5252 -> 113.251003
A200: 162 | B200: 449 | C200: =A200+$C$3 -> 162 | D200: =($E$1-1)-(B200+$E$3) -> 608 | E200: =((C200-$J$1) *($H$2-$H$1)/($J$2-$J$1))+$H$1 -> 2720.881671 | F200: =((D200-($E$1-$J$3))*($H$4-$H$3)/($J$3-$J$4))+$H$3 -> 295.8263305 | G200: =F200*0.737562149277 -> 218.1903042 | H200: =(G200*E200)/5252 -> 113.0369382
... 4868 more rows

Sheet TVS
A1: Canvas Size | B1: X | C1: 1920 | D1: Y | E1: 1058 | G1: Min RPM | H1: 2500 | I1: X | J1: 94
A2: Overlay Size | B2: X | C2: 1920 | D2: Y | E2: 1058 | G2: Max RPM | H2: 8100 | I2: X | J2: 1818
A3: Overlay Start | B3: X | C3: 0 | D3: Y | E3: 0 | G3: Min-Y | H3: 130 | I3: Y | J3: 746
G4: Max-Y | H4: 530 | I4: Y | J4: 32
A5: X | B5: Y | C5: X' | D5: Y' | E5: RPM | F5: NM | G5: TQ | H5: HP
A6: 94 | B6: 234 | C6: =A6+$C$3 -> 94 | D6: =($E$1-1)-(B6+$E$3) -> 823 | E6: =((C6-$J$1) *($H$2-$H$1)/($J$2-$J$1))+$H$1 -> 2500 | F6: =((D6-($E$1-$J$3))*($H$4-$H$3)/($J$3-$J$4))+$H$3 -> 416.2745098 | G6: =F6*0.737562149277 -> 307.0283221 | H6: =(G6*E6)/5252 -> 146.1482874
A7: 94 | B7: 235 | C7: =A7+$C$3 -> 94 | D7: =($E$1-1)-(B7+$E$3) -> 822 | E7: =((C7-$J$1) *($H$2-$H$1)/($J$2-$J$1))+$H$1 -> 2500 | F7: =((D7-($E$1-$J$3))*($H$4-$H$3)/($J$3-$J$4))+$H$3 -> 415.7142857 | G7: =F7*0.737562149277 -> 306.6151221 | H7: =(G7*E7)/5252 -> 145.9516004
A8: 94 | B8: 236 | C8: =A8+$C$3 -> 94 | D8: =($E$1-1)-(B8+$E$3) -> 821 | E8: =((C8-$J$1) *($H$2-$H$1)/($J$2-$J$1))+$H$1 -> 2500 | F8: =((D8-($E$1-$J$3))*($H$4-$H$3)/($J$3-$J$4))+$H$3 -> 415.1540616 | G8: =F8*0.737562149277 -> 306.201922 | H8: =(G8*E8)/5252 -> 145.7549134
A9: 94 | B9: 237 | C9: =A9+$C$3 -> 94 | D9: =($E$1-1)-(B9+$E$3) -> 820 | E9: =((C9-$J$1) *($H$2-$H$1)/($J$2-$J$1))+$H$1 -> 2500 | F9: =((D9-($E$1-$J$3))*($H$4-$H$3)/($J$3-$J$4))+$H$3 -> 414.5938375 | G9: =F9*0.737562149277 -> 305.7887219 | H9: =(G9*E9)/5252 -> 145.5582263
A10: 95 | B10: 233 | C10: =A10+$C$3 -> 95 | D10: =($E$1-1)-(B10+$E$3) -> 824 | E10: =((C10-$J$1) *($H$2-$H$1)/($J$2-$J$1))+$H$1 -> 2503.24826 | F10: =((D10-($E$1-$J$3))*($H$4-$H$3)/($J$3-$J$4))+$H$3 -> 416.8347339 | G10: =F10*0.737562149277 -> 307.4415222 | H10: =(G10*E10)/5252 -> 146.535121
A11: 95 | B11: 234 | C11: =A11+$C$3 -> 95 | D11: =($E$1-1)-(B11+$E$3) -> 823 | E11: =((C11-$J$1) *($H$2-$H$1)/($J$2-$J$1))+$H$1 -> 2503.24826 | F11: =((D11-($E$1-$J$3))*($H$4-$H$3)/($J$3-$J$4))+$H$3 -> 416.2745098 | G11: =F11*0.737562149277 -> 307.0283221 | H11: =(G11*E11)/5252 -> 146.3381784
A12: 95 | B12: 235 | C12: =A12+$C$3 -> 95 | D12: =($E$1-1)-(B12+$E$3) -> 822 | E12: =((C12-$J$1) *($H$2-$H$1)/($J$2-$J$1))+$H$1 -> 2503.24826 | F12: =((D12-($E$1-$J$3))*($H$4-$H$3)/($J$3-$J$4))+$H$3 -> 415.7142857 | G12: =F12*0.737562149277 -> 306.6151221 | H12: =(G12*E12)/5252 -> 146.1412359
A13: 95 | B13: 236 | C13: =A13+$C$3 -> 95 | D13: =($E$1-1)-(B13+$E$3) -> 821 | E13: =((C13-$J$1) *($H$2-$H$1)/($J$2-$J$1))+$H$1 -> 2503.24826 | F13: =((D13-($E$1-$J$3))*($H$4-$H$3)/($J$3-$J$4))+$H$3 -> 415.1540616 | G13: =F13*0.737562149277 -> 306.201922 | H13: =(G13*E13)/5252 -> 145.9442933
A14: 95 | B14: 237 | C14: =A14+$C$3 -> 95 | D14: =($E$1-1)-(B14+$E$3) -> 820 | E14: =((C14-$J$1) *($H$2-$H$1)/($J$2-$J$1))+$H$1 -> 2503.24826 | F14: =((D14-($E$1-$J$3))*($H$4-$H$3)/($J$3-$J$4))+$H$3 -> 414.5938375 | G14: =F14*0.737562149277 -> 305.7887219 | H14: =(G14*E14)/5252 -> 145.7473507
A15: 96 | B15: 233 | C15: =A15+$C$3 -> 96 | D15: =($E$1-1)-(B15+$E$3) -> 824 | E15: =((C15-$J$1) *($H$2-$H$1)/($J$2-$J$1))+$H$1 -> 2506.49652 | F15: =((D15-($E$1-$J$3))*($H$4-$H$3)/($J$3-$J$4))+$H$3 -> 416.8347339 | G15: =F15*0.737562149277 -> 307.4415222 | H15: =(G15*E15)/5252 -> 146.7252676
A16: 96 | B16: 234 | C16: =A16+$C$3 -> 96 | D16: =($E$1-1)-(B16+$E$3) -> 823 | E16: =((C16-$J$1) *($H$2-$H$1)/($J$2-$J$1))+$H$1 -> 2506.49652 | F16: =((D16-($E$1-$J$3))*($H$4-$H$3)/($J$3-$J$4))+$H$3 -> 416.2745098 | G16: =F16*0.737562149277 -> 307.0283221 | H16: =(G16*E16)/5252 -> 146.5280695
A17: 96 | B17: 235 | C17: =A17+$C$3 -> 96 | D17: =($E$1-1)-(B17+$E$3) -> 822 | E17: =((C17-$J$1) *($H$2-$H$1)/($J$2-$J$1))+$H$1 -> 2506.49652 | F17: =((D17-($E$1-$J$3))*($H$4-$H$3)/($J$3-$J$4))+$H$3 -> 415.7142857 | G17: =F17*0.737562149277 -> 306.6151221 | H17: =(G17*E17)/5252 -> 146.3308713
A18: 96 | B18: 236 | C18: =A18+$C$3 -> 96 | D18: =($E$1-1)-(B18+$E$3) -> 821 | E18: =((C18-$J$1) *($H$2-$H$1)/($J$2-$J$1))+$H$1 -> 2506.49652 | F18: =((D18-($E$1-$J$3))*($H$4-$H$3)/($J$3-$J$4))+$H$3 -> 415.1540616 | G18: =F18*0.737562149277 -> 306.201922 | H18: =(G18*E18)/5252 -> 146.1336732
A19: 96 | B19: 237 | C19: =A19+$C$3 -> 96 | D19: =($E$1-1)-(B19+$E$3) -> 820 | E19: =((C19-$J$1) *($H$2-$H$1)/($J$2-$J$1))+$H$1 -> 2506.49652 | F19: =((D19-($E$1-$J$3))*($H$4-$H$3)/($J$3-$J$4))+$H$3 -> 414.5938375 | G19: =F19*0.737562149277 -> 305.7887219 | H19: =(G19*E19)/5252 -> 145.9364751
A20: 97 | B20: 234 | C20: =A20+$C$3 -> 97 | D20: =($E$1-1)-(B20+$E$3) -> 823 | E20: =((C20-$J$1) *($H$2-$H$1)/($J$2-$J$1))+$H$1 -> 2509.74478 | F20: =((D20-($E$1-$J$3))*($H$4-$H$3)/($J$3-$J$4))+$H$3 -> 416.2745098 | G20: =F20*0.737562149277 -> 307.0283221 | H20: =(G20*E20)/5252 -> 146.7179605
A21: 97 | B21: 235 | C21: =A21+$C$3 -> 97 | D21: =($E$1-1)-(B21+$E$3) -> 822 | E21: =((C21-$J$1) *($H$2-$H$1)/($J$2-$J$1))+$H$1 -> 2509.74478 | F21: =((D21-($E$1-$J$3))*($H$4-$H$3)/($J$3-$J$4))+$H$3 -> 415.7142857 | G21: =F21*0.737562149277 -> 306.6151221 | H21: =(G21*E21)/5252 -> 146.5205068
A22: 97 | B22: 236 | C22: =A22+$C$3 -> 97 | D22: =($E$1-1)-(B22+$E$3) -> 821 | E22: =((C22-$J$1) *($H$2-$H$1)/($J$2-$J$1))+$H$1 -> 2509.74478 | F22: =((D22-($E$1-$J$3))*($H$4-$H$3)/($J$3-$J$4))+$H$3 -> 415.1540616 | G22: =F22*0.737562149277 -> 306.201922 | H22: =(G22*E22)/5252 -> 146.3230532
A23: 97 | B23: 237 | C23: =A23+$C$3 -> 97 | D23: =($E$1-1)-(B23+$E$3) -> 820 | E23: =((C23-$J$1) *($H$2-$H$1)/($J$2-$J$1))+$H$1 -> 2509.74478 | F23: =((D23-($E$1-$J$3))*($H$4-$H$3)/($J$3-$J$4))+$H$3 -> 414.5938375 | G23: =F23*0.737562149277 -> 305.7887219 | H23: =(G23*E23)/5252 -> 146.1255995
A24: 98 | B24: 234 | C24: =A24+$C$3 -> 98 | D24: =($E$1-1)-(B24+$E$3) -> 823 | E24: =((C24-$J$1) *($H$2-$H$1)/($J$2-$J$1))+$H$1 -> 2512.993039 | F24: =((D24-($E$1-$J$3))*($H$4-$H$3)/($J$3-$J$4))+$H$3 -> 416.2745098 | G24: =F24*0.737562149277 -> 307.0283221 | H24: =(G24*E24)/5252 -> 146.9078516
A25: 98 | B25: 235 | C25: =A25+$C$3 -> 98 | D25: =($E$1-1)-(B25+$E$3) -> 822 | E25: =((C25-$J$1) *($H$2-$H$1)/($J$2-$J$1))+$H$1 -> 2512.993039 | F25: =((D25-($E$1-$J$3))*($H$4-$H$3)/($J$3-$J$4))+$H$3 -> 415.7142857 | G25: =F25*0.737562149277 -> 306.6151221 | H25: =(G25*E25)/5252 -> 146.7101423
A26: 98 | B26: 236 | C26: =A26+$C$3 -> 98 | D26: =($E$1-1)-(B26+$E$3) -> 821 | E26: =((C26-$J$1) *($H$2-$H$1)/($J$2-$J$1))+$H$1 -> 2512.993039 | F26: =((D26-($E$1-$J$3))*($H$4-$H$3)/($J$3-$J$4))+$H$3 -> 415.1540616 | G26: =F26*0.737562149277 -> 306.201922 | H26: =(G26*E26)/5252 -> 146.5124331
A27: 98 | B27: 237 | C27: =A27+$C$3 -> 98 | D27: =($E$1-1)-(B27+$E$3) -> 820 | E27: =((C27-$J$1) *($H$2-$H$1)/($J$2-$J$1))+$H$1 -> 2512.993039 | F27: =((D27-($E$1-$J$3))*($H$4-$H$3)/($J$3-$J$4))+$H$3 -> 414.5938375 | G27: =F27*0.737562149277 -> 305.7887219 | H27: =(G27*E27)/5252 -> 146.3147238
A28: 99 | B28: 234 | C28: =A28+$C$3 -> 99 | D28: =($E$1-1)-(B28+$E$3) -> 823 | E28: =((C28-$J$1) *($H$2-$H$1)/($J$2-$J$1))+$H$1 -> 2516.241299 | F28: =((D28-($E$1-$J$3))*($H$4-$H$3)/($J$3-$J$4))+$H$3 -> 416.2745098 | G28: =F28*0.737562149277 -> 307.0283221 | H28: =(G28*E28)/5252 -> 147.0977426
A29: 99 | B29: 235 | C29: =A29+$C$3 -> 99 | D29: =($E$1-1)-(B29+$E$3) -> 822 | E29: =((C29-$J$1) *($H$2-$H$1)/($J$2-$J$1))+$H$1 -> 2516.241299 | F29: =((D29-($E$1-$J$3))*($H$4-$H$3)/($J$3-$J$4))+$H$3 -> 415.7142857 | G29: =F29*0.737562149277 -> 306.6151221 | H29: =(G29*E29)/5252 -> 146.8997778
A30: 99 | B30: 236 | C30: =A30+$C$3 -> 99 | D30: =($E$1-1)-(B30+$E$3) -> 821 | E30: =((C30-$J$1) *($H$2-$H$1)/($J$2-$J$1))+$H$1 -> 2516.241299 | F30: =((D30-($E$1-$J$3))*($H$4-$H$3)/($J$3-$J$4))+$H$3 -> 415.1540616 | G30: =F30*0.737562149277 -> 306.201922 | H30: =(G30*E30)/5252 -> 146.701813
A31: 99 | B31: 237 | C31: =A31+$C$3 -> 99 | D31: =($E$1-1)-(B31+$E$3) -> 820 | E31: =((C31-$J$1) *($H$2-$H$1)/($J$2-$J$1))+$H$1 -> 2516.241299 | F31: =((D31-($E$1-$J$3))*($H$4-$H$3)/($J$3-$J$4))+$H$3 -> 414.5938375 | G31: =F31*0.737562149277 -> 305.7887219 | H31: =(G31*E31)/5252 -> 146.5038482
A32: 100 | B32: 234 | C32: =A32+$C$3 -> 100 | D32: =($E$1-1)-(B32+$E$3) -> 823 | E32: =((C32-$J$1) *($H$2-$H$1)/($J$2-$J$1))+$H$1 -> 2519.489559 | F32: =((D32-($E$1-$J$3))*($H$4-$H$3)/($J$3-$J$4))+$H$3 -> 416.2745098 | G32: =F32*0.737562149277 -> 307.0283221 | H32: =(G32*E32)/5252 -> 147.2876337
A33: 100 | B33: 235 | C33: =A33+$C$3 -> 100 | D33: =($E$1-1)-(B33+$E$3) -> 822 | E33: =((C33-$J$1) *($H$2-$H$1)/($J$2-$J$1))+$H$1 -> 2519.489559 | F33: =((D33-($E$1-$J$3))*($H$4-$H$3)/($J$3-$J$4))+$H$3 -> 415.7142857 | G33: =F33*0.737562149277 -> 306.6151221 | H33: =(G33*E33)/5252 -> 147.0894133
A34: 100 | B34: 236 | C34: =A34+$C$3 -> 100 | D34: =($E$1-1)-(B34+$E$3) -> 821 | E34: =((C34-$J$1) *($H$2-$H$1)/($J$2-$J$1))+$H$1 -> 2519.489559 | F34: =((D34-($E$1-$J$3))*($H$4-$H$3)/($J$3-$J$4))+$H$3 -> 415.1540616 | G34: =F34*0.737562149277 -> 306.201922 | H34: =(G34*E34)/5252 -> 146.891193
A35: 100 | B35: 237 | C35: =A35+$C$3 -> 100 | D35: =($E$1-1)-(B35+$E$3) -> 820 | E35: =((C35-$J$1) *($H$2-$H$1)/($J$2-$J$1))+$H$1 -> 2519.489559 | F35: =((D35-($E$1-$J$3))*($H$4-$H$3)/($J$3-$J$4))+$H$3 -> 414.5938375 | G35: =F35*0.737562149277 -> 305.7887219 | H35: =(G35*E35)/5252 -> 146.6929726
A36: 101 | B36: 234 | C36: =A36+$C$3 -> 101 | D36: =($E$1-1)-(B36+$E$3) -> 823 | E36: =((C36-$J$1) *($H$2-$H$1)/($J$2-$J$1))+$H$1 -> 2522.737819 | F36: =((D36-($E$1-$J$3))*($H$4-$H$3)/($J$3-$J$4))+$H$3 -> 416.2745098 | G36: =F36*0.737562149277 -> 307.0283221 | H36: =(G36*E36)/5252 -> 147.4775247
A37: 101 | B37: 235 | C37: =A37+$C$3 -> 101 | D37: =($E$1-1)-(B37+$E$3) -> 822 | E37: =((C37-$J$1) *($H$2-$H$1)/($J$2-$J$1))+$H$1 -> 2522.737819 | F37: =((D37-($E$1-$J$3))*($H$4-$H$3)/($J$3-$J$4))+$H$3 -> 415.7142857 | G37: =F37*0.737562149277 -> 306.6151221 | H37: =(G37*E37)/5252 -> 147.2790488
A38: 101 | B38: 236 | C38: =A38+$C$3 -> 101 | D38: =($E$1-1)-(B38+$E$3) -> 821 | E38: =((C38-$J$1) *($H$2-$H$1)/($J$2-$J$1))+$H$1 -> 2522.737819 | F38: =((D38-($E$1-$J$3))*($H$4-$H$3)/($J$3-$J$4))+$H$3 -> 415.1540616 | G38: =F38*0.737562149277 -> 306.201922 | H38: =(G38*E38)/5252 -> 147.0805729
A39: 101 | B39: 237 | C39: =A39+$C$3 -> 101 | D39: =($E$1-1)-(B39+$E$3) -> 820 | E39: =((C39-$J$1) *($H$2-$H$1)/($J$2-$J$1))+$H$1 -> 2522.737819 | F39: =((D39-($E$1-$J$3))*($H$4-$H$3)/($J$3-$J$4))+$H$3 -> 414.5938375 | G39: =F39*0.737562149277 -> 305.7887219 | H39: =(G39*E39)/5252 -> 146.882097
A40: 102 | B40: 234 | C40: =A40+$C$3 -> 102 | D40: =($E$1-1)-(B40+$E$3) -> 823 | E40: =((C40-$J$1) *($H$2-$H$1)/($J$2-$J$1))+$H$1 -> 2525.986079 | F40: =((D40-($E$1-$J$3))*($H$4-$H$3)/($J$3-$J$4))+$H$3 -> 416.2745098 | G40: =F40*0.737562149277 -> 307.0283221 | H40: =(G40*E40)/5252 -> 147.6674158
A41: 102 | B41: 235 | C41: =A41+$C$3 -> 102 | D41: =($E$1-1)-(B41+$E$3) -> 822 | E41: =((C41-$J$1) *($H$2-$H$1)/($J$2-$J$1))+$H$1 -> 2525.986079 | F41: =((D41-($E$1-$J$3))*($H$4-$H$3)/($J$3-$J$4))+$H$3 -> 415.7142857 | G41: =F41*0.737562149277 -> 306.6151221 | H41: =(G41*E41)/5252 -> 147.4686843
A42: 102 | B42: 236 | C42: =A42+$C$3 -> 102 | D42: =($E$1-1)-(B42+$E$3) -> 821 | E42: =((C42-$J$1) *($H$2-$H$1)/($J$2-$J$1))+$H$1 -> 2525.986079 | F42: =((D42-($E$1-$J$3))*($H$4-$H$3)/($J$3-$J$4))+$H$3 -> 415.1540616 | G42: =F42*0.737562149277 -> 306.201922 | H42: =(G42*E42)/5252 -> 147.2699528
A43: 102 | B43: 237 | C43: =A43+$C$3 -> 102 | D43: =($E$1-1)-(B43+$E$3) -> 820 | E43: =((C43-$J$1) *($H$2-$H$1)/($J$2-$J$1))+$H$1 -> 2525.986079 | F43: =((D43-($E$1-$J$3))*($H$4-$H$3)/($J$3-$J$4))+$H$3 -> 414.5938375 | G43: =F43*0.737562149277 -> 305.7887219 | H43: =(G43*E43)/5252 -> 147.0712214
A44: 103 | B44: 233 | C44: =A44+$C$3 -> 103 | D44: =($E$1-1)-(B44+$E$3) -> 824 | E44: =((C44-$J$1) *($H$2-$H$1)/($J$2-$J$1))+$H$1 -> 2529.234339 | F44: =((D44-($E$1-$J$3))*($H$4-$H$3)/($J$3-$J$4))+$H$3 -> 416.8347339 | G44: =F44*0.737562149277 -> 307.4415222 | H44: =(G44*E44)/5252 -> 148.0562938
A45: 103 | B45: 234 | C45: =A45+$C$3 -> 103 | D45: =($E$1-1)-(B45+$E$3) -> 823 | E45: =((C45-$J$1) *($H$2-$H$1)/($J$2-$J$1))+$H$1 -> 2529.234339 | F45: =((D45-($E$1-$J$3))*($H$4-$H$3)/($J$3-$J$4))+$H$3 -> 416.2745098 | G45: =F45*0.737562149277 -> 307.0283221 | H45: =(G45*E45)/5252 -> 147.8573068
A46: 103 | B46: 235 | C46: =A46+$C$3 -> 103 | D46: =($E$1-1)-(B46+$E$3) -> 822 | E46: =((C46-$J$1) *($H$2-$H$1)/($J$2-$J$1))+$H$1 -> 2529.234339 | F46: =((D46-($E$1-$J$3))*($H$4-$H$3)/($J$3-$J$4))+$H$3 -> 415.7142857 | G46: =F46*0.737562149277 -> 306.6151221 | H46: =(G46*E46)/5252 -> 147.6583198
A47: 103 | B47: 236 | C47: =A47+$C$3 -> 103 | D47: =($E$1-1)-(B47+$E$3) -> 821 | E47: =((C47-$J$1) *($H$2-$H$1)/($J$2-$J$1))+$H$1 -> 2529.234339 | F47: =((D47-($E$1-$J$3))*($H$4-$H$3)/($J$3-$J$4))+$H$3 -> 415.1540616 | G47: =F47*0.737562149277 -> 306.201922 | H47: =(G47*E47)/5252 -> 147.4593328
A48: 103 | B48: 237 | C48: =A48+$C$3 -> 103 | D48: =($E$1-1)-(B48+$E$3) -> 820 | E48: =((C48-$J$1) *($H$2-$H$1)/($J$2-$J$1))+$H$1 -> 2529.234339 | F48: =((D48-($E$1-$J$3))*($H$4-$H$3)/($J$3-$J$4))+$H$3 -> 414.5938375 | G48: =F48*0.737562149277 -> 305.7887219 | H48: =(G48*E48)/5252 -> 147.2603457
A49: 104 | B49: 232 | C49: =A49+$C$3 -> 104 | D49: =($E$1-1)-(B49+$E$3) -> 825 | E49: =((C49-$J$1) *($H$2-$H$1)/($J$2-$J$1))+$H$1 -> 2532.482599 | F49: =((D49-($E$1-$J$3))*($H$4-$H$3)/($J$3-$J$4))+$H$3 -> 417.394958 | G49: =F49*0.737562149277 -> 307.8547223 | H49: =(G49*E49)/5252 -> 148.445683
A50: 104 | B50: 233 | C50: =A50+$C$3 -> 104 | D50: =($E$1-1)-(B50+$E$3) -> 824 | E50: =((C50-$J$1) *($H$2-$H$1)/($J$2-$J$1))+$H$1 -> 2532.482599 | F50: =((D50-($E$1-$J$3))*($H$4-$H$3)/($J$3-$J$4))+$H$3 -> 416.8347339 | G50: =F50*0.737562149277 -> 307.4415222 | H50: =(G50*E50)/5252 -> 148.2464404
A51: 104 | B51: 234 | C51: =A51+$C$3 -> 104 | D51: =($E$1-1)-(B51+$E$3) -> 823 | E51: =((C51-$J$1) *($H$2-$H$1)/($J$2-$J$1))+$H$1 -> 2532.482599 | F51: =((D51-($E$1-$J$3))*($H$4-$H$3)/($J$3-$J$4))+$H$3 -> 416.2745098 | G51: =F51*0.737562149277 -> 307.0283221 | H51: =(G51*E51)/5252 -> 148.0471978
A52: 104 | B52: 235 | C52: =A52+$C$3 -> 104 | D52: =($E$1-1)-(B52+$E$3) -> 822 | E52: =((C52-$J$1) *($H$2-$H$1)/($J$2-$J$1))+$H$1 -> 2532.482599 | F52: =((D52-($E$1-$J$3))*($H$4-$H$3)/($J$3-$J$4))+$H$3 -> 415.7142857 | G52: =F52*0.737562149277 -> 306.6151221 | H52: =(G52*E52)/5252 -> 147.8479553
A53: 104 | B53: 236 | C53: =A53+$C$3 -> 104 | D53: =($E$1-1)-(B53+$E$3) -> 821 | E53: =((C53-$J$1) *($H$2-$H$1)/($J$2-$J$1))+$H$1 -> 2532.482599 | F53: =((D53-($E$1-$J$3))*($H$4-$H$3)/($J$3-$J$4))+$H$3 -> 415.1540616 | G53: =F53*0.737562149277 -> 306.201922 | H53: =(G53*E53)/5252 -> 147.6487127
A54: 104 | B54: 237 | C54: =A54+$C$3 -> 104 | D54: =($E$1-1)-(B54+$E$3) -> 820 | E54: =((C54-$J$1) *($H$2-$H$1)/($J$2-$J$1))+$H$1 -> 2532.482599 | F54: =((D54-($E$1-$J$3))*($H$4-$H$3)/($J$3-$J$4))+$H$3 -> 414.5938375 | G54: =F54*0.737562149277 -> 305.7887219 | H54: =(G54*E54)/5252 -> 147.4494701
A55: 105 | B55: 232 | C55: =A55+$C$3 -> 105 | D55: =($E$1-1)-(B55+$E$3) -> 825 | E55: =((C55-$J$1) *($H$2-$H$1)/($J$2-$J$1))+$H$1 -> 2535.730858 | F55: =((D55-($E$1-$J$3))*($H$4-$H$3)/($J$3-$J$4))+$H$3 -> 417.394958 | G55: =F55*0.737562149277 -> 307.8547223 | H55: =(G55*E55)/5252 -> 148.6360852
A56: 105 | B56: 233 | C56: =A56+$C$3 -> 105 | D56: =($E$1-1)-(B56+$E$3) -> 824 | E56: =((C56-$J$1) *($H$2-$H$1)/($J$2-$J$1))+$H$1 -> 2535.730858 | F56: =((D56-($E$1-$J$3))*($H$4-$H$3)/($J$3-$J$4))+$H$3 -> 416.8347339 | G56: =F56*0.737562149277 -> 307.4415222 | H56: =(G56*E56)/5252 -> 148.436587
A57: 105 | B57: 234 | C57: =A57+$C$3 -> 105 | D57: =($E$1-1)-(B57+$E$3) -> 823 | E57: =((C57-$J$1) *($H$2-$H$1)/($J$2-$J$1))+$H$1 -> 2535.730858 | F57: =((D57-($E$1-$J$3))*($H$4-$H$3)/($J$3-$J$4))+$H$3 -> 416.2745098 | G57: =F57*0.737562149277 -> 307.0283221 | H57: =(G57*E57)/5252 -> 148.2370889
A58: 105 | B58: 235 | C58: =A58+$C$3 -> 105 | D58: =($E$1-1)-(B58+$E$3) -> 822 | E58: =((C58-$J$1) *($H$2-$H$1)/($J$2-$J$1))+$H$1 -> 2535.730858 | F58: =((D58-($E$1-$J$3))*($H$4-$H$3)/($J$3-$J$4))+$H$3 -> 415.7142857 | G58: =F58*0.737562149277 -> 306.6151221 | H58: =(G58*E58)/5252 -> 148.0375908
A59: 105 | B59: 236 | C59: =A59+$C$3 -> 105 | D59: =($E$1-1)-(B59+$E$3) -> 821 | E59: =((C59-$J$1) *($H$2-$H$1)/($J$2-$J$1))+$H$1 -> 2535.730858 | F59: =((D59-($E$1-$J$3))*($H$4-$H$3)/($J$3-$J$4))+$H$3 -> 415.1540616 | G59: =F59*0.737562149277 -> 306.201922 | H59: =(G59*E59)/5252 -> 147.8380926
A60: 105 | B60: 237 | C60: =A60+$C$3 -> 105 | D60: =($E$1-1)-(B60+$E$3) -> 820 | E60: =((C60-$J$1) *($H$2-$H$1)/($J$2-$J$1))+$H$1 -> 2535.730858 | F60: =((D60-($E$1-$J$3))*($H$4-$H$3)/($J$3-$J$4))+$H$3 -> 414.5938375 | G60: =F60*0.737562149277 -> 305.7887219 | H60: =(G60*E60)/5252 -> 147.6385945
A61: 106 | B61: 232 | C61: =A61+$C$3 -> 106 | D61: =($E$1-1)-(B61+$E$3) -> 825 | E61: =((C61-$J$1) *($H$2-$H$1)/($J$2-$J$1))+$H$1 -> 2538.979118 | F61: =((D61-($E$1-$J$3))*($H$4-$H$3)/($J$3-$J$4))+$H$3 -> 417.394958 | G61: =F61*0.737562149277 -> 307.8547223 | H61: =(G61*E61)/5252 -> 148.8264873
A62: 106 | B62: 233 | C62: =A62+$C$3 -> 106 | D62: =($E$1-1)-(B62+$E$3) -> 824 | E62: =((C62-$J$1) *($H$2-$H$1)/($J$2-$J$1))+$H$1 -> 2538.979118 | F62: =((D62-($E$1-$J$3))*($H$4-$H$3)/($J$3-$J$4))+$H$3 -> 416.8347339 | G62: =F62*0.737562149277 -> 307.4415222 | H62: =(G62*E62)/5252 -> 148.6267336
A63: 106 | B63: 234 | C63: =A63+$C$3 -> 106 | D63: =($E$1-1)-(B63+$E$3) -> 823 | E63: =((C63-$J$1) *($H$2-$H$1)/($J$2-$J$1))+$H$1 -> 2538.979118 | F63: =((D63-($E$1-$J$3))*($H$4-$H$3)/($J$3-$J$4))+$H$3 -> 416.2745098 | G63: =F63*0.737562149277 -> 307.0283221 | H63: =(G63*E63)/5252 -> 148.4269799
A64: 106 | B64: 235 | C64: =A64+$C$3 -> 106 | D64: =($E$1-1)-(B64+$E$3) -> 822 | E64: =((C64-$J$1) *($H$2-$H$1)/($J$2-$J$1))+$H$1 -> 2538.979118 | F64: =((D64-($E$1-$J$3))*($H$4-$H$3)/($J$3-$J$4))+$H$3 -> 415.7142857 | G64: =F64*0.737562149277 -> 306.6151221 | H64: =(G64*E64)/5252 -> 148.2272263
A65: 106 | B65: 236 | C65: =A65+$C$3 -> 106 | D65: =($E$1-1)-(B65+$E$3) -> 821 | E65: =((C65-$J$1) *($H$2-$H$1)/($J$2-$J$1))+$H$1 -> 2538.979118 | F65: =((D65-($E$1-$J$3))*($H$4-$H$3)/($J$3-$J$4))+$H$3 -> 415.1540616 | G65: =F65*0.737562149277 -> 306.201922 | H65: =(G65*E65)/5252 -> 148.0274726
A66: 106 | B66: 237 | C66: =A66+$C$3 -> 106 | D66: =($E$1-1)-(B66+$E$3) -> 820 | E66: =((C66-$J$1) *($H$2-$H$1)/($J$2-$J$1))+$H$1 -> 2538.979118 | F66: =((D66-($E$1-$J$3))*($H$4-$H$3)/($J$3-$J$4))+$H$3 -> 414.5938375 | G66: =F66*0.737562149277 -> 305.7887219 | H66: =(G66*E66)/5252 -> 147.8277189
A67: 107 | B67: 232 | C67: =A67+$C$3 -> 107 | D67: =($E$1-1)-(B67+$E$3) -> 825 | E67: =((C67-$J$1) *($H$2-$H$1)/($J$2-$J$1))+$H$1 -> 2542.227378 | F67: =((D67-($E$1-$J$3))*($H$4-$H$3)/($J$3-$J$4))+$H$3 -> 417.394958 | G67: =F67*0.737562149277 -> 307.8547223 | H67: =(G67*E67)/5252 -> 149.0168895
A68: 107 | B68: 233 | C68: =A68+$C$3 -> 107 | D68: =($E$1-1)-(B68+$E$3) -> 824 | E68: =((C68-$J$1) *($H$2-$H$1)/($J$2-$J$1))+$H$1 -> 2542.227378 | F68: =((D68-($E$1-$J$3))*($H$4-$H$3)/($J$3-$J$4))+$H$3 -> 416.8347339 | G68: =F68*0.737562149277 -> 307.4415222 | H68: =(G68*E68)/5252 -> 148.8168802
A69: 107 | B69: 234 | C69: =A69+$C$3 -> 107 | D69: =($E$1-1)-(B69+$E$3) -> 823 | E69: =((C69-$J$1) *($H$2-$H$1)/($J$2-$J$1))+$H$1 -> 2542.227378 | F69: =((D69-($E$1-$J$3))*($H$4-$H$3)/($J$3-$J$4))+$H$3 -> 416.2745098 | G69: =F69*0.737562149277 -> 307.0283221 | H69: =(G69*E69)/5252 -> 148.616871
A70: 107 | B70: 235 | C70: =A70+$C$3 -> 107 | D70: =($E$1-1)-(B70+$E$3) -> 822 | E70: =((C70-$J$1) *($H$2-$H$1)/($J$2-$J$1))+$H$1 -> 2542.227378 | F70: =((D70-($E$1-$J$3))*($H$4-$H$3)/($J$3-$J$4))+$H$3 -> 415.7142857 | G70: =F70*0.737562149277 -> 306.6151221 | H70: =(G70*E70)/5252 -> 148.4168617
A71: 107 | B71: 236 | C71: =A71+$C$3 -> 107 | D71: =($E$1-1)-(B71+$E$3) -> 821 | E71: =((C71-$J$1) *($H$2-$H$1)/($J$2-$J$1))+$H$1 -> 2542.227378 | F71: =((D71-($E$1-$J$3))*($H$4-$H$3)/($J$3-$J$4))+$H$3 -> 415.1540616 | G71: =F71*0.737562149277 -> 306.201922 | H71: =(G71*E71)/5252 -> 148.2168525
A72: 107 | B72: 237 | C72: =A72+$C$3 -> 107 | D72: =($E$1-1)-(B72+$E$3) -> 820 | E72: =((C72-$J$1) *($H$2-$H$1)/($J$2-$J$1))+$H$1 -> 2542.227378 | F72: =((D72-($E$1-$J$3))*($H$4-$H$3)/($J$3-$J$4))+$H$3 -> 414.5938375 | G72: =F72*0.737562149277 -> 305.7887219 | H72: =(G72*E72)/5252 -> 148.0168432
A73: 108 | B73: 232 | C73: =A73+$C$3 -> 108 | D73: =($E$1-1)-(B73+$E$3) -> 825 | E73: =((C73-$J$1) *($H$2-$H$1)/($J$2-$J$1))+$H$1 -> 2545.475638 | F73: =((D73-($E$1-$J$3))*($H$4-$H$3)/($J$3-$J$4))+$H$3 -> 417.394958 | G73: =F73*0.737562149277 -> 307.8547223 | H73: =(G73*E73)/5252 -> 149.2072916
A74: 108 | B74: 233 | C74: =A74+$C$3 -> 108 | D74: =($E$1-1)-(B74+$E$3) -> 824 | E74: =((C74-$J$1) *($H$2-$H$1)/($J$2-$J$1))+$H$1 -> 2545.475638 | F74: =((D74-($E$1-$J$3))*($H$4-$H$3)/($J$3-$J$4))+$H$3 -> 416.8347339 | G74: =F74*0.737562149277 -> 307.4415222 | H74: =(G74*E74)/5252 -> 149.0070268
A75: 108 | B75: 234 | C75: =A75+$C$3 -> 108 | D75: =($E$1-1)-(B75+$E$3) -> 823 | E75: =((C75-$J$1) *($H$2-$H$1)/($J$2-$J$1))+$H$1 -> 2545.475638 | F75: =((D75-($E$1-$J$3))*($H$4-$H$3)/($J$3-$J$4))+$H$3 -> 416.2745098 | G75: =F75*0.737562149277 -> 307.0283221 | H75: =(G75*E75)/5252 -> 148.806762
A76: 108 | B76: 235 | C76: =A76+$C$3 -> 108 | D76: =($E$1-1)-(B76+$E$3) -> 822 | E76: =((C76-$J$1) *($H$2-$H$1)/($J$2-$J$1))+$H$1 -> 2545.475638 | F76: =((D76-($E$1-$J$3))*($H$4-$H$3)/($J$3-$J$4))+$H$3 -> 415.7142857 | G76: =F76*0.737562149277 -> 306.6151221 | H76: =(G76*E76)/5252 -> 148.6064972
A77: 108 | B77: 236 | C77: =A77+$C$3 -> 108 | D77: =($E$1-1)-(B77+$E$3) -> 821 | E77: =((C77-$J$1) *($H$2-$H$1)/($J$2-$J$1))+$H$1 -> 2545.475638 | F77: =((D77-($E$1-$J$3))*($H$4-$H$3)/($J$3-$J$4))+$H$3 -> 415.1540616 | G77: =F77*0.737562149277 -> 306.201922 | H77: =(G77*E77)/5252 -> 148.4062324
A78: 108 | B78: 237 | C78: =A78+$C$3 -> 108 | D78: =($E$1-1)-(B78+$E$3) -> 820 | E78: =((C78-$J$1) *($H$2-$H$1)/($J$2-$J$1))+$H$1 -> 2545.475638 | F78: =((D78-($E$1-$J$3))*($H$4-$H$3)/($J$3-$J$4))+$H$3 -> 414.5938375 | G78: =F78*0.737562149277 -> 305.7887219 | H78: =(G78*E78)/5252 -> 148.2059676
A79: 109 | B79: 232 | C79: =A79+$C$3 -> 109 | D79: =($E$1-1)-(B79+$E$3) -> 825 | E79: =((C79-$J$1) *($H$2-$H$1)/($J$2-$J$1))+$H$1 -> 2548.723898 | F79: =((D79-($E$1-$J$3))*($H$4-$H$3)/($J$3-$J$4))+$H$3 -> 417.394958 | G79: =F79*0.737562149277 -> 307.8547223 | H79: =(G79*E79)/5252 -> 149.3976938
A80: 109 | B80: 233 | C80: =A80+$C$3 -> 109 | D80: =($E$1-1)-(B80+$E$3) -> 824 | E80: =((C80-$J$1) *($H$2-$H$1)/($J$2-$J$1))+$H$1 -> 2548.723898 | F80: =((D80-($E$1-$J$3))*($H$4-$H$3)/($J$3-$J$4))+$H$3 -> 416.8347339 | G80: =F80*0.737562149277 -> 307.4415222 | H80: =(G80*E80)/5252 -> 149.1971734
A81: 109 | B81: 234 | C81: =A81+$C$3 -> 109 | D81: =($E$1-1)-(B81+$E$3) -> 823 | E81: =((C81-$J$1) *($H$2-$H$1)/($J$2-$J$1))+$H$1 -> 2548.723898 | F81: =((D81-($E$1-$J$3))*($H$4-$H$3)/($J$3-$J$4))+$H$3 -> 416.2745098 | G81: =F81*0.737562149277 -> 307.0283221 | H81: =(G81*E81)/5252 -> 148.9966531
A82: 109 | B82: 235 | C82: =A82+$C$3 -> 109 | D82: =($E$1-1)-(B82+$E$3) -> 822 | E82: =((C82-$J$1) *($H$2-$H$1)/($J$2-$J$1))+$H$1 -> 2548.723898 | F82: =((D82-($E$1-$J$3))*($H$4-$H$3)/($J$3-$J$4))+$H$3 -> 415.7142857 | G82: =F82*0.737562149277 -> 306.6151221 | H82: =(G82*E82)/5252 -> 148.7961327
A83: 109 | B83: 236 | C83: =A83+$C$3 -> 109 | D83: =($E$1-1)-(B83+$E$3) -> 821 | E83: =((C83-$J$1) *($H$2-$H$1)/($J$2-$J$1))+$H$1 -> 2548.723898 | F83: =((D83-($E$1-$J$3))*($H$4-$H$3)/($J$3-$J$4))+$H$3 -> 415.1540616 | G83: =F83*0.737562149277 -> 306.201922 | H83: =(G83*E83)/5252 -> 148.5956124
A84: 109 | B84: 237 | C84: =A84+$C$3 -> 109 | D84: =($E$1-1)-(B84+$E$3) -> 820 | E84: =((C84-$J$1) *($H$2-$H$1)/($J$2-$J$1))+$H$1 -> 2548.723898 | F84: =((D84-($E$1-$J$3))*($H$4-$H$3)/($J$3-$J$4))+$H$3 -> 414.5938375 | G84: =F84*0.737562149277 -> 305.7887219 | H84: =(G84*E84)/5252 -> 148.395092
A85: 110 | B85: 232 | C85: =A85+$C$3 -> 110 | D85: =($E$1-1)-(B85+$E$3) -> 825 | E85: =((C85-$J$1) *($H$2-$H$1)/($J$2-$J$1))+$H$1 -> 2551.972158 | F85: =((D85-($E$1-$J$3))*($H$4-$H$3)/($J$3-$J$4))+$H$3 -> 417.394958 | G85: =F85*0.737562149277 -> 307.8547223 | H85: =(G85*E85)/5252 -> 149.588096
A86: 110 | B86: 233 | C86: =A86+$C$3 -> 110 | D86: =($E$1-1)-(B86+$E$3) -> 824 | E86: =((C86-$J$1) *($H$2-$H$1)/($J$2-$J$1))+$H$1 -> 2551.972158 | F86: =((D86-($E$1-$J$3))*($H$4-$H$3)/($J$3-$J$4))+$H$3 -> 416.8347339 | G86: =F86*0.737562149277 -> 307.4415222 | H86: =(G86*E86)/5252 -> 149.38732
A87: 110 | B87: 234 | C87: =A87+$C$3 -> 110 | D87: =($E$1-1)-(B87+$E$3) -> 823 | E87: =((C87-$J$1) *($H$2-$H$1)/($J$2-$J$1))+$H$1 -> 2551.972158 | F87: =((D87-($E$1-$J$3))*($H$4-$H$3)/($J$3-$J$4))+$H$3 -> 416.2745098 | G87: =F87*0.737562149277 -> 307.0283221 | H87: =(G87*E87)/5252 -> 149.1865441
A88: 110 | B88: 235 | C88: =A88+$C$3 -> 110 | D88: =($E$1-1)-(B88+$E$3) -> 822 | E88: =((C88-$J$1) *($H$2-$H$1)/($J$2-$J$1))+$H$1 -> 2551.972158 | F88: =((D88-($E$1-$J$3))*($H$4-$H$3)/($J$3-$J$4))+$H$3 -> 415.7142857 | G88: =F88*0.737562149277 -> 306.6151221 | H88: =(G88*E88)/5252 -> 148.9857682
A89: 110 | B89: 236 | C89: =A89+$C$3 -> 110 | D89: =($E$1-1)-(B89+$E$3) -> 821 | E89: =((C89-$J$1) *($H$2-$H$1)/($J$2-$J$1))+$H$1 -> 2551.972158 | F89: =((D89-($E$1-$J$3))*($H$4-$H$3)/($J$3-$J$4))+$H$3 -> 415.1540616 | G89: =F89*0.737562149277 -> 306.201922 | H89: =(G89*E89)/5252 -> 148.7849923
A90: 110 | B90: 237 | C90: =A90+$C$3 -> 110 | D90: =($E$1-1)-(B90+$E$3) -> 820 | E90: =((C90-$J$1) *($H$2-$H$1)/($J$2-$J$1))+$H$1 -> 2551.972158 | F90: =((D90-($E$1-$J$3))*($H$4-$H$3)/($J$3-$J$4))+$H$3 -> 414.5938375 | G90: =F90*0.737562149277 -> 305.7887219 | H90: =(G90*E90)/5252 -> 148.5842164
A91: 111 | B91: 232 | C91: =A91+$C$3 -> 111 | D91: =($E$1-1)-(B91+$E$3) -> 825 | E91: =((C91-$J$1) *($H$2-$H$1)/($J$2-$J$1))+$H$1 -> 2555.220418 | F91: =((D91-($E$1-$J$3))*($H$4-$H$3)/($J$3-$J$4))+$H$3 -> 417.394958 | G91: =F91*0.737562149277 -> 307.8547223 | H91: =(G91*E91)/5252 -> 149.7784981
A92: 111 | B92: 233 | C92: =A92+$C$3 -> 111 | D92: =($E$1-1)-(B92+$E$3) -> 824 | E92: =((C92-$J$1) *($H$2-$H$1)/($J$2-$J$1))+$H$1 -> 2555.220418 | F92: =((D92-($E$1-$J$3))*($H$4-$H$3)/($J$3-$J$4))+$H$3 -> 416.8347339 | G92: =F92*0.737562149277 -> 307.4415222 | H92: =(G92*E92)/5252 -> 149.5774666
A93: 111 | B93: 234 | C93: =A93+$C$3 -> 111 | D93: =($E$1-1)-(B93+$E$3) -> 823 | E93: =((C93-$J$1) *($H$2-$H$1)/($J$2-$J$1))+$H$1 -> 2555.220418 | F93: =((D93-($E$1-$J$3))*($H$4-$H$3)/($J$3-$J$4))+$H$3 -> 416.2745098 | G93: =F93*0.737562149277 -> 307.0283221 | H93: =(G93*E93)/5252 -> 149.3764352
A94: 111 | B94: 235 | C94: =A94+$C$3 -> 111 | D94: =($E$1-1)-(B94+$E$3) -> 822 | E94: =((C94-$J$1) *($H$2-$H$1)/($J$2-$J$1))+$H$1 -> 2555.220418 | F94: =((D94-($E$1-$J$3))*($H$4-$H$3)/($J$3-$J$4))+$H$3 -> 415.7142857 | G94: =F94*0.737562149277 -> 306.6151221 | H94: =(G94*E94)/5252 -> 149.1754037
A95: 111 | B95: 236 | C95: =A95+$C$3 -> 111 | D95: =($E$1-1)-(B95+$E$3) -> 821 | E95: =((C95-$J$1) *($H$2-$H$1)/($J$2-$J$1))+$H$1 -> 2555.220418 | F95: =((D95-($E$1-$J$3))*($H$4-$H$3)/($J$3-$J$4))+$H$3 -> 415.1540616 | G95: =F95*0.737562149277 -> 306.201922 | H95: =(G95*E95)/5252 -> 148.9743722
A96: 111 | B96: 237 | C96: =A96+$C$3 -> 111 | D96: =($E$1-1)-(B96+$E$3) -> 820 | E96: =((C96-$J$1) *($H$2-$H$1)/($J$2-$J$1))+$H$1 -> 2555.220418 | F96: =((D96-($E$1-$J$3))*($H$4-$H$3)/($J$3-$J$4))+$H$3 -> 414.5938375 | G96: =F96*0.737562149277 -> 305.7887219 | H96: =(G96*E96)/5252 -> 148.7733408
A97: 112 | B97: 232 | C97: =A97+$C$3 -> 112 | D97: =($E$1-1)-(B97+$E$3) -> 825 | E97: =((C97-$J$1) *($H$2-$H$1)/($J$2-$J$1))+$H$1 -> 2558.468677 | F97: =((D97-($E$1-$J$3))*($H$4-$H$3)/($J$3-$J$4))+$H$3 -> 417.394958 | G97: =F97*0.737562149277 -> 307.8547223 | H97: =(G97*E97)/5252 -> 149.9689003
A98: 112 | B98: 233 | C98: =A98+$C$3 -> 112 | D98: =($E$1-1)-(B98+$E$3) -> 824 | E98: =((C98-$J$1) *($H$2-$H$1)/($J$2-$J$1))+$H$1 -> 2558.468677 | F98: =((D98-($E$1-$J$3))*($H$4-$H$3)/($J$3-$J$4))+$H$3 -> 416.8347339 | G98: =F98*0.737562149277 -> 307.4415222 | H98: =(G98*E98)/5252 -> 149.7676132
A99: 112 | B99: 234 | C99: =A99+$C$3 -> 112 | D99: =($E$1-1)-(B99+$E$3) -> 823 | E99: =((C99-$J$1) *($H$2-$H$1)/($J$2-$J$1))+$H$1 -> 2558.468677 | F99: =((D99-($E$1-$J$3))*($H$4-$H$3)/($J$3-$J$4))+$H$3 -> 416.2745098 | G99: =F99*0.737562149277 -> 307.0283221 | H99: =(G99*E99)/5252 -> 149.5663262
A100: 112 | B100: 235 | C100: =A100+$C$3 -> 112 | D100: =($E$1-1)-(B100+$E$3) -> 822 | E100: =((C100-$J$1) *($H$2-$H$1)/($J$2-$J$1))+$H$1 -> 2558.468677 | F100: =((D100-($E$1-$J$3))*($H$4-$H$3)/($J$3-$J$4))+$H$3 -> 415.7142857 | G100: =F100*0.737562149277 -> 306.6151221 | H100: =(G100*E100)/5252 -> 149.3650392
A101: 112 | B101: 236 | C101: =A101+$C$3 -> 112 | D101: =($E$1-1)-(B101+$E$3) -> 821 | E101: =((C101-$J$1) *($H$2-$H$1)/($J$2-$J$1))+$H$1 -> 2558.468677 | F101: =((D101-($E$1-$J$3))*($H$4-$H$3)/($J$3-$J$4))+$H$3 -> 415.1540616 | G101: =F101*0.737562149277 -> 306.201922 | H101: =(G101*E101)/5252 -> 149.1637522
A102: 113 | B102: 232 | C102: =A102+$C$3 -> 113 | D102: =($E$1-1)-(B102+$E$3) -> 825 | E102: =((C102-$J$1) *($H$2-$H$1)/($J$2-$J$1))+$H$1 -> 2561.716937 | F102: =((D102-($E$1-$J$3))*($H$4-$H$3)/($J$3-$J$4))+$H$3 -> 417.394958 | G102: =F102*0.737562149277 -> 307.8547223 | H102: =(G102*E102)/5252 -> 150.1593024
A103: 113 | B103: 233 | C103: =A103+$C$3 -> 113 | D103: =($E$1-1)-(B103+$E$3) -> 824 | E103: =((C103-$J$1) *($H$2-$H$1)/($J$2-$J$1))+$H$1 -> 2561.716937 | F103: =((D103-($E$1-$J$3))*($H$4-$H$3)/($J$3-$J$4))+$H$3 -> 416.8347339 | G103: =F103*0.737562149277 -> 307.4415222 | H103: =(G103*E103)/5252 -> 149.9577598
A104: 113 | B104: 234 | C104: =A104+$C$3 -> 113 | D104: =($E$1-1)-(B104+$E$3) -> 823 | E104: =((C104-$J$1) *($H$2-$H$1)/($J$2-$J$1))+$H$1 -> 2561.716937 | F104: =((D104-($E$1-$J$3))*($H$4-$H$3)/($J$3-$J$4))+$H$3 -> 416.2745098 | G104: =F104*0.737562149277 -> 307.0283221 | H104: =(G104*E104)/5252 -> 149.7562173
A105: 113 | B105: 235 | C105: =A105+$C$3 -> 113 | D105: =($E$1-1)-(B105+$E$3) -> 822 | E105: =((C105-$J$1) *($H$2-$H$1)/($J$2-$J$1))+$H$1 -> 2561.716937 | F105: =((D105-($E$1-$J$3))*($H$4-$H$3)/($J$3-$J$4))+$H$3 -> 415.7142857 | G105: =F105*0.737562149277 -> 306.6151221 | H105: =(G105*E105)/5252 -> 149.5546747
A106: 114 | B106: 232 | C106: =A106+$C$3 -> 114 | D106: =($E$1-1)-(B106+$E$3) -> 825 | E106: =((C106-$J$1) *($H$2-$H$1)/($J$2-$J$1))+$H$1 -> 2564.965197 | F106: =((D106-($E$1-$J$3))*($H$4-$H$3)/($J$3-$J$4))+$H$3 -> 417.394958 | G106: =F106*0.737562149277 -> 307.8547223 | H106: =(G106*E106)/5252 -> 150.3497046
A107: 114 | B107: 233 | C107: =A107+$C$3 -> 114 | D107: =($E$1-1)-(B107+$E$3) -> 824 | E107: =((C107-$J$1) *($H$2-$H$1)/($J$2-$J$1))+$H$1 -> 2564.965197 | F107: =((D107-($E$1-$J$3))*($H$4-$H$3)/($J$3-$J$4))+$H$3 -> 416.8347339 | G107: =F107*0.737562149277 -> 307.4415222 | H107: =(G107*E107)/5252 -> 150.1479065
A108: 114 | B108: 234 | C108: =A108+$C$3 -> 114 | D108: =($E$1-1)-(B108+$E$3) -> 823 | E108: =((C108-$J$1) *($H$2-$H$1)/($J$2-$J$1))+$H$1 -> 2564.965197 | F108: =((D108-($E$1-$J$3))*($H$4-$H$3)/($J$3-$J$4))+$H$3 -> 416.2745098 | G108: =F108*0.737562149277 -> 307.0283221 | H108: =(G108*E108)/5252 -> 149.9461083
A109: 114 | B109: 235 | C109: =A109+$C$3 -> 114 | D109: =($E$1-1)-(B109+$E$3) -> 822 | E109: =((C109-$J$1) *($H$2-$H$1)/($J$2-$J$1))+$H$1 -> 2564.965197 | F109: =((D109-($E$1-$J$3))*($H$4-$H$3)/($J$3-$J$4))+$H$3 -> 415.7142857 | G109: =F109*0.737562149277 -> 306.6151221 | H109: =(G109*E109)/5252 -> 149.7443102
A110: 115 | B110: 232 | C110: =A110+$C$3 -> 115 | D110: =($E$1-1)-(B110+$E$3) -> 825 | E110: =((C110-$J$1) *($H$2-$H$1)/($J$2-$J$1))+$H$1 -> 2568.213457 | F110: =((D110-($E$1-$J$3))*($H$4-$H$3)/($J$3-$J$4))+$H$3 -> 417.394958 | G110: =F110*0.737562149277 -> 307.8547223 | H110: =(G110*E110)/5252 -> 150.5401068
A111: 115 | B111: 233 | C111: =A111+$C$3 -> 115 | D111: =($E$1-1)-(B111+$E$3) -> 824 | E111: =((C111-$J$1) *($H$2-$H$1)/($J$2-$J$1))+$H$1 -> 2568.213457 | F111: =((D111-($E$1-$J$3))*($H$4-$H$3)/($J$3-$J$4))+$H$3 -> 416.8347339 | G111: =F111*0.737562149277 -> 307.4415222 | H111: =(G111*E111)/5252 -> 150.3380531
A112: 115 | B112: 234 | C112: =A112+$C$3 -> 115 | D112: =($E$1-1)-(B112+$E$3) -> 823 | E112: =((C112-$J$1) *($H$2-$H$1)/($J$2-$J$1))+$H$1 -> 2568.213457 | F112: =((D112-($E$1-$J$3))*($H$4-$H$3)/($J$3-$J$4))+$H$3 -> 416.2745098 | G112: =F112*0.737562149277 -> 307.0283221 | H112: =(G112*E112)/5252 -> 150.1359994
A113: 115 | B113: 235 | C113: =A113+$C$3 -> 115 | D113: =($E$1-1)-(B113+$E$3) -> 822 | E113: =((C113-$J$1) *($H$2-$H$1)/($J$2-$J$1))+$H$1 -> 2568.213457 | F113: =((D113-($E$1-$J$3))*($H$4-$H$3)/($J$3-$J$4))+$H$3 -> 415.7142857 | G113: =F113*0.737562149277 -> 306.6151221 | H113: =(G113*E113)/5252 -> 149.9339457
A114: 116 | B114: 232 | C114: =A114+$C$3 -> 116 | D114: =($E$1-1)-(B114+$E$3) -> 825 | E114: =((C114-$J$1) *($H$2-$H$1)/($J$2-$J$1))+$H$1 -> 2571.461717 | F114: =((D114-($E$1-$J$3))*($H$4-$H$3)/($J$3-$J$4))+$H$3 -> 417.394958 | G114: =F114*0.737562149277 -> 307.8547223 | H114: =(G114*E114)/5252 -> 150.7305089
A115: 116 | B115: 233 | C115: =A115+$C$3 -> 116 | D115: =($E$1-1)-(B115+$E$3) -> 824 | E115: =((C115-$J$1) *($H$2-$H$1)/($J$2-$J$1))+$H$1 -> 2571.461717 | F115: =((D115-($E$1-$J$3))*($H$4-$H$3)/($J$3-$J$4))+$H$3 -> 416.8347339 | G115: =F115*0.737562149277 -> 307.4415222 | H115: =(G115*E115)/5252 -> 150.5281997
A116: 116 | B116: 234 | C116: =A116+$C$3 -> 116 | D116: =($E$1-1)-(B116+$E$3) -> 823 | E116: =((C116-$J$1) *($H$2-$H$1)/($J$2-$J$1))+$H$1 -> 2571.461717 | F116: =((D116-($E$1-$J$3))*($H$4-$H$3)/($J$3-$J$4))+$H$3 -> 416.2745098 | G116: =F116*0.737562149277 -> 307.0283221 | H116: =(G116*E116)/5252 -> 150.3258904
A117: 116 | B117: 235 | C117: =A117+$C$3 -> 116 | D117: =($E$1-1)-(B117+$E$3) -> 822 | E117: =((C117-$J$1) *($H$2-$H$1)/($J$2-$J$1))+$H$1 -> 2571.461717 | F117: =((D117-($E$1-$J$3))*($H$4-$H$3)/($J$3-$J$4))+$H$3 -> 415.7142857 | G117: =F117*0.737562149277 -> 306.6151221 | H117: =(G117*E117)/5252 -> 150.1235812
A118: 117 | B118: 232 | C118: =A118+$C$3 -> 117 | D118: =($E$1-1)-(B118+$E$3) -> 825 | E118: =((C118-$J$1) *($H$2-$H$1)/($J$2-$J$1))+$H$1 -> 2574.709977 | F118: =((D118-($E$1-$J$3))*($H$4-$H$3)/($J$3-$J$4))+$H$3 -> 417.394958 | G118: =F118*0.737562149277 -> 307.8547223 | H118: =(G118*E118)/5252 -> 150.9209111
A119: 117 | B119: 233 | C119: =A119+$C$3 -> 117 | D119: =($E$1-1)-(B119+$E$3) -> 824 | E119: =((C119-$J$1) *($H$2-$H$1)/($J$2-$J$1))+$H$1 -> 2574.709977 | F119: =((D119-($E$1-$J$3))*($H$4-$H$3)/($J$3-$J$4))+$H$3 -> 416.8347339 | G119: =F119*0.737562149277 -> 307.4415222 | H119: =(G119*E119)/5252 -> 150.7183463
A120: 117 | B120: 234 | C120: =A120+$C$3 -> 117 | D120: =($E$1-1)-(B120+$E$3) -> 823 | E120: =((C120-$J$1) *($H$2-$H$1)/($J$2-$J$1))+$H$1 -> 2574.709977 | F120: =((D120-($E$1-$J$3))*($H$4-$H$3)/($J$3-$J$4))+$H$3 -> 416.2745098 | G120: =F120*0.737562149277 -> 307.0283221 | H120: =(G120*E120)/5252 -> 150.5157814
A121: 117 | B121: 235 | C121: =A121+$C$3 -> 117 | D121: =($E$1-1)-(B121+$E$3) -> 822 | E121: =((C121-$J$1) *($H$2-$H$1)/($J$2-$J$1))+$H$1 -> 2574.709977 | F121: =((D121-($E$1-$J$3))*($H$4-$H$3)/($J$3-$J$4))+$H$3 -> 415.7142857 | G121: =F121*0.737562149277 -> 306.6151221 | H121: =(G121*E121)/5252 -> 150.3132166
A122: 118 | B122: 230 | C122: =A122+$C$3 -> 118 | D122: =($E$1-1)-(B122+$E$3) -> 827 | E122: =((C122-$J$1) *($H$2-$H$1)/($J$2-$J$1))+$H$1 -> 2577.958237 | F122: =((D122-($E$1-$J$3))*($H$4-$H$3)/($J$3-$J$4))+$H$3 -> 418.5154062 | G122: =F122*0.737562149277 -> 308.6811225 | H122: =(G122*E122)/5252 -> 151.516954
A123: 118 | B123: 231 | C123: =A123+$C$3 -> 118 | D123: =($E$1-1)-(B123+$E$3) -> 826 | E123: =((C123-$J$1) *($H$2-$H$1)/($J$2-$J$1))+$H$1 -> 2577.958237 | F123: =((D123-($E$1-$J$3))*($H$4-$H$3)/($J$3-$J$4))+$H$3 -> 417.9551821 | G123: =F123*0.737562149277 -> 308.2679224 | H123: =(G123*E123)/5252 -> 151.3141336
A124: 118 | B124: 232 | C124: =A124+$C$3 -> 118 | D124: =($E$1-1)-(B124+$E$3) -> 825 | E124: =((C124-$J$1) *($H$2-$H$1)/($J$2-$J$1))+$H$1 -> 2577.958237 | F124: =((D124-($E$1-$J$3))*($H$4-$H$3)/($J$3-$J$4))+$H$3 -> 417.394958 | G124: =F124*0.737562149277 -> 307.8547223 | H124: =(G124*E124)/5252 -> 151.1113132
A125: 118 | B125: 233 | C125: =A125+$C$3 -> 118 | D125: =($E$1-1)-(B125+$E$3) -> 824 | E125: =((C125-$J$1) *($H$2-$H$1)/($J$2-$J$1))+$H$1 -> 2577.958237 | F125: =((D125-($E$1-$J$3))*($H$4-$H$3)/($J$3-$J$4))+$H$3 -> 416.8347339 | G125: =F125*0.737562149277 -> 307.4415222 | H125: =(G125*E125)/5252 -> 150.9084929
A126: 118 | B126: 234 | C126: =A126+$C$3 -> 118 | D126: =($E$1-1)-(B126+$E$3) -> 823 | E126: =((C126-$J$1) *($H$2-$H$1)/($J$2-$J$1))+$H$1 -> 2577.958237 | F126: =((D126-($E$1-$J$3))*($H$4-$H$3)/($J$3-$J$4))+$H$3 -> 416.2745098 | G126: =F126*0.737562149277 -> 307.0283221 | H126: =(G126*E126)/5252 -> 150.7056725
A127: 118 | B127: 235 | C127: =A127+$C$3 -> 118 | D127: =($E$1-1)-(B127+$E$3) -> 822 | E127: =((C127-$J$1) *($H$2-$H$1)/($J$2-$J$1))+$H$1 -> 2577.958237 | F127: =((D127-($E$1-$J$3))*($H$4-$H$3)/($J$3-$J$4))+$H$3 -> 415.7142857 | G127: =F127*0.737562149277 -> 306.6151221 | H127: =(G127*E127)/5252 -> 150.5028521
A128: 119 | B128: 230 | C128: =A128+$C$3 -> 119 | D128: =($E$1-1)-(B128+$E$3) -> 827 | E128: =((C128-$J$1) *($H$2-$H$1)/($J$2-$J$1))+$H$1 -> 2581.206497 | F128: =((D128-($E$1-$J$3))*($H$4-$H$3)/($J$3-$J$4))+$H$3 -> 418.5154062 | G128: =F128*0.737562149277 -> 308.6811225 | H128: =(G128*E128)/5252 -> 151.7078672
A129: 119 | B129: 231 | C129: =A129+$C$3 -> 119 | D129: =($E$1-1)-(B129+$E$3) -> 826 | E129: =((C129-$J$1) *($H$2-$H$1)/($J$2-$J$1))+$H$1 -> 2581.206497 | F129: =((D129-($E$1-$J$3))*($H$4-$H$3)/($J$3-$J$4))+$H$3 -> 417.9551821 | G129: =F129*0.737562149277 -> 308.2679224 | H129: =(G129*E129)/5252 -> 151.5047913
A130: 119 | B130: 232 | C130: =A130+$C$3 -> 119 | D130: =($E$1-1)-(B130+$E$3) -> 825 | E130: =((C130-$J$1) *($H$2-$H$1)/($J$2-$J$1))+$H$1 -> 2581.206497 | F130: =((D130-($E$1-$J$3))*($H$4-$H$3)/($J$3-$J$4))+$H$3 -> 417.394958 | G130: =F130*0.737562149277 -> 307.8547223 | H130: =(G130*E130)/5252 -> 151.3017154
A131: 119 | B131: 233 | C131: =A131+$C$3 -> 119 | D131: =($E$1-1)-(B131+$E$3) -> 824 | E131: =((C131-$J$1) *($H$2-$H$1)/($J$2-$J$1))+$H$1 -> 2581.206497 | F131: =((D131-($E$1-$J$3))*($H$4-$H$3)/($J$3-$J$4))+$H$3 -> 416.8347339 | G131: =F131*0.737562149277 -> 307.4415222 | H131: =(G131*E131)/5252 -> 151.0986395
A132: 119 | B132: 234 | C132: =A132+$C$3 -> 119 | D132: =($E$1-1)-(B132+$E$3) -> 823 | E132: =((C132-$J$1) *($H$2-$H$1)/($J$2-$J$1))+$H$1 -> 2581.206497 | F132: =((D132-($E$1-$J$3))*($H$4-$H$3)/($J$3-$J$4))+$H$3 -> 416.2745098 | G132: =F132*0.737562149277 -> 307.0283221 | H132: =(G132*E132)/5252 -> 150.8955635
A133: 119 | B133: 235 | C133: =A133+$C$3 -> 119 | D133: =($E$1-1)-(B133+$E$3) -> 822 | E133: =((C133-$J$1) *($H$2-$H$1)/($J$2-$J$1))+$H$1 -> 2581.206497 | F133: =((D133-($E$1-$J$3))*($H$4-$H$3)/($J$3-$J$4))+$H$3 -> 415.7142857 | G133: =F133*0.737562149277 -> 306.6151221 | H133: =(G133*E133)/5252 -> 150.6924876
A134: 120 | B134: 230 | C134: =A134+$C$3 -> 120 | D134: =($E$1-1)-(B134+$E$3) -> 827 | E134: =((C134-$J$1) *($H$2-$H$1)/($J$2-$J$1))+$H$1 -> 2584.454756 | F134: =((D134-($E$1-$J$3))*($H$4-$H$3)/($J$3-$J$4))+$H$3 -> 418.5154062 | G134: =F134*0.737562149277 -> 308.6811225 | H134: =(G134*E134)/5252 -> 151.8987805
A135: 120 | B135: 231 | C135: =A135+$C$3 -> 120 | D135: =($E$1-1)-(B135+$E$3) -> 826 | E135: =((C135-$J$1) *($H$2-$H$1)/($J$2-$J$1))+$H$1 -> 2584.454756 | F135: =((D135-($E$1-$J$3))*($H$4-$H$3)/($J$3-$J$4))+$H$3 -> 417.9551821 | G135: =F135*0.737562149277 -> 308.2679224 | H135: =(G135*E135)/5252 -> 151.695449
A136: 120 | B136: 232 | C136: =A136+$C$3 -> 120 | D136: =($E$1-1)-(B136+$E$3) -> 825 | E136: =((C136-$J$1) *($H$2-$H$1)/($J$2-$J$1))+$H$1 -> 2584.454756 | F136: =((D136-($E$1-$J$3))*($H$4-$H$3)/($J$3-$J$4))+$H$3 -> 417.394958 | G136: =F136*0.737562149277 -> 307.8547223 | H136: =(G136*E136)/5252 -> 151.4921175
A137: 120 | B137: 233 | C137: =A137+$C$3 -> 120 | D137: =($E$1-1)-(B137+$E$3) -> 824 | E137: =((C137-$J$1) *($H$2-$H$1)/($J$2-$J$1))+$H$1 -> 2584.454756 | F137: =((D137-($E$1-$J$3))*($H$4-$H$3)/($J$3-$J$4))+$H$3 -> 416.8347339 | G137: =F137*0.737562149277 -> 307.4415222 | H137: =(G137*E137)/5252 -> 151.2887861
A138: 120 | B138: 234 | C138: =A138+$C$3 -> 120 | D138: =($E$1-1)-(B138+$E$3) -> 823 | E138: =((C138-$J$1) *($H$2-$H$1)/($J$2-$J$1))+$H$1 -> 2584.454756 | F138: =((D138-($E$1-$J$3))*($H$4-$H$3)/($J$3-$J$4))+$H$3 -> 416.2745098 | G138: =F138*0.737562149277 -> 307.0283221 | H138: =(G138*E138)/5252 -> 151.0854546
A139: 120 | B139: 235 | C139: =A139+$C$3 -> 120 | D139: =($E$1-1)-(B139+$E$3) -> 822 | E139: =((C139-$J$1) *($H$2-$H$1)/($J$2-$J$1))+$H$1 -> 2584.454756 | F139: =((D139-($E$1-$J$3))*($H$4-$H$3)/($J$3-$J$4))+$H$3 -> 415.7142857 | G139: =F139*0.737562149277 -> 306.6151221 | H139: =(G139*E139)/5252 -> 150.8821231
A140: 121 | B140: 230 | C140: =A140+$C$3 -> 121 | D140: =($E$1-1)-(B140+$E$3) -> 827 | E140: =((C140-$J$1) *($H$2-$H$1)/($J$2-$J$1))+$H$1 -> 2587.703016 | F140: =((D140-($E$1-$J$3))*($H$4-$H$3)/($J$3-$J$4))+$H$3 -> 418.5154062 | G140: =F140*0.737562149277 -> 308.6811225 | H140: =(G140*E140)/5252 -> 152.0896938
A141: 121 | B141: 231 | C141: =A141+$C$3 -> 121 | D141: =($E$1-1)-(B141+$E$3) -> 826 | E141: =((C141-$J$1) *($H$2-$H$1)/($J$2-$J$1))+$H$1 -> 2587.703016 | F141: =((D141-($E$1-$J$3))*($H$4-$H$3)/($J$3-$J$4))+$H$3 -> 417.9551821 | G141: =F141*0.737562149277 -> 308.2679224 | H141: =(G141*E141)/5252 -> 151.8861067
A142: 121 | B142: 232 | C142: =A142+$C$3 -> 121 | D142: =($E$1-1)-(B142+$E$3) -> 825 | E142: =((C142-$J$1) *($H$2-$H$1)/($J$2-$J$1))+$H$1 -> 2587.703016 | F142: =((D142-($E$1-$J$3))*($H$4-$H$3)/($J$3-$J$4))+$H$3 -> 417.394958 | G142: =F142*0.737562149277 -> 307.8547223 | H142: =(G142*E142)/5252 -> 151.6825197
A143: 121 | B143: 233 | C143: =A143+$C$3 -> 121 | D143: =($E$1-1)-(B143+$E$3) -> 824 | E143: =((C143-$J$1) *($H$2-$H$1)/($J$2-$J$1))+$H$1 -> 2587.703016 | F143: =((D143-($E$1-$J$3))*($H$4-$H$3)/($J$3-$J$4))+$H$3 -> 416.8347339 | G143: =F143*0.737562149277 -> 307.4415222 | H143: =(G143*E143)/5252 -> 151.4789327
A144: 121 | B144: 234 | C144: =A144+$C$3 -> 121 | D144: =($E$1-1)-(B144+$E$3) -> 823 | E144: =((C144-$J$1) *($H$2-$H$1)/($J$2-$J$1))+$H$1 -> 2587.703016 | F144: =((D144-($E$1-$J$3))*($H$4-$H$3)/($J$3-$J$4))+$H$3 -> 416.2745098 | G144: =F144*0.737562149277 -> 307.0283221 | H144: =(G144*E144)/5252 -> 151.2753456
A145: 121 | B145: 235 | C145: =A145+$C$3 -> 121 | D145: =($E$1-1)-(B145+$E$3) -> 822 | E145: =((C145-$J$1) *($H$2-$H$1)/($J$2-$J$1))+$H$1 -> 2587.703016 | F145: =((D145-($E$1-$J$3))*($H$4-$H$3)/($J$3-$J$4))+$H$3 -> 415.7142857 | G145: =F145*0.737562149277 -> 306.6151221 | H145: =(G145*E145)/5252 -> 151.0717586
A146: 122 | B146: 230 | C146: =A146+$C$3 -> 122 | D146: =($E$1-1)-(B146+$E$3) -> 827 | E146: =((C146-$J$1) *($H$2-$H$1)/($J$2-$J$1))+$H$1 -> 2590.951276 | F146: =((D146-($E$1-$J$3))*($H$4-$H$3)/($J$3-$J$4))+$H$3 -> 418.5154062 | G146: =F146*0.737562149277 -> 308.6811225 | H146: =(G146*E146)/5252 -> 152.280607
A147: 122 | B147: 231 | C147: =A147+$C$3 -> 122 | D147: =($E$1-1)-(B147+$E$3) -> 826 | E147: =((C147-$J$1) *($H$2-$H$1)/($J$2-$J$1))+$H$1 -> 2590.951276 | F147: =((D147-($E$1-$J$3))*($H$4-$H$3)/($J$3-$J$4))+$H$3 -> 417.9551821 | G147: =F147*0.737562149277 -> 308.2679224 | H147: =(G147*E147)/5252 -> 152.0767645
A148: 122 | B148: 232 | C148: =A148+$C$3 -> 122 | D148: =($E$1-1)-(B148+$E$3) -> 825 | E148: =((C148-$J$1) *($H$2-$H$1)/($J$2-$J$1))+$H$1 -> 2590.951276 | F148: =((D148-($E$1-$J$3))*($H$4-$H$3)/($J$3-$J$4))+$H$3 -> 417.394958 | G148: =F148*0.737562149277 -> 307.8547223 | H148: =(G148*E148)/5252 -> 151.8729219
A149: 122 | B149: 233 | C149: =A149+$C$3 -> 122 | D149: =($E$1-1)-(B149+$E$3) -> 824 | E149: =((C149-$J$1) *($H$2-$H$1)/($J$2-$J$1))+$H$1 -> 2590.951276 | F149: =((D149-($E$1-$J$3))*($H$4-$H$3)/($J$3-$J$4))+$H$3 -> 416.8347339 | G149: =F149*0.737562149277 -> 307.4415222 | H149: =(G149*E149)/5252 -> 151.6690793
A150: 122 | B150: 234 | C150: =A150+$C$3 -> 122 | D150: =($E$1-1)-(B150+$E$3) -> 823 | E150: =((C150-$J$1) *($H$2-$H$1)/($J$2-$J$1))+$H$1 -> 2590.951276 | F150: =((D150-($E$1-$J$3))*($H$4-$H$3)/($J$3-$J$4))+$H$3 -> 416.2745098 | G150: =F150*0.737562149277 -> 307.0283221 | H150: =(G150*E150)/5252 -> 151.4652367
A151: 123 | B151: 231 | C151: =A151+$C$3 -> 123 | D151: =($E$1-1)-(B151+$E$3) -> 826 | E151: =((C151-$J$1) *($H$2-$H$1)/($J$2-$J$1))+$H$1 -> 2594.199536 | F151: =((D151-($E$1-$J$3))*($H$4-$H$3)/($J$3-$J$4))+$H$3 -> 417.9551821 | G151: =F151*0.737562149277 -> 308.2679224 | H151: =(G151*E151)/5252 -> 152.2674222
A152: 123 | B152: 232 | C152: =A152+$C$3 -> 123 | D152: =($E$1-1)-(B152+$E$3) -> 825 | E152: =((C152-$J$1) *($H$2-$H$1)/($J$2-$J$1))+$H$1 -> 2594.199536 | F152: =((D152-($E$1-$J$3))*($H$4-$H$3)/($J$3-$J$4))+$H$3 -> 417.394958 | G152: =F152*0.737562149277 -> 307.8547223 | H152: =(G152*E152)/5252 -> 152.063324
A153: 123 | B153: 233 | C153: =A153+$C$3 -> 123 | D153: =($E$1-1)-(B153+$E$3) -> 824 | E153: =((C153-$J$1) *($H$2-$H$1)/($J$2-$J$1))+$H$1 -> 2594.199536 | F153: =((D153-($E$1-$J$3))*($H$4-$H$3)/($J$3-$J$4))+$H$3 -> 416.8347339 | G153: =F153*0.737562149277 -> 307.4415222 | H153: =(G153*E153)/5252 -> 151.8592259
A154: 124 | B154: 231 | C154: =A154+$C$3 -> 124 | D154: =($E$1-1)-(B154+$E$3) -> 826 | E154: =((C154-$J$1) *($H$2-$H$1)/($J$2-$J$1))+$H$1 -> 2597.447796 | F154: =((D154-($E$1-$J$3))*($H$4-$H$3)/($J$3-$J$4))+$H$3 -> 417.9551821 | G154: =F154*0.737562149277 -> 308.2679224 | H154: =(G154*E154)/5252 -> 152.4580799
A155: 124 | B155: 232 | C155: =A155+$C$3 -> 124 | D155: =($E$1-1)-(B155+$E$3) -> 825 | E155: =((C155-$J$1) *($H$2-$H$1)/($J$2-$J$1))+$H$1 -> 2597.447796 | F155: =((D155-($E$1-$J$3))*($H$4-$H$3)/($J$3-$J$4))+$H$3 -> 417.394958 | G155: =F155*0.737562149277 -> 307.8547223 | H155: =(G155*E155)/5252 -> 152.2537262
A156: 124 | B156: 233 | C156: =A156+$C$3 -> 124 | D156: =($E$1-1)-(B156+$E$3) -> 824 | E156: =((C156-$J$1) *($H$2-$H$1)/($J$2-$J$1))+$H$1 -> 2597.447796 | F156: =((D156-($E$1-$J$3))*($H$4-$H$3)/($J$3-$J$4))+$H$3 -> 416.8347339 | G156: =F156*0.737562149277 -> 307.4415222 | H156: =(G156*E156)/5252 -> 152.0493725
A157: 125 | B157: 231 | C157: =A157+$C$3 -> 125 | D157: =($E$1-1)-(B157+$E$3) -> 826 | E157: =((C157-$J$1) *($H$2-$H$1)/($J$2-$J$1))+$H$1 -> 2600.696056 | F157: =((D157-($E$1-$J$3))*($H$4-$H$3)/($J$3-$J$4))+$H$3 -> 417.9551821 | G157: =F157*0.737562149277 -> 308.2679224 | H157: =(G157*E157)/5252 -> 152.6487376
A158: 125 | B158: 232 | C158: =A158+$C$3 -> 125 | D158: =($E$1-1)-(B158+$E$3) -> 825 | E158: =((C158-$J$1) *($H$2-$H$1)/($J$2-$J$1))+$H$1 -> 2600.696056 | F158: =((D158-($E$1-$J$3))*($H$4-$H$3)/($J$3-$J$4))+$H$3 -> 417.394958 | G158: =F158*0.737562149277 -> 307.8547223 | H158: =(G158*E158)/5252 -> 152.4441283
A159: 125 | B159: 233 | C159: =A159+$C$3 -> 125 | D159: =($E$1-1)-(B159+$E$3) -> 824 | E159: =((C159-$J$1) *($H$2-$H$1)/($J$2-$J$1))+$H$1 -> 2600.696056 | F159: =((D159-($E$1-$J$3))*($H$4-$H$3)/($J$3-$J$4))+$H$3 -> 416.8347339 | G159: =F159*0.737562149277 -> 307.4415222 | H159: =(G159*E159)/5252 -> 152.2395191
A160: 126 | B160: 230 | C160: =A160+$C$3 -> 126 | D160: =($E$1-1)-(B160+$E$3) -> 827 | E160: =((C160-$J$1) *($H$2-$H$1)/($J$2-$J$1))+$H$1 -> 2603.944316 | F160: =((D160-($E$1-$J$3))*($H$4-$H$3)/($J$3-$J$4))+$H$3 -> 418.5154062 | G160: =F160*0.737562149277 -> 308.6811225 | H160: =(G160*E160)/5252 -> 153.0442601
A161: 126 | B161: 231 | C161: =A161+$C$3 -> 126 | D161: =($E$1-1)-(B161+$E$3) -> 826 | E161: =((C161-$J$1) *($H$2-$H$1)/($J$2-$J$1))+$H$1 -> 2603.944316 | F161: =((D161-($E$1-$J$3))*($H$4-$H$3)/($J$3-$J$4))+$H$3 -> 417.9551821 | G161: =F161*0.737562149277 -> 308.2679224 | H161: =(G161*E161)/5252 -> 152.8393953
A162: 126 | B162: 232 | C162: =A162+$C$3 -> 126 | D162: =($E$1-1)-(B162+$E$3) -> 825 | E162: =((C162-$J$1) *($H$2-$H$1)/($J$2-$J$1))+$H$1 -> 2603.944316 | F162: =((D162-($E$1-$J$3))*($H$4-$H$3)/($J$3-$J$4))+$H$3 -> 417.394958 | G162: =F162*0.737562149277 -> 307.8547223 | H162: =(G162*E162)/5252 -> 152.6345305
A163: 126 | B163: 233 | C163: =A163+$C$3 -> 126 | D163: =($E$1-1)-(B163+$E$3) -> 824 | E163: =((C163-$J$1) *($H$2-$H$1)/($J$2-$J$1))+$H$1 -> 2603.944316 | F163: =((D163-($E$1-$J$3))*($H$4-$H$3)/($J$3-$J$4))+$H$3 -> 416.8347339 | G163: =F163*0.737562149277 -> 307.4415222 | H163: =(G163*E163)/5252 -> 152.4296657
A164: 127 | B164: 229 | C164: =A164+$C$3 -> 127 | D164: =($E$1-1)-(B164+$E$3) -> 828 | E164: =((C164-$J$1) *($H$2-$H$1)/($J$2-$J$1))+$H$1 -> 2607.192575 | F164: =((D164-($E$1-$J$3))*($H$4-$H$3)/($J$3-$J$4))+$H$3 -> 419.0756303 | G164: =F164*0.737562149277 -> 309.0943226 | H164: =(G164*E164)/5252 -> 153.4402938
A165: 127 | B165: 230 | C165: =A165+$C$3 -> 127 | D165: =($E$1-1)-(B165+$E$3) -> 827 | E165: =((C165-$J$1) *($H$2-$H$1)/($J$2-$J$1))+$H$1 -> 2607.192575 | F165: =((D165-($E$1-$J$3))*($H$4-$H$3)/($J$3-$J$4))+$H$3 -> 418.5154062 | G165: =F165*0.737562149277 -> 308.6811225 | H165: =(G165*E165)/5252 -> 153.2351734
A166: 127 | B166: 231 | C166: =A166+$C$3 -> 127 | D166: =($E$1-1)-(B166+$E$3) -> 826 | E166: =((C166-$J$1) *($H$2-$H$1)/($J$2-$J$1))+$H$1 -> 2607.192575 | F166: =((D166-($E$1-$J$3))*($H$4-$H$3)/($J$3-$J$4))+$H$3 -> 417.9551821 | G166: =F166*0.737562149277 -> 308.2679224 | H166: =(G166*E166)/5252 -> 153.030053
A167: 127 | B167: 232 | C167: =A167+$C$3 -> 127 | D167: =($E$1-1)-(B167+$E$3) -> 825 | E167: =((C167-$J$1) *($H$2-$H$1)/($J$2-$J$1))+$H$1 -> 2607.192575 | F167: =((D167-($E$1-$J$3))*($H$4-$H$3)/($J$3-$J$4))+$H$3 -> 417.394958 | G167: =F167*0.737562149277 -> 307.8547223 | H167: =(G167*E167)/5252 -> 152.8249327
A168: 127 | B168: 233 | C168: =A168+$C$3 -> 127 | D168: =($E$1-1)-(B168+$E$3) -> 824 | E168: =((C168-$J$1) *($H$2-$H$1)/($J$2-$J$1))+$H$1 -> 2607.192575 | F168: =((D168-($E$1-$J$3))*($H$4-$H$3)/($J$3-$J$4))+$H$3 -> 416.8347339 | G168: =F168*0.737562149277 -> 307.4415222 | H168: =(G168*E168)/5252 -> 152.6198123
A169: 128 | B169: 228 | C169: =A169+$C$3 -> 128 | D169: =($E$1-1)-(B169+$E$3) -> 829 | E169: =((C169-$J$1) *($H$2-$H$1)/($J$2-$J$1))+$H$1 -> 2610.440835 | F169: =((D169-($E$1-$J$3))*($H$4-$H$3)/($J$3-$J$4))+$H$3 -> 419.6358543 | G169: =F169*0.737562149277 -> 309.5075226 | H169: =(G169*E169)/5252 -> 153.8368385
A170: 128 | B170: 229 | C170: =A170+$C$3 -> 128 | D170: =($E$1-1)-(B170+$E$3) -> 828 | E170: =((C170-$J$1) *($H$2-$H$1)/($J$2-$J$1))+$H$1 -> 2610.440835 | F170: =((D170-($E$1-$J$3))*($H$4-$H$3)/($J$3-$J$4))+$H$3 -> 419.0756303 | G170: =F170*0.737562149277 -> 309.0943226 | H170: =(G170*E170)/5252 -> 153.6314626
A171: 128 | B171: 230 | C171: =A171+$C$3 -> 128 | D171: =($E$1-1)-(B171+$E$3) -> 827 | E171: =((C171-$J$1) *($H$2-$H$1)/($J$2-$J$1))+$H$1 -> 2610.440835 | F171: =((D171-($E$1-$J$3))*($H$4-$H$3)/($J$3-$J$4))+$H$3 -> 418.5154062 | G171: =F171*0.737562149277 -> 308.6811225 | H171: =(G171*E171)/5252 -> 153.4260867
A172: 128 | B172: 231 | C172: =A172+$C$3 -> 128 | D172: =($E$1-1)-(B172+$E$3) -> 826 | E172: =((C172-$J$1) *($H$2-$H$1)/($J$2-$J$1))+$H$1 -> 2610.440835 | F172: =((D172-($E$1-$J$3))*($H$4-$H$3)/($J$3-$J$4))+$H$3 -> 417.9551821 | G172: =F172*0.737562149277 -> 308.2679224 | H172: =(G172*E172)/5252 -> 153.2207107
A173: 128 | B173: 232 | C173: =A173+$C$3 -> 128 | D173: =($E$1-1)-(B173+$E$3) -> 825 | E173: =((C173-$J$1) *($H$2-$H$1)/($J$2-$J$1))+$H$1 -> 2610.440835 | F173: =((D173-($E$1-$J$3))*($H$4-$H$3)/($J$3-$J$4))+$H$3 -> 417.394958 | G173: =F173*0.737562149277 -> 307.8547223 | H173: =(G173*E173)/5252 -> 153.0153348
A174: 128 | B174: 233 | C174: =A174+$C$3 -> 128 | D174: =($E$1-1)-(B174+$E$3) -> 824 | E174: =((C174-$J$1) *($H$2-$H$1)/($J$2-$J$1))+$H$1 -> 2610.440835 | F174: =((D174-($E$1-$J$3))*($H$4-$H$3)/($J$3-$J$4))+$H$3 -> 416.8347339 | G174: =F174*0.737562149277 -> 307.4415222 | H174: =(G174*E174)/5252 -> 152.8099589
A175: 129 | B175: 228 | C175: =A175+$C$3 -> 129 | D175: =($E$1-1)-(B175+$E$3) -> 829 | E175: =((C175-$J$1) *($H$2-$H$1)/($J$2-$J$1))+$H$1 -> 2613.689095 | F175: =((D175-($E$1-$J$3))*($H$4-$H$3)/($J$3-$J$4))+$H$3 -> 419.6358543 | G175: =F175*0.737562149277 -> 309.5075226 | H175: =(G175*E175)/5252 -> 154.0282629
A176: 129 | B176: 229 | C176: =A176+$C$3 -> 129 | D176: =($E$1-1)-(B176+$E$3) -> 828 | E176: =((C176-$J$1) *($H$2-$H$1)/($J$2-$J$1))+$H$1 -> 2613.689095 | F176: =((D176-($E$1-$J$3))*($H$4-$H$3)/($J$3-$J$4))+$H$3 -> 419.0756303 | G176: =F176*0.737562149277 -> 309.0943226 | H176: =(G176*E176)/5252 -> 153.8226314
A177: 129 | B177: 230 | C177: =A177+$C$3 -> 129 | D177: =($E$1-1)-(B177+$E$3) -> 827 | E177: =((C177-$J$1) *($H$2-$H$1)/($J$2-$J$1))+$H$1 -> 2613.689095 | F177: =((D177-($E$1-$J$3))*($H$4-$H$3)/($J$3-$J$4))+$H$3 -> 418.5154062 | G177: =F177*0.737562149277 -> 308.6811225 | H177: =(G177*E177)/5252 -> 153.6169999
A178: 129 | B178: 231 | C178: =A178+$C$3 -> 129 | D178: =($E$1-1)-(B178+$E$3) -> 826 | E178: =((C178-$J$1) *($H$2-$H$1)/($J$2-$J$1))+$H$1 -> 2613.689095 | F178: =((D178-($E$1-$J$3))*($H$4-$H$3)/($J$3-$J$4))+$H$3 -> 417.9551821 | G178: =F178*0.737562149277 -> 308.2679224 | H178: =(G178*E178)/5252 -> 153.4113685
A179: 129 | B179: 232 | C179: =A179+$C$3 -> 129 | D179: =($E$1-1)-(B179+$E$3) -> 825 | E179: =((C179-$J$1) *($H$2-$H$1)/($J$2-$J$1))+$H$1 -> 2613.689095 | F179: =((D179-($E$1-$J$3))*($H$4-$H$3)/($J$3-$J$4))+$H$3 -> 417.394958 | G179: =F179*0.737562149277 -> 307.8547223 | H179: =(G179*E179)/5252 -> 153.205737
A180: 129 | B180: 233 | C180: =A180+$C$3 -> 129 | D180: =($E$1-1)-(B180+$E$3) -> 824 | E180: =((C180-$J$1) *($H$2-$H$1)/($J$2-$J$1))+$H$1 -> 2613.689095 | F180: =((D180-($E$1-$J$3))*($H$4-$H$3)/($J$3-$J$4))+$H$3 -> 416.8347339 | G180: =F180*0.737562149277 -> 307.4415222 | H180: =(G180*E180)/5252 -> 153.0001055
A181: 130 | B181: 228 | C181: =A181+$C$3 -> 130 | D181: =($E$1-1)-(B181+$E$3) -> 829 | E181: =((C181-$J$1) *($H$2-$H$1)/($J$2-$J$1))+$H$1 -> 2616.937355 | F181: =((D181-($E$1-$J$3))*($H$4-$H$3)/($J$3-$J$4))+$H$3 -> 419.6358543 | G181: =F181*0.737562149277 -> 309.5075226 | H181: =(G181*E181)/5252 -> 154.2196873
A182: 130 | B182: 229 | C182: =A182+$C$3 -> 130 | D182: =($E$1-1)-(B182+$E$3) -> 828 | E182: =((C182-$J$1) *($H$2-$H$1)/($J$2-$J$1))+$H$1 -> 2616.937355 | F182: =((D182-($E$1-$J$3))*($H$4-$H$3)/($J$3-$J$4))+$H$3 -> 419.0756303 | G182: =F182*0.737562149277 -> 309.0943226 | H182: =(G182*E182)/5252 -> 154.0138003
A183: 130 | B183: 230 | C183: =A183+$C$3 -> 130 | D183: =($E$1-1)-(B183+$E$3) -> 827 | E183: =((C183-$J$1) *($H$2-$H$1)/($J$2-$J$1))+$H$1 -> 2616.937355 | F183: =((D183-($E$1-$J$3))*($H$4-$H$3)/($J$3-$J$4))+$H$3 -> 418.5154062 | G183: =F183*0.737562149277 -> 308.6811225 | H183: =(G183*E183)/5252 -> 153.8079132
A184: 130 | B184: 231 | C184: =A184+$C$3 -> 130 | D184: =($E$1-1)-(B184+$E$3) -> 826 | E184: =((C184-$J$1) *($H$2-$H$1)/($J$2-$J$1))+$H$1 -> 2616.937355 | F184: =((D184-($E$1-$J$3))*($H$4-$H$3)/($J$3-$J$4))+$H$3 -> 417.9551821 | G184: =F184*0.737562149277 -> 308.2679224 | H184: =(G184*E184)/5252 -> 153.6020262
A185: 131 | B185: 228 | C185: =A185+$C$3 -> 131 | D185: =($E$1-1)-(B185+$E$3) -> 829 | E185: =((C185-$J$1) *($H$2-$H$1)/($J$2-$J$1))+$H$1 -> 2620.185615 | F185: =((D185-($E$1-$J$3))*($H$4-$H$3)/($J$3-$J$4))+$H$3 -> 419.6358543 | G185: =F185*0.737562149277 -> 309.5075226 | H185: =(G185*E185)/5252 -> 154.4111117
A186: 131 | B186: 229 | C186: =A186+$C$3 -> 131 | D186: =($E$1-1)-(B186+$E$3) -> 828 | E186: =((C186-$J$1) *($H$2-$H$1)/($J$2-$J$1))+$H$1 -> 2620.185615 | F186: =((D186-($E$1-$J$3))*($H$4-$H$3)/($J$3-$J$4))+$H$3 -> 419.0756303 | G186: =F186*0.737562149277 -> 309.0943226 | H186: =(G186*E186)/5252 -> 154.2049691
A187: 131 | B187: 230 | C187: =A187+$C$3 -> 131 | D187: =($E$1-1)-(B187+$E$3) -> 827 | E187: =((C187-$J$1) *($H$2-$H$1)/($J$2-$J$1))+$H$1 -> 2620.185615 | F187: =((D187-($E$1-$J$3))*($H$4-$H$3)/($J$3-$J$4))+$H$3 -> 418.5154062 | G187: =F187*0.737562149277 -> 308.6811225 | H187: =(G187*E187)/5252 -> 153.9988265
A188: 131 | B188: 231 | C188: =A188+$C$3 -> 131 | D188: =($E$1-1)-(B188+$E$3) -> 826 | E188: =((C188-$J$1) *($H$2-$H$1)/($J$2-$J$1))+$H$1 -> 2620.185615 | F188: =((D188-($E$1-$J$3))*($H$4-$H$3)/($J$3-$J$4))+$H$3 -> 417.9551821 | G188: =F188*0.737562149277 -> 308.2679224 | H188: =(G188*E188)/5252 -> 153.7926839
A189: 132 | B189: 226 | C189: =A189+$C$3 -> 132 | D189: =($E$1-1)-(B189+$E$3) -> 831 | E189: =((C189-$J$1) *($H$2-$H$1)/($J$2-$J$1))+$H$1 -> 2623.433875 | F189: =((D189-($E$1-$J$3))*($H$4-$H$3)/($J$3-$J$4))+$H$3 -> 420.7563025 | G189: =F189*0.737562149277 -> 310.3339228 | H189: =(G189*E189)/5252 -> 155.0153324
A190: 132 | B190: 227 | C190: =A190+$C$3 -> 132 | D190: =($E$1-1)-(B190+$E$3) -> 830 | E190: =((C190-$J$1) *($H$2-$H$1)/($J$2-$J$1))+$H$1 -> 2623.433875 | F190: =((D190-($E$1-$J$3))*($H$4-$H$3)/($J$3-$J$4))+$H$3 -> 420.1960784 | G190: =F190*0.737562149277 -> 309.9207227 | H190: =(G190*E190)/5252 -> 154.8089342
A191: 132 | B191: 228 | C191: =A191+$C$3 -> 132 | D191: =($E$1-1)-(B191+$E$3) -> 829 | E191: =((C191-$J$1) *($H$2-$H$1)/($J$2-$J$1))+$H$1 -> 2623.433875 | F191: =((D191-($E$1-$J$3))*($H$4-$H$3)/($J$3-$J$4))+$H$3 -> 419.6358543 | G191: =F191*0.737562149277 -> 309.5075226 | H191: =(G191*E191)/5252 -> 154.6025361
A192: 132 | B192: 229 | C192: =A192+$C$3 -> 132 | D192: =($E$1-1)-(B192+$E$3) -> 828 | E192: =((C192-$J$1) *($H$2-$H$1)/($J$2-$J$1))+$H$1 -> 2623.433875 | F192: =((D192-($E$1-$J$3))*($H$4-$H$3)/($J$3-$J$4))+$H$3 -> 419.0756303 | G192: =F192*0.737562149277 -> 309.0943226 | H192: =(G192*E192)/5252 -> 154.3961379
A193: 132 | B193: 230 | C193: =A193+$C$3 -> 132 | D193: =($E$1-1)-(B193+$E$3) -> 827 | E193: =((C193-$J$1) *($H$2-$H$1)/($J$2-$J$1))+$H$1 -> 2623.433875 | F193: =((D193-($E$1-$J$3))*($H$4-$H$3)/($J$3-$J$4))+$H$3 -> 418.5154062 | G193: =F193*0.737562149277 -> 308.6811225 | H193: =(G193*E193)/5252 -> 154.1897398
A194: 132 | B194: 231 | C194: =A194+$C$3 -> 132 | D194: =($E$1-1)-(B194+$E$3) -> 826 | E194: =((C194-$J$1) *($H$2-$H$1)/($J$2-$J$1))+$H$1 -> 2623.433875 | F194: =((D194-($E$1-$J$3))*($H$4-$H$3)/($J$3-$J$4))+$H$3 -> 417.9551821 | G194: =F194*0.737562149277 -> 308.2679224 | H194: =(G194*E194)/5252 -> 153.9833416
A195: 133 | B195: 226 | C195: =A195+$C$3 -> 133 | D195: =($E$1-1)-(B195+$E$3) -> 831 | E195: =((C195-$J$1) *($H$2-$H$1)/($J$2-$J$1))+$H$1 -> 2626.682135 | F195: =((D195-($E$1-$J$3))*($H$4-$H$3)/($J$3-$J$4))+$H$3 -> 420.7563025 | G195: =F195*0.737562149277 -> 310.3339228 | H195: =(G195*E195)/5252 -> 155.2072679
A196: 133 | B196: 227 | C196: =A196+$C$3 -> 133 | D196: =($E$1-1)-(B196+$E$3) -> 830 | E196: =((C196-$J$1) *($H$2-$H$1)/($J$2-$J$1))+$H$1 -> 2626.682135 | F196: =((D196-($E$1-$J$3))*($H$4-$H$3)/($J$3-$J$4))+$H$3 -> 420.1960784 | G196: =F196*0.737562149277 -> 309.9207227 | H196: =(G196*E196)/5252 -> 155.0006142
A197: 133 | B197: 228 | C197: =A197+$C$3 -> 133 | D197: =($E$1-1)-(B197+$E$3) -> 829 | E197: =((C197-$J$1) *($H$2-$H$1)/($J$2-$J$1))+$H$1 -> 2626.682135 | F197: =((D197-($E$1-$J$3))*($H$4-$H$3)/($J$3-$J$4))+$H$3 -> 419.6358543 | G197: =F197*0.737562149277 -> 309.5075226 | H197: =(G197*E197)/5252 -> 154.7939604
A198: 133 | B198: 229 | C198: =A198+$C$3 -> 133 | D198: =($E$1-1)-(B198+$E$3) -> 828 | E198: =((C198-$J$1) *($H$2-$H$1)/($J$2-$J$1))+$H$1 -> 2626.682135 | F198: =((D198-($E$1-$J$3))*($H$4-$H$3)/($J$3-$J$4))+$H$3 -> 419.0756303 | G198: =F198*0.737562149277 -> 309.0943226 | H198: =(G198*E198)/5252 -> 154.5873067
A199: 133 | B199: 230 | C199: =A199+$C$3 -> 133 | D199: =($E$1-1)-(B199+$E$3) -> 827 | E199: =((C199-$J$1) *($H$2-$H$1)/($J$2-$J$1))+$H$1 -> 2626.682135 | F199: =((D199-($E$1-$J$3))*($H$4-$H$3)/($J$3-$J$4))+$H$3 -> 418.5154062 | G199: =F199*0.737562149277 -> 308.6811225 | H199: =(G199*E199)/5252 -> 154.380653
A200: 133 | B200: 231 | C200: =A200+$C$3 -> 133 | D200: =($E$1-1)-(B200+$E$3) -> 826 | E200: =((C200-$J$1) *($H$2-$H$1)/($J$2-$J$1))+$H$1 -> 2626.682135 | F200: =((D200-($E$1-$J$3))*($H$4-$H$3)/($J$3-$J$4))+$H$3 -> 417.9551821 | G200: =F200*0.737562149277 -> 308.2679224 | H200: =(G200*E200)/5252 -> 154.1739993
... 8663 more rows

Sheet Dynapack VT2-625
A1: EngRPM | B1: Temp | C1: RelHum | D1: Baro | E1: Power | F1: Torque | G1: Dynapack SAE-Adapted | H1: Corr. TQ | I1: Corr. HP | AH1: SAE Correction (J1349, 2004)
A2: RPM | B2: ｰF | C2: % | D2: inHg | E2: HP | F2: lbft | AH2: SAE Correction (J1349, 1990)
A3: 2000 | B3: 77.22 | C3: 56.94 | D3: 29.95 | E3: 98.68 | F3: 259.14 | G3: =SAECF(B3, D3, C3,0,0,MATCH(G$1,AH$1:AH$9,0)) -> 1.032086728 | H3: =G3*F3 -> 267.4549548 | I3: =G3*E3 -> 101.8463183 | AH3: SAE Correction (J607)
A4: 2001 | B4: 77.22 | C4: 56.94 | D4: 29.95 | E4: 98.65 | F4: 258.94 | G4: =SAECF(B4, D4, C4,0,0,MATCH(G$1,AH$1:AH$9,0)) -> 1.032086728 | H4: =G4*F4 -> 267.2485374 | I4: =G4*E4 -> 101.8153557 | AH4: Dynojet SAE
A5: 2002 | B5: 77.23 | C5: 56.94 | D5: 29.95 | E5: 98.62 | F5: 258.73 | G5: 1.032105326 | H5: 267.036611 | I5: 101.7862273 | AH5: Dynojet STD
A6: 2003 | B6: 77.23 | C6: 56.94 | D6: 29.95 | E6: 98.59 | F6: 258.52 | G6: 1.032105326 | H6: 266.8198689 | I6: 101.7552641 | AH6: Dynapack SAE
A7: 2004 | B7: 77.23 | C7: 56.94 | D7: 29.95 | E7: 98.56 | F7: 258.31 | G7: 1.032105326 | H7: 266.6031268 | I7: 101.7243009 | AH7: Dynapack SAE-Adapted
A8: 2005 | B8: 77.23 | C8: 56.94 | D8: 29.95 | E8: 98.53 | F8: 258.1 | G8: 1.032105326 | H8: 266.3863846 | I8: 101.6933378 | AH8: Dynapack STP
A9: 2006 | B9: 77.23 | C9: 56.94 | D9: 29.95 | E9: 98.5 | F9: 257.89 | G9: 1.032105326 | H9: 266.1696425 | I9: 101.6623746 | AH9: Uncorrected
A10: 2007 | B10: 77.23 | C10: 56.94 | D10: 29.95 | E10: 98.47 | F10: 257.68 | G10: 1.032105326 | H10: 265.9529004 | I10: 101.6314115
A11: 2008 | B11: 77.23 | C11: 56.94 | D11: 29.95 | E11: 98.44 | F11: 257.47 | G11: 1.032105326 | H11: 265.7361583 | I11: 101.6004483
A12: 2009 | B12: 77.23 | C12: 56.94 | D12: 29.95 | E12: 98.41 | F12: 257.26 | G12: 1.032105326 | H12: 265.5194162 | I12: 101.5694851
A13: 2010 | B13: 77.23 | C13: 56.94 | D13: 29.95 | E13: 98.38 | F13: 257.06 | G13: 1.032105326 | H13: 265.3129951 | I13: 101.538522
A14: 2011 | B14: 77.23 | C14: 56.94 | D14: 29.95 | E14: 98.35 | F14: 256.85 | G14: 1.032105326 | H14: 265.096253 | I14: 101.5075588
A15: 2012 | B15: 77.23 | C15: 56.94 | D15: 29.95 | E15: 98.31 | F15: 256.64 | G15: 1.032105326 | H15: 264.8795109 | I15: 101.4662746
A16: 2013 | B16: 77.23 | C16: 56.94 | D16: 29.95 | E16: 98.28 | F16: 256.43 | G16: 1.032105326 | H16: 264.6627687 | I16: 101.4353114
A17: 2014 | B17: 77.23 | C17: 56.94 | D17: 29.95 | E17: 98.25 | F17: 256.22 | G17: 1.032105326 | H17: 264.4460266 | I17: 101.4043483
A18: 2015 | B18: 77.23 | C18: 56.94 | D18: 29.95 | E18: 98.22 | F18: 256.01 | G18: 1.032105326 | H18: 264.2292845 | I18: 101.3733851
A19: 2016 | B19: 77.23 | C19: 56.94 | D19: 29.95 | E19: 98.19 | F19: 255.8 | G19: 1.032105326 | H19: 264.0125424 | I19: 101.342422
A20: 2017 | B20: 77.23 | C20: 56.94 | D20: 29.95 | E20: 98.17 | F20: 255.7 | G20: 1.032105326 | H20: 263.9093319 | I20: 101.3217799
A21: 2018 | B21: 77.23 | C21: 56.94 | D21: 29.95 | E21: 98.12 | F21: 255.37 | G21: 1.032105326 | H21: 263.5687371 | I21: 101.2701746
A22: 2019 | B22: 77.23 | C22: 56.94 | D22: 29.95 | E22: 98.08 | F22: 255.15 | G22: 1.032105326 | H22: 263.3416739 | I22: 101.2288904
A23: 2020 | B23: 77.23 | C23: 56.94 | D23: 29.95 | E23: 98.05 | F23: 254.93 | G23: 1.032105326 | H23: 263.1146108 | I23: 101.1979272
A24: 2021 | B24: 77.23 | C24: 56.94 | D24: 29.95 | E24: 98.01 | F24: 254.71 | G24: 1.032105326 | H24: 262.8875476 | I24: 101.156643
A25: 2022 | B25: 77.23 | C25: 56.94 | D25: 29.95 | E25: 97.98 | F25: 254.49 | G25: 1.032105326 | H25: 262.6604844 | I25: 101.1256798
A26: 2023 | B26: 77.23 | C26: 56.94 | D26: 29.95 | E26: 97.94 | F26: 254.27 | G26: 1.032105326 | H26: 262.4334212 | I26: 101.0843956
A27: 2024 | B27: 77.23 | C27: 56.94 | D27: 29.95 | E27: 97.9 | F27: 254.05 | G27: 1.032105326 | H27: 262.2063581 | I27: 101.0431114
A28: 2025 | B28: 77.23 | C28: 56.94 | D28: 29.95 | E28: 97.87 | F28: 253.83 | G28: 1.032105326 | H28: 261.9792949 | I28: 101.0121483
A29: 2026 | B29: 77.23 | C29: 56.94 | D29: 29.95 | E29: 97.83 | F29: 253.61 | G29: 1.032105326 | H29: 261.7522317 | I29: 100.970864
A30: 2027 | B30: 77.23 | C30: 56.94 | D30: 29.95 | E30: 97.8 | F30: 253.4 | G30: 1.032105326 | H30: 261.5354896 | I30: 100.9399009
A31: 2028 | B31: 77.23 | C31: 56.94 | D31: 29.95 | E31: 97.76 | F31: 253.18 | G31: 1.032105326 | H31: 261.3084264 | I31: 100.8986167
A32: 2029 | B32: 77.23 | C32: 56.94 | D32: 29.95 | E32: 97.72 | F32: 252.96 | G32: 1.032105326 | H32: 261.0813633 | I32: 100.8573325
A33: 2030 | B33: 77.23 | C33: 56.94 | D33: 29.95 | E33: 97.69 | F33: 252.74 | G33: 1.032105326 | H33: 260.8543001 | I33: 100.8263693
A34: 2031 | B34: 77.23 | C34: 56.94 | D34: 29.95 | E34: 97.65 | F34: 252.52 | G34: 1.032105326 | H34: 260.6272369 | I34: 100.7850851
A35: 2032 | B35: 77.23 | C35: 56.94 | D35: 29.95 | E35: 97.61 | F35: 252.3 | G35: 1.032105326 | H35: 260.4001738 | I35: 100.7438009
A36: 2033 | B36: 77.23 | C36: 56.94 | D36: 29.95 | E36: 97.57 | F36: 252.05 | G36: 1.032105326 | H36: 260.1421474 | I36: 100.7025167
A37: 2034 | B37: 77.23 | C37: 56.94 | D37: 29.95 | E37: 97.54 | F37: 251.86 | G37: 1.032105326 | H37: 259.9460474 | I37: 100.6715535
A38: 2035 | B38: 77.23 | C38: 56.94 | D38: 29.95 | E38: 97.5 | F38: 251.64 | G38: 1.032105326 | H38: 259.7189842 | I38: 100.6302693
A39: 2036 | B39: 77.23 | C39: 56.94 | D39: 29.95 | E39: 97.46 | F39: 251.42 | G39: 1.032105326 | H39: 259.4919211 | I39: 100.5889851
A40: 2037 | B40: 77.23 | C40: 56.94 | D40: 29.95 | E40: 97.42 | F40: 251.2 | G40: 1.032105326 | H40: 259.2648579 | I40: 100.5477009
A41: 2038 | B41: 77.23 | C41: 56.94 | D41: 29.95 | E41: 97.39 | F41: 250.98 | G41: 1.032105326 | H41: 259.0377947 | I41: 100.5167377
A42: 2039 | B42: 77.23 | C42: 56.94 | D42: 29.95 | E42: 97.35 | F42: 250.75 | G42: 1.032105326 | H42: 258.8004105 | I42: 100.4754535
A43: 2040 | B43: 77.23 | C43: 56.94 | D43: 29.95 | E43: 97.31 | F43: 250.53 | G43: 1.032105326 | H43: 258.5733473 | I43: 100.4341693
A44: 2041 | B44: 77.23 | C44: 56.94 | D44: 29.95 | E44: 97.27 | F44: 250.31 | G44: 1.032105326 | H44: 258.3462842 | I44: 100.3928851
A45: 2042 | B45: 77.23 | C45: 56.94 | D45: 29.95 | E45: 97.23 | F45: 250.09 | G45: 1.032105326 | H45: 258.119221 | I45: 100.3516008
A46: 2043 | B46: 77.23 | C46: 56.94 | D46: 29.95 | E46: 97.2 | F46: 249.87 | G46: 1.032105326 | H46: 257.8921578 | I46: 100.3206377
A47: 2044 | B47: 77.23 | C47: 56.94 | D47: 29.95 | E47: 97.16 | F47: 249.65 | G47: 1.032105326 | H47: 257.6650946 | I47: 100.2793535
A48: 2045 | B48: 77.22 | C48: 56.94 | D48: 29.95 | E48: 97.12 | F48: 249.43 | G48: 1.032086728 | H48: 257.4333926 | I48: 100.236263
A49: 2046 | B49: 77.22 | C49: 56.94 | D49: 29.95 | E49: 97.08 | F49: 249.21 | G49: 1.032086728 | H49: 257.2063335 | I49: 100.1949796
A50: 2047 | B50: 77.22 | C50: 56.94 | D50: 29.95 | E50: 97.04 | F50: 248.99 | G50: 1.032086728 | H50: 256.9792745 | I50: 100.1536961
A51: 2048 | B51: 77.22 | C51: 56.94 | D51: 29.95 | E51: 97 | F51: 248.77 | G51: 1.032086728 | H51: 256.7522154 | I51: 100.1124126
A52: 2049 | B52: 77.22 | C52: 56.94 | D52: 29.95 | E52: 96.97 | F52: 248.55 | G52: 1.032086728 | H52: 256.5251563 | I52: 100.08145
A53: 2050 | B53: 77.22 | C53: 56.94 | D53: 29.95 | E53: 96.94 | F53: 248.38 | G53: 1.032086728 | H53: 256.3497016 | I53: 100.0504874
A54: 2051 | B54: 77.22 | C54: 56.94 | D54: 29.95 | E54: 96.89 | F54: 248.1 | G54: 1.032086728 | H54: 256.0607173 | I54: 99.9988831
A55: 2052 | B55: 77.22 | C55: 56.94 | D55: 29.95 | E55: 96.85 | F55: 247.88 | G55: 1.032086728 | H55: 255.8336582 | I55: 99.95759963
A56: 2053 | B56: 77.22 | C56: 56.94 | D56: 29.95 | E56: 96.81 | F56: 247.66 | G56: 1.032086728 | H56: 255.6065991 | I56: 99.91631616
A57: 2054 | B57: 77.22 | C57: 56.94 | D57: 29.95 | E57: 96.77 | F57: 247.43 | G57: 1.032086728 | H57: 255.3692192 | I57: 99.87503269
A58: 2055 | B58: 77.22 | C58: 56.94 | D58: 29.95 | E58: 96.73 | F58: 247.21 | G58: 1.032086728 | H58: 255.1421601 | I58: 99.83374922
A59: 2056 | B59: 77.22 | C59: 56.94 | D59: 29.95 | E59: 96.69 | F59: 246.99 | G59: 1.032086728 | H59: 254.915101 | I59: 99.79246575
A60: 2057 | B60: 77.22 | C60: 56.94 | D60: 29.95 | E60: 96.65 | F60: 246.77 | G60: 1.032086728 | H60: 254.6880419 | I60: 99.75118228
A61: 2058 | B61: 77.22 | C61: 56.94 | D61: 29.95 | E61: 96.61 | F61: 246.54 | G61: 1.032086728 | H61: 254.450662 | I61: 99.70989881
A62: 2059 | B62: 77.22 | C62: 56.94 | D62: 29.95 | E62: 96.57 | F62: 246.32 | G62: 1.032086728 | H62: 254.2236029 | I62: 99.66861535
A63: 2060 | B63: 77.22 | C63: 56.94 | D63: 29.95 | E63: 96.53 | F63: 246.1 | G63: 1.032086728 | H63: 253.9965438 | I63: 99.62733188
A64: 2061 | B64: 77.22 | C64: 56.94 | D64: 29.95 | E64: 96.49 | F64: 245.88 | G64: 1.032086728 | H64: 253.7694847 | I64: 99.58604841
A65: 2062 | B65: 77.22 | C65: 56.94 | D65: 29.95 | E65: 96.44 | F65: 245.65 | G65: 1.032086728 | H65: 253.5321048 | I65: 99.53444407
A66: 2063 | B66: 77.22 | C66: 56.94 | D66: 29.95 | E66: 96.4 | F66: 245.43 | G66: 1.032086728 | H66: 253.3050457 | I66: 99.4931606
A67: 2064 | B67: 77.22 | C67: 56.94 | D67: 29.95 | E67: 96.36 | F67: 245.21 | G67: 1.032086728 | H67: 253.0779866 | I67: 99.45187713
A68: 2065 | B68: 77.22 | C68: 56.94 | D68: 29.95 | E68: 96.32 | F68: 244.99 | G68: =SAECF(B68, D68, C68,0,0,MATCH(G$1,AH$1:AH$9,0)) -> 1.032086728 | H68: =G68*F68 -> 252.8509275 | I68: =G68*E68 -> 99.41059366
A69: 2066 | B69: 77.22 | C69: 56.94 | D69: 29.95 | E69: 96.27 | F69: 244.68 | G69: 1.032086728 | H69: 252.5309807 | I69: 99.35898933
A70: 2067 | B70: 77.22 | C70: 56.94 | D70: 29.95 | E70: 96.24 | F70: 244.54 | G70: 1.032086728 | H70: 252.3864885 | I70: 99.32802672
A71: 2068 | B71: 77.22 | C71: 56.94 | D71: 29.95 | E71: 96.2 | F71: 244.33 | G71: 1.032086728 | H71: 252.1697503 | I71: 99.28674326
A72: 2069 | B72: 77.22 | C72: 56.94 | D72: 29.95 | E72: 96.16 | F72: 244.11 | G72: 1.032086728 | H72: 251.9426912 | I72: 99.24545979
A73: 2070 | B73: 77.22 | C73: 56.94 | D73: 29.95 | E73: 96.12 | F73: 243.89 | G73: 1.032086728 | H73: 251.7156321 | I73: 99.20417632
A74: 2071 | B74: 77.22 | C74: 56.94 | D74: 29.95 | E74: 96.08 | F74: 243.67 | G74: 1.032086728 | H74: 251.4885731 | I74: 99.16289285
A75: 2072 | B75: 77.22 | C75: 56.94 | D75: 29.95 | E75: 96.05 | F75: 243.46 | G75: 1.032086728 | H75: 251.2718349 | I75: 99.13193025
A76: 2073 | B76: 77.22 | C76: 56.94 | D76: 29.95 | E76: 96.01 | F76: 243.24 | G76: 1.032086728 | H76: 251.0447758 | I76: 99.09064678
A77: 2074 | B77: 77.22 | C77: 56.94 | D77: 29.95 | E77: 95.97 | F77: 243.02 | G77: 1.032086728 | H77: 250.8177167 | I77: 99.04936331
A78: 2075 | B78: 77.22 | C78: 56.94 | D78: 29.95 | E78: 95.93 | F78: 242.8 | G78: 1.032086728 | H78: 250.5906576 | I78: 99.00807984
A79: 2076 | B79: 77.22 | C79: 56.94 | D79: 29.95 | E79: 95.89 | F79: 242.58 | G79: 1.032086728 | H79: 250.3635985 | I79: 98.96679637
A80: 2077 | B80: 77.22 | C80: 56.94 | D80: 29.95 | E80: 95.85 | F80: 242.37 | G80: 1.032086728 | H80: 250.1468603 | I80: 98.9255129
A81: 2078 | B81: 77.22 | C81: 56.94 | D81: 29.95 | E81: 95.81 | F81: 242.15 | G81: 1.032086728 | H81: 249.9198012 | I81: 98.88422943
A82: 2079 | B82: 77.22 | C82: 56.94 | D82: 29.95 | E82: 95.77 | F82: 241.93 | G82: 1.032086728 | H82: 249.6927422 | I82: 98.84294596
A83: 2080 | B83: 77.22 | C83: 56.94 | D83: 29.95 | E83: 95.73 | F83: 241.71 | G83: 1.032086728 | H83: 249.4656831 | I83: 98.80166249
A84: 2081 | B84: 77.22 | C84: 56.94 | D84: 29.95 | E84: 95.69 | F84: 241.5 | G84: 1.032086728 | H84: 249.2489449 | I84: 98.76037902
A85: 2082 | B85: 77.22 | C85: 56.94 | D85: 29.95 | E85: 95.65 | F85: 241.28 | G85: 1.032086728 | H85: 249.0218858 | I85: 98.71909556
A86: 2083 | B86: 77.22 | C86: 56.94 | D86: 29.95 | E86: 95.61 | F86: 241.06 | G86: 1.032086728 | H86: 248.7948267 | I86: 98.67781209
A87: 2084 | B87: 77.21 | C87: 56.94 | D87: 29.95 | E87: 95.58 | F87: 240.87 | G87: 1.032068133 | H87: 248.5942511 | I87: 98.64507212
A88: 2085 | B88: 77.21 | C88: 56.94 | D88: 29.95 | E88: 95.55 | F88: 240.68 | G88: 1.032068133 | H88: 248.3981582 | I88: 98.61411008 | S88: Max | T88: RPM | X88: MIN | Y88: @ RPM | Z88: MAX | AA88: @ RPM
A89: 2086 | B89: 77.21 | C89: 56.94 | D89: 29.95 | E89: 95.52 | F89: 240.49 | G89: 1.032068133 | H89: 248.2020652 | I89: 98.58314803 | R89: HP | S89: =MAX(I10:I650) -> 137.9692144 | T89: =INDIRECT(ADDRESS(MATCH(S89,I3:I650,0)+1,1)) -> 2646 | W89: IAT | X89: =MIN([2]BTFile_004!M2:M150) -> 79.7 | Y89: =INDIRECT(CONCATENATE("BTFile_004!",ADDRESS(MATCH(X89,[2]BTFile_004!M2:M650,0)+1,2))) ->  | Z89: =MAX([2]BTFile_004!M2:M150) -> 82.58 | AA89: =INDIRECT(CONCATENATE("BTFile_004!",ADDRESS(MATCH(Z89,[2]BTFile_004!M2:M650,0)+1,2))) -> 
A90: 2087 | B90: 77.21 | C90: 56.94 | D90: 29.95 | E90: 95.49 | F90: 240.31 | G90: 1.032068133 | H90: 248.016293 | I90: 98.55218599 | R90: Torque | S90: =MAX(H10:H650) -> 273.7608909 | T90: =INDIRECT(ADDRESS(MATCH(S90,H3:H650,0)+1,1)) -> 2646 | W90: Oil Temp | X90: =MIN([2]BTFile_004!O2:O150) -> 205.52 | Y90: =INDIRECT(CONCATENATE("BTFile_004!",ADDRESS(MATCH(X90,[2]BTFile_004!O2:O650,0)+1,2))) ->  | Z90: =MAX([2]BTFile_004!O2:O150) -> 210.2 | AA90: =INDIRECT(CONCATENATE("BTFile_004!",ADDRESS(MATCH(Z90,[2]BTFile_004!O2:O650,0)+1,2))) -> 
A91: 2088 | B91: 77.21 | C91: 56.94 | D91: 29.95 | E91: 95.46 | F91: 240.12 | G91: 1.032068133 | H91: 247.8202 | I91: 98.52122395 | W91: H2O Temp | X91: =MIN([2]BTFile_004!N2:N150) -> 190.76 | Y91: =INDIRECT(CONCATENATE("BTFile_004!",ADDRESS(MATCH(X91,[2]BTFile_004!N2:N650,0)+1,2))) ->  | Z91: =MAX([2]BTFile_004!N2:N150) -> 192.02 | AA91: =INDIRECT(CONCATENATE("BTFile_004!",ADDRESS(MATCH(Z91,[2]BTFile_004!N2:N650,0)+1,2))) -> 
A92: 2089 | B92: 77.21 | C92: 56.94 | D92: 29.95 | E92: 95.43 | F92: 239.93 | G92: 1.032068133 | H92: 247.6241071 | I92: 98.4902619 | W92: AFR-1 | X92: =MIN([2]BTFile_004!K2:K150) -> 12.054 | Y92: =INDIRECT(CONCATENATE("BTFile_004!",ADDRESS(MATCH(X92,[2]BTFile_004!K2:K650,0)+1,2))) ->  | Z92: =MAX([2]BTFile_004!K2:K150) -> 14.553 | AA92: =INDIRECT(CONCATENATE("BTFile_004!",ADDRESS(MATCH(Z92,[2]BTFile_004!K2:K650,0)+1,2))) -> 
A93: 2090 | B93: 77.21 | C93: 56.94 | D93: 29.95 | E93: 95.4 | F93: 239.74 | G93: 1.032068133 | H93: 247.4280141 | I93: 98.45929986 | W93: AFR-2 | X93: =MIN([2]BTFile_004!L2:L150) -> 11.907 | Y93: =INDIRECT(CONCATENATE("BTFile_004!",ADDRESS(MATCH(X93,[2]BTFile_004!L2:L650,0)+1,2))) ->  | Z93: =MAX([2]BTFile_004!L2:L150) -> 14.259 | AA93: =INDIRECT(CONCATENATE("BTFile_004!",ADDRESS(MATCH(Z93,[2]BTFile_004!L2:L650,0)+1,2))) -> 
A94: 2091 | B94: 77.21 | C94: 56.94 | D94: 29.95 | E94: 95.37 | F94: 239.55 | G94: 1.032068133 | H94: 247.2319212 | I94: 98.42833781 | W94: Spark Adv | X94: =MIN([2]BTFile_004!J2:J150) -> 12.1 | Y94: =INDIRECT(CONCATENATE("BTFile_004!",ADDRESS(MATCH(X94,[2]BTFile_004!J2:J650,0)+1,2))) ->  | Z94: =MAX([2]BTFile_004!J2:J150) -> 30.4 | AA94: =INDIRECT(CONCATENATE("BTFile_004!",ADDRESS(MATCH(Z94,[2]BTFile_004!J2:J650,0)+1,2))) -> 
A95: 2092 | B95: 77.21 | C95: 56.94 | D95: 29.95 | E95: 95.34 | F95: 239.36 | G95: 1.032068133 | H95: 247.0358282 | I95: 98.39737577
A96: 2093 | B96: 77.21 | C96: 56.94 | D96: 29.95 | E96: 95.31 | F96: 239.17 | G96: 1.032068133 | H96: 246.8397353 | I96: 98.36641373
A97: 2094 | B97: 77.21 | C97: 56.94 | D97: 29.95 | E97: 95.28 | F97: 238.98 | G97: 1.032068133 | H97: 246.6436423 | I97: 98.33545168
A98: 2095 | B98: 77.21 | C98: 56.94 | D98: 29.95 | E98: 95.25 | F98: 238.79 | G98: 1.032068133 | H98: 246.4475494 | I98: 98.30448964
A99: 2096 | B99: 77.21 | C99: 56.94 | D99: 29.95 | E99: 95.22 | F99: 238.6 | G99: 1.032068133 | H99: 246.2514565 | I99: 98.27352759
A100: 2097 | B100: 77.21 | C100: 56.94 | D100: 29.95 | E100: 95.19 | F100: 238.41 | G100: 1.032068133 | H100: 246.0553635 | I100: 98.24256555
A101: 2098 | B101: 77.21 | C101: 56.94 | D101: 29.95 | E101: 95.16 | F101: 238.22 | G101: 1.032068133 | H101: 245.8592706 | I101: 98.21160351
A102: 2099 | B102: 77.21 | C102: 56.94 | D102: 29.95 | E102: 95.13 | F102: 238.04 | G102: 1.032068133 | H102: 245.6734983 | I102: 98.18064146
A103: 2100 | B103: 77.21 | C103: 56.94 | D103: 29.95 | E103: 95.11 | F103: 237.92 | G103: 1.032068133 | H103: 245.5496501 | I103: 98.1600001
A104: 2101 | B104: 77.21 | C104: 56.94 | D104: 29.95 | E104: 95.09 | F104: 237.71 | G104: 1.032068133 | H104: 245.3329158 | I104: 98.13935874
A105: 2102 | B105: 77.21 | C105: 56.94 | D105: 29.95 | E105: 95.08 | F105: 237.56 | G105: 1.032068133 | H105: 245.1781056 | I105: 98.12903805
A106: 2103 | B106: 77.21 | C106: 56.94 | D106: 29.95 | E106: 95.06 | F106: 237.41 | G106: 1.032068133 | H106: 245.0232954 | I106: 98.10839669
A107: 2104 | B107: 77.21 | C107: 56.94 | D107: 29.95 | E107: 95.04 | F107: 237.25 | G107: 1.032068133 | H107: 244.8581645 | I107: 98.08775533
A108: 2105 | B108: 77.21 | C108: 56.94 | D108: 29.95 | E108: 95.03 | F108: 237.1 | G108: 1.032068133 | H108: 244.7033543 | I108: 98.07743465
A109: 2106 | B109: 77.21 | C109: 56.94 | D109: 29.95 | E109: 95.01 | F109: 236.95 | G109: 1.032068133 | H109: 244.548544 | I109: 98.05679329
A110: 2107 | B110: 77.21 | C110: 56.94 | D110: 29.95 | E110: 95 | F110: 236.8 | G110: 1.032068133 | H110: 244.3937338 | I110: 98.0464726
A111: 2108 | B111: 77.21 | C111: 56.94 | D111: 29.95 | E111: 94.98 | F111: 236.65 | G111: 1.032068133 | H111: 244.2389236 | I111: 98.02583124
A112: 2109 | B112: 77.21 | C112: 56.94 | D112: 29.95 | E112: 94.97 | F112: 236.5 | G112: 1.032068133 | H112: 244.0841134 | I112: 98.01551056
A113: 2110 | B113: 77.21 | C113: 56.94 | D113: 29.95 | E113: 94.95 | F113: 236.35 | G113: 1.032068133 | H113: 243.9293032 | I113: 97.9948692
A114: 2111 | B114: 77.21 | C114: 56.94 | D114: 29.95 | E114: 94.93 | F114: 236.19 | G114: 1.032068133 | H114: 243.7641723 | I114: 97.97422783
A115: 2112 | B115: 77.2 | C115: 56.94 | D115: 29.95 | E115: 94.92 | F115: 236.04 | G115: 1.032049539 | H115: 243.6049733 | I115: 97.96214228
A116: 2113 | B116: 77.2 | C116: 56.94 | D116: 29.95 | E116: 94.9 | F116: 235.89 | G116: 1.032049539 | H116: 243.4501658 | I116: 97.94150128
A117: 2114 | B117: 77.2 | C117: 56.94 | D117: 29.95 | E117: 94.89 | F117: 235.74 | G117: 1.032049539 | H117: 243.2953584 | I117: 97.93118079
A118: 2115 | B118: 77.2 | C118: 56.94 | D118: 29.95 | E118: 94.87 | F118: 235.59 | G118: 1.032049539 | H118: 243.140551 | I118: 97.9105398
A119: 2116 | B119: 77.2 | C119: 56.94 | D119: 29.95 | E119: 94.85 | F119: 235.4 | G119: 1.032049539 | H119: 242.9444616 | I119: 97.88989881
A120: 2117 | B120: 77.2 | C120: 56.94 | D120: 29.95 | E120: 94.85 | F120: 235.32 | G120: 1.032049539 | H120: 242.8618976 | I120: 97.88989881
A121: 2118 | B121: 77.2 | C121: 56.94 | D121: 29.95 | E121: 94.85 | F121: 235.21 | G121: 1.032049539 | H121: 242.7483722 | I121: 97.88989881
A122: 2119 | B122: 77.2 | C122: 56.94 | D122: 29.95 | E122: 94.86 | F122: 235.11 | G122: 1.032049539 | H122: 242.6451672 | I122: 97.9002193
A123: 2120 | B123: 77.2 | C123: 56.94 | D123: 29.95 | E123: 94.86 | F123: 235 | G123: 1.032049539 | H123: 242.5316417 | I123: 97.9002193
A124: 2121 | B124: 77.2 | C124: 56.94 | D124: 29.95 | E124: 94.86 | F124: 234.89 | G124: 1.032049539 | H124: 242.4181163 | I124: 97.9002193
A125: 2122 | B125: 77.2 | C125: 56.94 | D125: 29.95 | E125: 94.86 | F125: 234.79 | G125: 1.032049539 | H125: 242.3149113 | I125: 97.9002193
A126: 2123 | B126: 77.2 | C126: 56.94 | D126: 29.95 | E126: 94.86 | F126: 234.68 | G126: 1.032049539 | H126: 242.2013859 | I126: 97.9002193
A127: 2124 | B127: 77.2 | C127: 56.94 | D127: 29.95 | E127: 94.86 | F127: 234.57 | G127: 1.032049539 | H127: 242.0878604 | I127: 97.9002193
A128: 2125 | B128: 77.2 | C128: 56.94 | D128: 29.95 | E128: 94.87 | F128: 234.47 | G128: 1.032049539 | H128: 241.9846555 | I128: 97.9105398
A129: 2126 | B129: 77.2 | C129: 56.94 | D129: 29.95 | E129: 94.87 | F129: 234.36 | G129: 1.032049539 | H129: 241.87113 | I129: 97.9105398
A130: 2127 | B130: 77.2 | C130: 56.94 | D130: 29.95 | E130: 94.87 | F130: 234.26 | G130: 1.032049539 | H130: 241.7679251 | I130: 97.9105398
A131: 2128 | B131: 77.2 | C131: 56.94 | D131: 29.95 | E131: 94.87 | F131: 234.15 | G131: 1.032049539 | H131: 241.6543996 | I131: 97.9105398
A132: 2129 | B132: 77.2 | C132: 56.94 | D132: 29.95 | E132: 94.87 | F132: 234.04 | G132: =SAECF(B132, D132, C132,0,0,MATCH(G$1,AH$1:AH$9,0)) -> 1.032049539 | H132: =G132*F132 -> 241.5408742 | I132: =G132*E132 -> 97.9105398
A133: 2130 | B133: 77.2 | C133: 56.94 | D133: 29.95 | E133: 94.87 | F133: 233.94 | G133: 1.032049539 | H133: 241.4376692 | I133: 97.9105398
A134: 2131 | B134: 77.2 | C134: 56.94 | D134: 29.95 | E134: 94.87 | F134: 233.83 | G134: 1.032049539 | H134: 241.3241438 | I134: 97.9105398
A135: 2132 | B135: 77.2 | C135: 56.94 | D135: 29.95 | E135: 94.88 | F135: 233.72 | G135: 1.032049539 | H135: 241.2106183 | I135: 97.92086029
A136: 2133 | B136: 77.2 | C136: 56.94 | D136: 29.95 | E136: 94.88 | F136: 233.63 | G136: 1.032049539 | H136: 241.1177339 | I136: 97.92086029
A137: 2134 | B137: 77.2 | C137: 56.94 | D137: 29.95 | E137: 94.9 | F137: 233.56 | G137: 1.032049539 | H137: 241.0454904 | I137: 97.94150128
A138: 2135 | B138: 77.2 | C138: 56.94 | D138: 29.95 | E138: 94.92 | F138: 233.49 | G138: 1.032049539 | H138: 240.9732469 | I138: 97.96214228
A139: 2136 | B139: 77.2 | C139: 56.94 | D139: 29.95 | E139: 94.93 | F139: 233.43 | G139: 1.032049539 | H139: 240.911324 | I139: 97.97246277
A140: 2137 | B140: 77.2 | C140: 56.94 | D140: 29.95 | E140: 94.95 | F140: 233.36 | G140: 1.032049539 | H140: 240.8390805 | I140: 97.99310376
A141: 2138 | B141: 77.2 | C141: 56.94 | D141: 29.95 | E141: 94.97 | F141: 233.3 | G141: 1.032049539 | H141: 240.7771575 | I141: 98.01374475
A142: 2139 | B142: 77.2 | C142: 56.94 | D142: 29.95 | E142: 94.99 | F142: 233.24 | G142: 1.032049539 | H142: 240.7152346 | I142: 98.03438574
A143: 2140 | B143: 77.2 | C143: 56.94 | D143: 29.95 | E143: 95.01 | F143: 233.17 | G143: 1.032049539 | H143: 240.6429911 | I143: 98.05502673
A144: 2141 | B144: 77.2 | C144: 56.94 | D144: 29.95 | E144: 95.02 | F144: 233.11 | G144: 1.032049539 | H144: 240.5810681 | I144: 98.06534723
A145: 2142 | B145: 77.2 | C145: 56.94 | D145: 29.95 | E145: 95.04 | F145: 233.04 | G145: 1.032049539 | H145: 240.5088247 | I145: 98.08598822
A146: 2143 | B146: 77.2 | C146: 56.94 | D146: 29.95 | E146: 95.06 | F146: 232.98 | G146: 1.032049539 | H146: 240.4469017 | I146: 98.10662921
A147: 2144 | B147: 77.2 | C147: 56.94 | D147: 29.95 | E147: 95.08 | F147: 232.91 | G147: 1.032049539 | H147: 240.3746582 | I147: 98.1272702
A148: 2145 | B148: 77.2 | C148: 56.94 | D148: 29.95 | E148: 95.1 | F148: 232.85 | G148: 1.032049539 | H148: 240.3127352 | I148: 98.14791119
A149: 2146 | B149: 77.2 | C149: 56.94 | D149: 29.95 | E149: 95.12 | F149: 232.78 | G149: 1.032049539 | H149: 240.2404918 | I149: 98.16855218
A150: 2147 | B150: 77.2 | C150: 56.94 | D150: 29.95 | E150: 95.13 | F150: 232.72 | G150: 1.032049539 | H150: 240.1785688 | I150: 98.17887268
A151: 2148 | B151: 77.2 | C151: 56.94 | D151: 29.95 | E151: 95.15 | F151: 232.66 | G151: 1.032049539 | H151: 240.1166458 | I151: 98.19951367
A152: 2149 | B152: 77.19 | C152: 56.94 | D152: 29.95 | E152: 95.17 | F152: 232.59 | G152: 1.032030948 | H152: 240.0400783 | I152: 98.21838535
A153: 2150 | B153: 77.19 | C153: 56.94 | D153: 29.95 | E153: 95.18 | F153: 232.56 | G153: 1.032030948 | H153: 240.0091173 | I153: 98.22870565
A154: 2151 | B154: 77.19 | C154: 56.94 | D154: 29.95 | E154: 95.23 | F154: 232.52 | G154: 1.032030948 | H154: 239.9678361 | I154: 98.2803072
A155: 2152 | B155: 77.19 | C155: 56.94 | D155: 29.95 | E155: 95.26 | F155: 232.5 | G155: 1.032030948 | H155: 239.9471955 | I155: 98.31126813
A156: 2153 | B156: 77.19 | C156: 56.94 | D156: 29.95 | E156: 95.3 | F156: 232.47 | G156: 1.032030948 | H156: 239.9162345 | I156: 98.35254937
A157: 2154 | B157: 77.19 | C157: 56.94 | D157: 29.95 | E157: 95.33 | F157: 232.45 | G157: 1.032030948 | H157: 239.8955939 | I157: 98.3835103
A158: 2155 | B158: 77.19 | C158: 56.94 | D158: 29.95 | E158: 95.37 | F158: 232.43 | G158: 1.032030948 | H158: 239.8749533 | I158: 98.42479153
A159: 2156 | B159: 77.19 | C159: 56.94 | D159: 29.95 | E159: 95.4 | F159: 232.4 | G159: 1.032030948 | H159: 239.8439924 | I159: 98.45575246
A160: 2157 | B160: 77.19 | C160: 56.94 | D160: 29.95 | E160: 95.44 | F160: 232.38 | G160: 1.032030948 | H160: 239.8233518 | I160: 98.4970337
A161: 2158 | B161: 77.19 | C161: 56.94 | D161: 29.95 | E161: 95.47 | F161: 232.35 | G161: 1.032030948 | H161: 239.7923908 | I161: 98.52799463
A162: 2159 | B162: 77.19 | C162: 56.94 | D162: 29.95 | E162: 95.5 | F162: 232.33 | G162: 1.032030948 | H162: 239.7717502 | I162: 98.55895556
A163: 2160 | B163: 77.19 | C163: 56.94 | D163: 29.95 | E163: 95.54 | F163: 232.31 | G163: 1.032030948 | H163: 239.7511096 | I163: 98.6002368
A164: 2161 | B164: 77.19 | C164: 56.94 | D164: 29.95 | E164: 95.57 | F164: 232.28 | G164: 1.032030948 | H164: 239.7201487 | I164: 98.63119772
A165: 2162 | B165: 77.19 | C165: 56.94 | D165: 29.95 | E165: 95.61 | F165: 232.26 | G165: 1.032030948 | H165: 239.699508 | I165: 98.67247896
A166: 2163 | B166: 77.19 | C166: 56.94 | D166: 29.95 | E166: 95.64 | F166: 232.23 | G166: 1.032030948 | H166: 239.6685471 | I166: 98.70343989
A167: 2164 | B167: 77.19 | C167: 56.94 | D167: 29.95 | E167: 95.68 | F167: 232.21 | G167: 1.032030948 | H167: 239.6479065 | I167: 98.74472113
A168: 2165 | B168: 77.19 | C168: 56.94 | D168: 29.95 | E168: 95.71 | F168: 232.19 | G168: 1.032030948 | H168: 239.6272659 | I168: 98.77568206
A169: 2166 | B169: 77.19 | C169: 56.94 | D169: 29.95 | E169: 95.75 | F169: 232.16 | G169: 1.032030948 | H169: 239.5963049 | I169: 98.8169633
A170: 2167 | B170: 77.19 | C170: 56.94 | D170: 29.95 | E170: 95.79 | F170: 232.16 | G170: 1.032030948 | H170: 239.5963049 | I170: 98.85824453
A171: 2168 | B171: 77.19 | C171: 56.94 | D171: 29.95 | E171: 95.84 | F171: 232.17 | G171: 1.032030948 | H171: 239.6066253 | I171: 98.90984608
A172: 2169 | B172: 77.18 | C172: 56.94 | D172: 29.95 | E172: 95.88 | F172: 232.18 | G172: 1.032012359 | H172: 239.6126296 | I172: 98.94934502
A173: 2170 | B173: 77.18 | C173: 56.94 | D173: 29.95 | E173: 95.93 | F173: 232.18 | G173: 1.032012359 | H173: 239.6126296 | I173: 99.00094564
A174: 2171 | B174: 77.18 | C174: 56.94 | D174: 29.95 | E174: 95.98 | F174: 232.19 | G174: 1.032012359 | H174: 239.6229497 | I174: 99.05254625
A175: 2172 | B175: 77.18 | C175: 56.94 | D175: 29.95 | E175: 96.02 | F175: 232.2 | G175: 1.032012359 | H175: 239.6332698 | I175: 99.09382675
A176: 2173 | B176: 77.18 | C176: 56.94 | D176: 29.95 | E176: 96.07 | F176: 232.2 | G176: 1.032012359 | H176: 239.6332698 | I176: 99.14542737
A177: 2174 | B177: 77.18 | C177: 56.94 | D177: 29.95 | E177: 96.12 | F177: 232.21 | G177: 1.032012359 | H177: 239.64359 | I177: 99.19702798
A178: 2175 | B178: 77.18 | C178: 56.94 | D178: 29.95 | E178: 96.16 | F178: 232.21 | G178: 1.032012359 | H178: 239.64359 | I178: 99.23830848
A179: 2176 | B179: 77.18 | C179: 56.94 | D179: 29.95 | E179: 96.21 | F179: 232.22 | G179: 1.032012359 | H179: 239.6539101 | I179: 99.2899091
A180: 2177 | B180: 77.18 | C180: 56.94 | D180: 29.95 | E180: 96.26 | F180: 232.23 | G180: 1.032012359 | H180: 239.6642302 | I180: 99.34150971
A181: 2178 | B181: 77.18 | C181: 56.94 | D181: 29.95 | E181: 96.31 | F181: 232.23 | G181: 1.032012359 | H181: 239.6642302 | I181: 99.39311033
A182: 2179 | B182: 77.18 | C182: 56.94 | D182: 29.95 | E182: 96.35 | F182: 232.24 | G182: 1.032012359 | H182: 239.6745503 | I182: 99.43439083
A183: 2180 | B183: 77.18 | C183: 56.94 | D183: 29.95 | E183: 96.4 | F183: 232.25 | G183: 1.032012359 | H183: 239.6848705 | I183: 99.48599144
A184: 2181 | B184: 77.18 | C184: 56.94 | D184: 29.95 | E184: 96.45 | F184: 232.25 | G184: 1.032012359 | H184: 239.6848705 | I184: 99.53759206
A185: 2182 | B185: 77.18 | C185: 56.94 | D185: 29.95 | E185: 96.49 | F185: 232.26 | G185: 1.032012359 | H185: 239.6951906 | I185: 99.57887256
A186: 2183 | B186: 77.18 | C186: 56.94 | D186: 29.95 | E186: 96.53 | F186: 232.26 | G186: 1.032012359 | H186: 239.6951906 | I186: 99.62015305
A187: 2184 | B187: 77.18 | C187: 56.94 | D187: 29.95 | E187: 96.6 | F187: 232.31 | G187: 1.032012359 | H187: 239.7467912 | I187: 99.69239392
A188: 2185 | B188: 77.18 | C188: 56.94 | D188: 29.95 | E188: 96.66 | F188: 232.35 | G188: 1.032012359 | H188: 239.7880717 | I188: 99.75431466
A189: 2186 | B189: 77.18 | C189: 56.94 | D189: 29.95 | E189: 96.72 | F189: 232.38 | G189: 1.032012359 | H189: 239.8190321 | I189: 99.8162354
A190: 2187 | B190: 77.18 | C190: 56.94 | D190: 29.95 | E190: 96.78 | F190: 232.42 | G190: 1.032012359 | H190: 239.8603126 | I190: 99.87815614
A191: 2188 | B191: 77.18 | C191: 56.94 | D191: 29.95 | E191: 96.84 | F191: 232.46 | G191: 1.032012359 | H191: 239.9015931 | I191: 99.94007688
A192: 2189 | B192: 77.18 | C192: 56.94 | D192: 29.95 | E192: 96.9 | F192: 232.49 | G192: 1.032012359 | H192: 239.9325534 | I192: 100.0019976
A193: 2190 | B193: 77.18 | C193: 56.94 | D193: 29.95 | E193: 96.96 | F193: 232.53 | G193: 1.032012359 | H193: 239.9738339 | I193: 100.0639184
A194: 2191 | B194: 77.18 | C194: 56.94 | D194: 29.95 | E194: 97.02 | F194: 232.57 | G194: 1.032012359 | H194: 240.0151144 | I194: 100.1258391
A195: 2192 | B195: 77.18 | C195: 56.94 | D195: 29.95 | E195: 97.08 | F195: 232.61 | G195: 1.032012359 | H195: 240.0563949 | I195: 100.1877598
A196: 2193 | B196: 77.18 | C196: 56.94 | D196: 29.95 | E196: 97.14 | F196: 232.64 | G196: =SAECF(B196, D196, C196,0,0,MATCH(G$1,AH$1:AH$9,0)) -> 1.032012359 | H196: =G196*F196 -> 240.0873553 | I196: =G196*E196 -> 100.2496806
A197: 2194 | B197: 77.18 | C197: 56.94 | D197: 29.95 | E197: 97.2 | F197: 232.68 | G197: 1.032012359 | H197: 240.1286358 | I197: 100.3116013
A198: 2195 | B198: 77.18 | C198: 56.94 | D198: 29.95 | E198: 97.26 | F198: 232.72 | G198: 1.032012359 | H198: 240.1699163 | I198: 100.3735221
A199: 2196 | B199: 77.18 | C199: 56.94 | D199: 29.95 | E199: 97.32 | F199: 232.75 | G199: 1.032012359 | H199: 240.2008766 | I199: 100.4354428
A200: 2197 | B200: 77.18 | C200: 56.94 | D200: 29.95 | E200: 97.38 | F200: 232.79 | G200: 1.032012359 | H200: 240.2421571 | I200: 100.4973636
... 6403 more rows

Sheet vs. ESS VT2-575
A1: Dynojet Research Inc.
A2: Run Name: C:\Users\rcollins\AppData\Local\Temp\Temp1_ID00438-1319056459-DAFT.zip\RunFile_006.drf
A3: Run Title:
A4: Run Notes:
A5: Run Date: 10/19/2011 8:30:00 PM
A6: RunFile_006.drf: 69.74 ｰF 29.32 in-Hg Humidity: 17 % SAE: 0.99 Average Gear Ratio: 69.62
B7: s | C7: RPM x1000 | D7: hp | E7: ft-lbs
A8: =1000*C8 -> 2130 | B8: 0.63 | C8: 2.13 | D8: 36.07 | E8: 89.39
A9: =1000*C9 -> 2140 | B9: 0.65 | C9: 2.14 | D9: 39.46 | E9: 96.9
A10: 2150 | B10: 0.67 | C10: 2.15 | D10: 45.52 | E10: 111.09
A11: 2160 | B11: 0.8 | C11: 2.16 | D11: 73.58 | E11: 178.91
A12: 2170 | B12: 0.86 | C12: 2.17 | D12: 79.68 | E12: 192.82
A13: 2180 | B13: 0.88 | C13: 2.18 | D13: 81.34 | E13: 195.94
A14: 2190 | B14: 0.9 | C14: 2.19 | D14: 82.26 | E14: 197.27
A15: 2200 | B15: 0.91 | C15: 2.2 | D15: 82.66 | E15: 197.34
A16: 2210 | B16: 0.93 | C16: 2.21 | D16: 82.89 | E16: 197.01
A17: 2220 | B17: 0.94 | C17: 2.22 | D17: 82.99 | E17: 196.36
A18: 2230 | B18: 0.95 | C18: 2.23 | D18: 82.97 | E18: 195.42
A19: 2240 | B19: 0.97 | C19: 2.24 | D19: 82.97 | E19: 194.55
A20: 2250 | B20: 0.98 | C20: 2.25 | D20: 83.06 | E20: 193.88
A21: 2260 | B21: 1 | C21: 2.26 | D21: 83.39 | E21: 193.78
A22: 2270 | B22: 1.02 | C22: 2.27 | D22: 84.14 | E22: 194.68
A23: 2280 | B23: 1.05 | C23: 2.28 | D23: 85.36 | E23: 196.62
A24: 2290 | B24: 1.07 | C24: 2.29 | D24: 86.85 | E24: 199.16
A25: 2300 | B25: 1.09 | C25: 2.3 | D25: 88.4 | E25: 201.84
A26: 2310 | B26: 1.1 | C26: 2.31 | D26: 89.9 | E26: 204.37
A27: 2320 | B27: 1.12 | C27: 2.32 | D27: 91.3 | E27: 206.68
A28: 2330 | B28: 1.14 | C28: 2.33 | D28: 92.6 | E28: 208.71
A29: 2340 | B29: 1.16 | C29: 2.34 | D29: 93.78 | E29: 210.47
A30: 2350 | B30: 1.17 | C30: 2.35 | D30: 94.88 | E30: 212.04
A31: 2360 | B31: 1.19 | C31: 2.36 | D31: 95.93 | E31: 213.47
A32: 2370 | B32: 1.2 | C32: 2.37 | D32: 96.93 | E32: 214.79
A33: 2380 | B33: 1.22 | C33: 2.38 | D33: 97.9 | E33: 216.04
A34: 2390 | B34: 1.23 | C34: 2.39 | D34: 98.86 | E34: 217.24
A35: 2400 | B35: 1.25 | C35: 2.4 | D35: 99.83 | E35: 218.46
A36: 2410 | B36: 1.26 | C36: 2.41 | D36: 100.82 | E36: 219.7
A37: 2420 | B37: 1.28 | C37: 2.42 | D37: 101.85 | E37: 221.04
A38: 2430 | B38: 1.29 | C38: 2.43 | D38: 102.96 | E38: 222.51
A39: 2440 | B39: 1.31 | C39: 2.44 | D39: 104.13 | E39: 224.12
A40: 2450 | B40: 1.33 | C40: 2.45 | D40: 105.36 | E40: 225.84
A41: 2460 | B41: 1.34 | C41: 2.46 | D41: 106.61 | E41: 227.6
A42: 2470 | B42: 1.36 | C42: 2.47 | D42: 107.83 | E42: 229.28
A43: 2480 | B43: 1.38 | C43: 2.48 | D43: 108.98 | E43: 230.79
A44: 2490 | B44: 1.39 | C44: 2.49 | D44: 110.04 | E44: 232.09
A45: 2500 | B45: 1.41 | C45: 2.5 | D45: 111.02 | E45: 233.23
A46: 2510 | B46: 1.43 | C46: 2.51 | D46: 111.95 | E46: 234.24
A47: 2520 | B47: 1.44 | C47: 2.52 | D47: 112.83 | E47: 235.15
A48: 2530 | B48: 1.46 | C48: 2.53 | D48: 113.67 | E48: 235.97
A49: 2540 | B49: 1.47 | C49: 2.54 | D49: 114.5 | E49: 236.74
A50: 2550 | B50: 1.49 | C50: 2.55 | D50: 115.3 | E50: 237.47
A51: 2560 | B51: 1.5 | C51: 2.56 | D51: 116.09 | E51: 238.16
A52: 2570 | B52: 1.52 | C52: 2.57 | D52: 116.86 | E52: 238.81
A53: 2580 | B53: 1.53 | C53: 2.58 | D53: 117.62 | E53: 239.44
A54: 2590 | B54: 1.54 | C54: 2.59 | D54: 118.38 | E54: 240.05
A55: 2600 | B55: 1.56 | C55: 2.6 | D55: 119.14 | E55: 240.67
A56: 2610 | B56: 1.57 | C56: 2.61 | D56: 119.93 | E56: 241.33
A57: 2620 | B57: 1.59 | C57: 2.62 | D57: 120.74 | E57: 242.04
A58: 2630 | B58: 1.6 | C58: 2.63 | D58: 121.59 | E58: 242.8
A59: 2640 | B59: 1.62 | C59: 2.64 | D59: 122.47 | E59: 243.63
A60: 2650 | B60: 1.64 | C60: 2.65 | D60: 123.37 | E60: 244.5
A61: 2660 | B61: 1.65 | C61: 2.66 | D61: 124.28 | E61: 245.37
A62: 2670 | B62: 1.67 | C62: 2.67 | D62: 125.17 | E62: 246.21
A63: 2680 | B63: 1.68 | C63: 2.68 | D63: 126.04 | E63: 247.01
A64: 2690 | B64: 1.69 | C64: 2.69 | D64: 126.89 | E64: 247.74
A65: 2700 | B65: 1.71 | C65: 2.7 | D65: 127.72 | E65: 248.43
A66: 2710 | B66: 1.72 | C66: 2.71 | D66: 128.54 | E66: 249.1
A67: 2720 | B67: 1.74 | C67: 2.72 | D67: 129.34 | E67: 249.73
A68: 2730 | B68: 1.75 | C68: 2.73 | D68: 130.13 | E68: 250.35
A69: 2740 | B69: 1.76 | C69: 2.74 | D69: 130.92 | E69: 250.95
A70: 2750 | B70: 1.78 | C70: 2.75 | D70: 131.71 | E70: 251.54
A71: 2760 | B71: 1.79 | C71: 2.76 | D71: 132.5 | E71: 252.14
A72: 2770 | B72: 1.8 | C72: 2.77 | D72: 133.3 | E72: 252.75
A73: =1000*C73 -> 2780 | B73: 1.82 | C73: 2.78 | D73: 134.11 | E73: 253.36
A74: 2790 | B74: 1.83 | C74: 2.79 | D74: 134.94 | E74: 254.02
A75: 2800 | B75: 1.85 | C75: 2.8 | D75: 135.79 | E75: 254.7
A76: 2810 | B76: 1.86 | C76: 2.81 | D76: 136.65 | E76: 255.41
A77: 2820 | B77: 1.88 | C77: 2.82 | D77: 137.53 | E77: 256.14
A78: 2830 | B78: 1.89 | C78: 2.83 | D78: 138.41 | E78: 256.87
A79: 2840 | B79: 1.91 | C79: 2.84 | D79: 139.28 | E79: 257.57
A80: 2850 | B80: 1.92 | C80: 2.85 | D80: 140.13 | E80: 258.23
A81: 2860 | B81: 1.94 | C81: 2.86 | D81: 140.94 | E81: 258.81
A82: 2870 | B82: 1.95 | C82: 2.87 | D82: 141.7 | E82: 259.31
A83: 2880 | B83: 1.96 | C83: 2.88 | D83: 142.44 | E83: 259.76
A84: 2890 | B84: 1.98 | C84: 2.89 | D84: 143.15 | E84: 260.15
A85: 2900 | B85: 1.99 | C85: 2.9 | D85: 143.84 | E85: 260.5
A86: 2910 | B86: 2 | C86: 2.91 | D86: 144.52 | E86: 260.83
A87: 2920 | B87: 2.02 | C87: 2.92 | D87: 145.2 | E87: 261.17
A88: 2930 | B88: 2.03 | C88: 2.93 | D88: 145.9 | E88: 261.53
A89: 2940 | B89: 2.04 | C89: 2.94 | D89: 146.62 | E89: 261.92
A90: 2950 | B90: 2.06 | C90: 2.95 | D90: 147.36 | E90: 262.34
A91: 2960 | B91: 2.07 | C91: 2.96 | D91: 148.12 | E91: 262.81
A92: 2970 | B92: 2.08 | C92: 2.97 | D92: 148.91 | E92: 263.32
A93: 2980 | B93: 2.09 | C93: 2.98 | D93: 149.73 | E93: 263.89
A94: 2990 | B94: 2.11 | C94: 2.99 | D94: 150.59 | E94: 264.51
A95: 3000 | B95: 2.12 | C95: 3 | D95: 151.47 | E95: 265.17
A96: 3010 | B96: 2.13 | C96: 3.01 | D96: 152.4 | E96: 265.92
A97: 3020 | B97: 2.15 | C97: 3.02 | D97: 153.37 | E97: 266.71
A98: 3030 | B98: 2.16 | C98: 3.03 | D98: 154.36 | E98: 267.54
A99: 3040 | B99: 2.17 | C99: 3.04 | D99: 155.38 | E99: 268.43
A100: 3050 | B100: 2.19 | C100: 3.05 | D100: 156.41 | E100: 269.32
A101: 3060 | B101: 2.2 | C101: 3.06 | D101: 157.44 | E101: 270.21
A102: 3070 | B102: 2.21 | C102: 3.07 | D102: 158.45 | E102: 271.07
A103: 3080 | B103: 2.23 | C103: 3.08 | D103: 159.45 | E103: 271.89
A104: 3090 | B104: 2.24 | C104: 3.09 | D104: 160.43 | E104: 272.68
A105: 3100 | B105: 2.25 | C105: 3.1 | D105: 161.37 | E105: 273.39
A106: 3110 | B106: 2.27 | C106: 3.11 | D106: 162.28 | E106: 274.05
A107: 3120 | B107: 2.28 | C107: 3.12 | D107: 163.17 | E107: 274.67
A108: 3130 | B108: 2.29 | C108: 3.13 | D108: 164.01 | E108: 275.2
A109: 3140 | B109: 2.31 | C109: 3.14 | D109: 164.82 | E109: 275.69
A110: 3150 | B110: 2.32 | C110: 3.15 | D110: 165.61 | E110: 276.12
A111: 3160 | B111: 2.33 | C111: 3.16 | D111: 166.35 | E111: 276.48
A112: 3170 | B112: 2.35 | C112: 3.17 | D112: 167.06 | E112: 276.78
A113: 3180 | B113: 2.36 | C113: 3.18 | D113: 167.74 | E113: 277.05
A114: 3190 | B114: 2.37 | C114: 3.19 | D114: 168.4 | E114: 277.26
A115: 3200 | B115: 2.39 | C115: 3.2 | D115: 169.05 | E115: 277.45
A116: 3210 | B116: 2.4 | C116: 3.21 | D116: 169.69 | E116: 277.64
A117: 3220 | B117: 2.41 | C117: 3.22 | D117: 170.33 | E117: 277.82
A118: 3230 | B118: 2.42 | C118: 3.23 | D118: 170.97 | E118: 278.01
A119: 3240 | B119: 2.44 | C119: 3.24 | D119: 171.62 | E119: 278.2
A120: 3250 | B120: 2.45 | C120: 3.25 | D120: 172.27 | E120: 278.39
A121: 3260 | B121: 2.46 | C121: 3.26 | D121: 172.92 | E121: 278.58
A122: 3270 | B122: 2.48 | C122: 3.27 | D122: 173.56 | E122: 278.77
A123: 3280 | B123: 2.49 | C123: 3.28 | D123: 174.2 | E123: 278.94
A124: 3290 | B124: 2.5 | C124: 3.29 | D124: 174.84 | E124: 279.11
A125: 3300 | B125: 2.52 | C125: 3.3 | D125: 175.48 | E125: 279.28
A126: 3310 | B126: 2.53 | C126: 3.31 | D126: 176.12 | E126: 279.46
A127: 3320 | B127: 2.54 | C127: 3.32 | D127: 176.77 | E127: 279.64
A128: 3330 | B128: 2.56 | C128: 3.33 | D128: 177.42 | E128: 279.83
A129: 3340 | B129: 2.57 | C129: 3.34 | D129: 178.07 | E129: 280.02
A130: 3350 | B130: 2.58 | C130: 3.35 | D130: 178.72 | E130: 280.2
A131: 3360 | B131: 2.6 | C131: 3.36 | D131: 179.36 | E131: 280.37
A132: 3370 | B132: 2.61 | C132: 3.37 | D132: 179.99 | E132: 280.51
A133: 3380 | B133: 2.62 | C133: 3.38 | D133: 180.6 | E133: 280.63
A134: 3390 | B134: 2.64 | C134: 3.39 | D134: 181.2 | E134: 280.74
A135: 3400 | B135: 2.65 | C135: 3.4 | D135: 181.79 | E135: 280.82
A136: 3410 | B136: 2.66 | C136: 3.41 | D136: 182.38 | E136: 280.9
A137: =1000*C137 -> 3420 | B137: 2.68 | C137: 3.42 | D137: 182.96 | E137: 280.97
A138: 3430 | B138: 2.69 | C138: 3.43 | D138: 183.54 | E138: 281.04
A139: 3440 | B139: 2.7 | C139: 3.44 | D139: 184.12 | E139: 281.11
A140: 3450 | B140: 2.71 | C140: 3.45 | D140: 184.72 | E140: 281.2
A141: 3460 | B141: 2.73 | C141: 3.46 | D141: 185.32 | E141: 281.31
A142: 3470 | B142: 2.74 | C142: 3.47 | D142: 185.94 | E142: 281.43
A143: 3480 | B143: 2.75 | C143: 3.48 | D143: 186.58 | E143: 281.59
A144: 3490 | B144: 2.76 | C144: 3.49 | D144: 187.24 | E144: 281.77
A145: 3500 | B145: 2.78 | C145: 3.5 | D145: 187.92 | E145: 281.99
A146: 3510 | B146: 2.79 | C146: 3.51 | D146: 188.62 | E146: 282.24
A147: 3520 | B147: 2.8 | C147: 3.52 | D147: 189.34 | E147: 282.51
A148: 3530 | B148: 2.82 | C148: 3.53 | D148: 190.07 | E148: 282.79
A149: 3540 | B149: 2.83 | C149: 3.54 | D149: 190.79 | E149: 283.07
A150: 3550 | B150: 2.84 | C150: 3.55 | D150: 191.51 | E150: 283.34
A151: 3560 | B151: 2.85 | C151: 3.56 | D151: 192.22 | E151: 283.58
A152: 3570 | B152: 2.87 | C152: 3.57 | D152: 192.91 | E152: 283.81
A153: 3580 | B153: 2.88 | C153: 3.58 | D153: 193.6 | E153: 284.02
A154: 3590 | B154: 2.89 | C154: 3.59 | D154: 194.27 | E154: 284.22
A155: 3600 | B155: 2.91 | C155: 3.6 | D155: 194.94 | E155: 284.4
A156: 3610 | B156: 2.92 | C156: 3.61 | D156: 195.6 | E156: 284.58
A157: 3620 | B157: 2.93 | C157: 3.62 | D157: 196.26 | E157: 284.74
A158: 3630 | B158: 2.94 | C158: 3.63 | D158: 196.9 | E158: 284.89
A159: 3640 | B159: 2.96 | C159: 3.64 | D159: 197.54 | E159: 285.03
A160: 3650 | B160: 2.97 | C160: 3.65 | D160: 198.18 | E160: 285.17
A161: 3660 | B161: 2.98 | C161: 3.66 | D161: 198.82 | E161: 285.3
A162: 3670 | B162: 2.99 | C162: 3.67 | D162: 199.46 | E162: 285.44
A163: 3680 | B163: 3.01 | C163: 3.68 | D163: 200.12 | E163: 285.6
A164: 3690 | B164: 3.02 | C164: 3.69 | D164: 200.79 | E164: 285.78
A165: 3700 | B165: 3.03 | C165: 3.7 | D165: 201.49 | E165: 286.01
A166: 3710 | B166: 3.04 | C166: 3.71 | D166: 202.21 | E166: 286.26
A167: 3720 | B167: 3.06 | C167: 3.72 | D167: 202.97 | E167: 286.56
A168: 3730 | B168: 3.07 | C168: 3.73 | D168: 203.74 | E168: 286.88
A169: 3740 | B169: 3.08 | C169: 3.74 | D169: 204.54 | E169: 287.23
A170: 3750 | B170: 3.09 | C170: 3.75 | D170: 205.34 | E170: 287.59
A171: 3760 | B171: 3.11 | C171: 3.76 | D171: 206.14 | E171: 287.95
A172: 3770 | B172: 3.12 | C172: 3.77 | D172: 206.95 | E172: 288.3
A173: 3780 | B173: 3.13 | C173: 3.78 | D173: 207.74 | E173: 288.63
A174: 3790 | B174: 3.14 | C174: 3.79 | D174: 208.52 | E174: 288.95
A175: 3800 | B175: 3.16 | C175: 3.8 | D175: 209.28 | E175: 289.25
A176: 3810 | B176: 3.17 | C176: 3.81 | D176: 210.04 | E176: 289.53
A177: 3820 | B177: 3.18 | C177: 3.82 | D177: 210.79 | E177: 289.81
A178: 3830 | B178: 3.19 | C178: 3.83 | D178: 211.53 | E178: 290.07
A179: 3840 | B179: 3.2 | C179: 3.84 | D179: 212.28 | E179: 290.33
A180: 3850 | B180: 3.22 | C180: 3.85 | D180: 213.02 | E180: 290.6
A181: 3860 | B181: 3.23 | C181: 3.86 | D181: 213.78 | E181: 290.88
A182: 3870 | B182: 3.24 | C182: 3.87 | D182: 214.54 | E182: 291.16
A183: 3880 | B183: 3.25 | C183: 3.88 | D183: 215.32 | E183: 291.46
A184: 3890 | B184: 3.27 | C184: 3.89 | D184: 216.11 | E184: 291.77
A185: 3900 | B185: 3.28 | C185: 3.9 | D185: 216.89 | E185: 292.09
A186: 3910 | B186: 3.29 | C186: 3.91 | D186: 217.68 | E186: 292.4
A187: 3920 | B187: 3.3 | C187: 3.92 | D187: 218.47 | E187: 292.71
A188: 3930 | B188: 3.32 | C188: 3.93 | D188: 219.25 | E188: 293
A189: 3940 | B189: 3.33 | C189: 3.94 | D189: 220.01 | E189: 293.28
A190: 3950 | B190: 3.34 | C190: 3.95 | D190: 220.78 | E190: 293.55
A191: 3960 | B191: 3.35 | C191: 3.96 | D191: 221.53 | E191: 293.81
A192: 3970 | B192: 3.36 | C192: 3.97 | D192: 222.28 | E192: 294.06
A193: 3980 | B193: 3.38 | C193: 3.98 | D193: 223.03 | E193: 294.31
A194: 3990 | B194: 3.39 | C194: 3.99 | D194: 223.77 | E194: 294.55
A195: 4000 | B195: 3.4 | C195: 4 | D195: 224.52 | E195: 294.8
A196: 4010 | B196: 3.41 | C196: 4.01 | D196: 225.26 | E196: 295.03
A197: 4020 | B197: 3.43 | C197: 4.02 | D197: 225.99 | E197: 295.26
A198: 4030 | B198: 3.44 | C198: 4.03 | D198: 226.73 | E198: 295.48
A199: 4040 | B199: 3.45 | C199: 4.04 | D199: 227.45 | E199: 295.69
A200: 4050 | B200: 3.46 | C200: 4.05 | D200: 228.18 | E200: 295.9
... 435 more rows

Sheet vs. ESS VT2-625
A1: Dynojet Research Inc.
A2: Run Name: C:\Users\rcollins\AppData\Local\Temp\Temp1_ID00577-1365200467-E92_M3.zip\RunFile_009.drf
A3: Run Title:
A4: Run Notes:
A5: Run Date: 4/4/2013 7:42:56 PM
A6: RunFile_009.drf: 50.15 ｰF 29.28 in-Hg Humidity: 34 % SAE: 0.97 Average Gear Ratio: 61.37
B7: s | C7: RPM x1000 | D7: hp | E7: ft-lbs
A8: =1000*C8 -> 3040 | B8: 0.21 | C8: 3.04 | D8: 38.64 | E8: 66.93
A9: =1000*C9 -> 3050 | B9: 0.27 | C9: 3.05 | D9: 43.01 | E9: 74.04
A10: 3060 | B10: 0.32 | C10: 3.06 | D10: 46.17 | E10: 79.24
A11: 3070 | B11: 0.37 | C11: 3.07 | D11: 49.11 | E11: 84.01
A12: 3080 | B12: 0.41 | C12: 3.08 | D12: 52.43 | E12: 89.4
A13: 3090 | B13: 0.45 | C13: 3.09 | D13: 55.22 | E13: 93.86
A14: 3100 | B14: 0.49 | C14: 3.1 | D14: 57.02 | E14: 96.59
A15: 3110 | B15: 0.53 | C15: 3.11 | D15: 58.46 | E15: 98.73
A16: 3120 | B16: 0.57 | C16: 3.12 | D16: 60.2 | E16: 101.34
A17: 3130 | B17: 0.61 | C17: 3.13 | D17: 62.11 | E17: 104.22
A18: 3140 | B18: 0.65 | C18: 3.14 | D18: 63.94 | E18: 106.95
A19: 3150 | B19: 0.69 | C19: 3.15 | D19: 65.79 | E19: 109.69
A20: 3160 | B20: 0.72 | C20: 3.16 | D20: 67.77 | E20: 112.63
A21: 3170 | B21: 0.75 | C21: 3.17 | D21: 70.06 | E21: 116.06
A22: 3180 | B22: 0.79 | C22: 3.18 | D22: 72.86 | E22: 120.32
A23: 3190 | B23: 0.82 | C23: 3.19 | D23: 76.18 | E23: 125.42
A24: 3200 | B24: 0.85 | C24: 3.2 | D24: 79.7 | E24: 130.8
A25: 3210 | B25: 0.88 | C25: 3.21 | D25: 83.3 | E25: 136.28
A26: 3220 | B26: 0.91 | C26: 3.22 | D26: 87.11 | E26: 142.07
A27: 3230 | B27: 0.93 | C27: 3.23 | D27: 91.04 | E27: 148
A28: 3240 | B28: 0.95 | C28: 3.24 | D28: 94.95 | E28: 153.88
A29: 3250 | B29: 0.96 | C29: 3.25 | D29: 98.85 | E29: 159.7
A30: 3260 | B30: 0.98 | C30: 3.26 | D30: 102.76 | E30: 165.5
A31: 3270 | B31: 0.99 | C31: 3.27 | D31: 106.84 | E31: 171.53
A32: 3280 | B32: 1.01 | C32: 3.28 | D32: 111.17 | E32: 177.94
A33: 3290 | B33: 1.03 | C33: 3.29 | D33: 115.83 | E33: 184.85
A34: 3300 | B34: 1.04 | C34: 3.3 | D34: 120.93 | E34: 192.42
A35: 3310 | B35: 1.06 | C35: 3.31 | D35: 126.47 | E35: 200.63
A36: 3320 | B36: 1.08 | C36: 3.32 | D36: 131.98 | E36: 208.75
A37: 3330 | B37: 1.1 | C37: 3.33 | D37: 136.93 | E37: 215.93
A38: 3340 | B38: 1.11 | C38: 3.34 | D38: 141.28 | E38: 222.12
A39: 3350 | B39: 1.13 | C39: 3.35 | D39: 145.3 | E39: 227.75
A40: 3360 | B40: 1.14 | C40: 3.36 | D40: 149.15 | E40: 233.1
A41: 3370 | B41: 1.16 | C41: 3.37 | D41: 153.02 | E41: 238.43
A42: 3380 | B42: 1.17 | C42: 3.38 | D42: 157.08 | E42: 244.01
A43: 3390 | B43: 1.18 | C43: 3.39 | D43: 161.27 | E43: 249.77
A44: 3400 | B44: 1.19 | C44: 3.4 | D44: 165.78 | E44: 256
A45: 3410 | B45: 1.21 | C45: 3.41 | D45: 170.41 | E45: 262.39
A46: 3420 | B46: 1.22 | C46: 3.42 | D46: 175.17 | E46: 268.94
A47: 3430 | B47: 1.23 | C47: 3.43 | D47: 179.93 | E47: 275.44
A48: 3440 | B48: 1.25 | C48: 3.44 | D48: 184.53 | E48: 281.67
A49: 3450 | B49: 1.26 | C49: 3.45 | D49: 188.88 | E49: 287.5
A50: 3460 | B50: 1.28 | C50: 3.46 | D50: 192.77 | E50: 292.59
A51: 3470 | B51: 1.29 | C51: 3.47 | D51: 196.08 | E51: 296.75
A52: 3480 | B52: 1.31 | C52: 3.48 | D52: 198.99 | E52: 300.29
A53: 3490 | B53: 1.32 | C53: 3.49 | D53: 201.57 | E53: 303.32
A54: 3500 | B54: 1.33 | C54: 3.5 | D54: 203.73 | E54: 305.69
A55: 3510 | B55: 1.35 | C55: 3.51 | D55: 205.73 | E55: 307.82
A56: 3520 | B56: 1.36 | C56: 3.52 | D56: 207.57 | E56: 309.69
A57: 3530 | B57: 1.37 | C57: 3.53 | D57: 209.21 | E57: 311.26
A58: 3540 | B58: 1.38 | C58: 3.54 | D58: 210.8 | E58: 312.73
A59: 3550 | B59: 1.39 | C59: 3.55 | D59: 212.24 | E59: 313.99
A60: 3560 | B60: 1.41 | C60: 3.56 | D60: 213.62 | E60: 315.15
A61: 3570 | B61: 1.42 | C61: 3.57 | D61: 214.95 | E61: 316.21
A62: 3580 | B62: 1.43 | C62: 3.58 | D62: 216.19 | E62: 317.16
A63: 3590 | B63: 1.44 | C63: 3.59 | D63: 217.41 | E63: 318.05
A64: 3600 | B64: 1.46 | C64: 3.6 | D64: 218.56 | E64: 318.85
A65: 3610 | B65: 1.47 | C65: 3.61 | D65: 219.68 | E65: 319.59
A66: 3620 | B66: 1.48 | C66: 3.62 | D66: 220.77 | E66: 320.29
A67: 3630 | B67: 1.49 | C67: 3.63 | D67: 221.8 | E67: 320.9
A68: 3640 | B68: 1.5 | C68: 3.64 | D68: 222.81 | E68: 321.49
A69: 3650 | B69: 1.52 | C69: 3.65 | D69: 223.79 | E69: 322.01
A70: 3660 | B70: 1.53 | C70: 3.66 | D70: 224.74 | E70: 322.49
A71: 3670 | B71: 1.54 | C71: 3.67 | D71: 225.67 | E71: 322.95
A72: 3680 | B72: 1.55 | C72: 3.68 | D72: 226.56 | E72: 323.34
A73: =1000*C73 -> 3690 | B73: 1.56 | C73: 3.69 | D73: 227.43 | E73: 323.71
A74: 3700 | B74: 1.58 | C74: 3.7 | D74: 228.27 | E74: 324.03
A75: 3710 | B75: 1.59 | C75: 3.71 | D75: 229.08 | E75: 324.3
A76: 3720 | B76: 1.6 | C76: 3.72 | D76: 229.88 | E76: 324.56
A77: 3730 | B77: 1.61 | C77: 3.73 | D77: 230.64 | E77: 324.76
A78: 3740 | B78: 1.62 | C78: 3.74 | D78: 231.4 | E78: 324.96
A79: 3750 | B79: 1.63 | C79: 3.75 | D79: 232.15 | E79: 325.13
A80: 3760 | B80: 1.65 | C80: 3.76 | D80: 232.89 | E80: 325.31
A81: 3770 | B81: 1.66 | C81: 3.77 | D81: 233.64 | E81: 325.5
A82: 3780 | B82: 1.67 | C82: 3.78 | D82: 234.41 | E82: 325.69
A83: 3790 | B83: 1.68 | C83: 3.79 | D83: 235.17 | E83: 325.89
A84: 3800 | B84: 1.69 | C84: 3.8 | D84: 235.94 | E84: 326.1
A85: 3810 | B85: 1.71 | C85: 3.81 | D85: 236.7 | E85: 326.29
A86: 3820 | B86: 1.72 | C86: 3.82 | D86: 237.45 | E86: 326.47
A87: 3830 | B87: 1.73 | C87: 3.83 | D87: 238.18 | E87: 326.62
A88: 3840 | B88: 1.74 | C88: 3.84 | D88: 238.9 | E88: 326.75
A89: 3850 | B89: 1.75 | C89: 3.85 | D89: 239.6 | E89: 326.85
A90: 3860 | B90: 1.76 | C90: 3.86 | D90: 240.29 | E90: 326.95
A91: 3870 | B91: 1.78 | C91: 3.87 | D91: 241 | E91: 327.06
A92: 3880 | B92: 1.79 | C92: 3.88 | D92: 241.74 | E92: 327.22
A93: 3890 | B93: 1.8 | C93: 3.89 | D93: 242.5 | E93: 327.41
A94: 3900 | B94: 1.81 | C94: 3.9 | D94: 243.34 | E94: 327.7
A95: 3910 | B95: 1.82 | C95: 3.91 | D95: 244.2 | E95: 328.02
A96: 3920 | B96: 1.84 | C96: 3.92 | D96: 245.11 | E96: 328.4
A97: 3930 | B97: 1.85 | C97: 3.93 | D97: 246.03 | E97: 328.79
A98: 3940 | B98: 1.86 | C98: 3.94 | D98: 246.96 | E98: 329.2
A99: 3950 | B99: 1.87 | C99: 3.95 | D99: 247.84 | E99: 329.54
A100: 3960 | B100: 1.88 | C100: 3.96 | D100: 248.7 | E100: 329.85
A101: 3970 | B101: 1.89 | C101: 3.97 | D101: 249.48 | E101: 330.05
A102: 3980 | B102: 1.91 | C102: 3.98 | D102: 250.21 | E102: 330.19
A103: 3990 | B103: 1.92 | C103: 3.99 | D103: 250.9 | E103: 330.27
A104: 4000 | B104: 1.93 | C104: 4 | D104: 251.56 | E104: 330.3
A105: 4010 | B105: 1.94 | C105: 4.01 | D105: 252.21 | E105: 330.33
A106: 4020 | B106: 1.95 | C106: 4.02 | D106: 252.88 | E106: 330.38
A107: 4030 | B107: 1.97 | C107: 4.03 | D107: 253.57 | E107: 330.46
A108: 4040 | B108: 1.98 | C108: 4.04 | D108: 254.3 | E108: 330.59
A109: 4050 | B109: 1.99 | C109: 4.05 | D109: 255.07 | E109: 330.78
A110: 4060 | B110: 2 | C110: 4.06 | D110: 255.86 | E110: 330.99
A111: 4070 | B111: 2.01 | C111: 4.07 | D111: 256.71 | E111: 331.27
A112: 4080 | B112: 2.02 | C112: 4.08 | D112: 257.56 | E112: 331.55
A113: 4090 | B113: 2.04 | C113: 4.09 | D113: 258.44 | E113: 331.86
A114: 4100 | B114: 2.05 | C114: 4.1 | D114: 259.32 | E114: 332.18
A115: 4110 | B115: 2.06 | C115: 4.11 | D115: 260.2 | E115: 332.5
A116: 4120 | B116: 2.07 | C116: 4.12 | D116: 261.07 | E116: 332.8
A117: 4130 | B117: 2.08 | C117: 4.13 | D117: 261.93 | E117: 333.09
A118: 4140 | B118: 2.09 | C118: 4.14 | D118: 262.77 | E118: 333.35
A119: 4150 | B119: 2.11 | C119: 4.15 | D119: 263.58 | E119: 333.58
A120: 4160 | B120: 2.12 | C120: 4.16 | D120: 264.37 | E120: 333.78
A121: 4170 | B121: 2.13 | C121: 4.17 | D121: 265.14 | E121: 333.94
A122: 4180 | B122: 2.14 | C122: 4.18 | D122: 265.89 | E122: 334.09
A123: 4190 | B123: 2.15 | C123: 4.19 | D123: 266.65 | E123: 334.24
A124: 4200 | B124: 2.16 | C124: 4.2 | D124: 267.42 | E124: 334.4
A125: 4210 | B125: 2.18 | C125: 4.21 | D125: 268.21 | E125: 334.6
A126: 4220 | B126: 2.19 | C126: 4.22 | D126: 269.06 | E126: 334.86
A127: 4230 | B127: 2.2 | C127: 4.23 | D127: 269.93 | E127: 335.15
A128: 4240 | B128: 2.21 | C128: 4.24 | D128: 270.87 | E128: 335.52
A129: 4250 | B129: 2.22 | C129: 4.25 | D129: 271.82 | E129: 335.91
A130: 4260 | B130: 2.23 | C130: 4.26 | D130: 272.83 | E130: 336.36
A131: 4270 | B131: 2.24 | C131: 4.27 | D131: 273.83 | E131: 336.81
A132: 4280 | B132: 2.26 | C132: 4.28 | D132: 274.84 | E132: 337.26
A133: 4290 | B133: 2.27 | C133: 4.29 | D133: 275.83 | E133: 337.69
A134: 4300 | B134: 2.28 | C134: 4.3 | D134: 276.81 | E134: 338.1
A135: 4310 | B135: 2.29 | C135: 4.31 | D135: 277.74 | E135: 338.45
A136: 4320 | B136: 2.3 | C136: 4.32 | D136: 278.66 | E136: 338.78
A137: =1000*C137 -> 4330 | B137: 2.31 | C137: 4.33 | D137: 279.53 | E137: 339.06
A138: 4340 | B138: 2.32 | C138: 4.34 | D138: 280.39 | E138: 339.31
A139: 4350 | B139: 2.34 | C139: 4.35 | D139: 281.22 | E139: 339.54
A140: 4360 | B140: 2.35 | C140: 4.36 | D140: 282.04 | E140: 339.75
A141: 4370 | B141: 2.36 | C141: 4.37 | D141: 282.85 | E141: 339.94
A142: 4380 | B142: 2.37 | C142: 4.38 | D142: 283.64 | E142: 340.12
A143: 4390 | B143: 2.38 | C143: 4.39 | D143: 284.43 | E143: 340.29
A144: 4400 | B144: 2.39 | C144: 4.4 | D144: 285.23 | E144: 340.46
A145: 4410 | B145: 2.4 | C145: 4.41 | D145: 286.02 | E145: 340.64
A146: 4420 | B146: 2.41 | C146: 4.42 | D146: 286.83 | E146: 340.83
A147: 4430 | B147: 2.43 | C147: 4.43 | D147: 287.65 | E147: 341.03
A148: 4440 | B148: 2.44 | C148: 4.44 | D148: 288.5 | E148: 341.27
A149: 4450 | B149: 2.45 | C149: 4.45 | D149: 289.38 | E149: 341.53
A150: 4460 | B150: 2.46 | C150: 4.46 | D150: 290.27 | E150: 341.82
A151: 4470 | B151: 2.47 | C151: 4.47 | D151: 291.2 | E151: 342.15
A152: 4480 | B152: 2.48 | C152: 4.48 | D152: 292.14 | E152: 342.48
A153: 4490 | B153: 2.49 | C153: 4.49 | D153: 293.09 | E153: 342.84
A154: 4500 | B154: 2.5 | C154: 4.5 | D154: 294.05 | E154: 343.19
A155: 4510 | B155: 2.51 | C155: 4.51 | D155: 295.01 | E155: 343.54
A156: 4520 | B156: 2.53 | C156: 4.52 | D156: 295.95 | E156: 343.89
A157: 4530 | B157: 2.54 | C157: 4.53 | D157: 296.89 | E157: 344.21
A158: 4540 | B158: 2.55 | C158: 4.54 | D158: 297.81 | E158: 344.52
A159: 4550 | B159: 2.56 | C159: 4.55 | D159: 298.73 | E159: 344.83
A160: 4560 | B160: 2.57 | C160: 4.56 | D160: 299.63 | E160: 345.11
A161: 4570 | B161: 2.58 | C161: 4.57 | D161: 300.53 | E161: 345.39
A162: 4580 | B162: 2.59 | C162: 4.58 | D162: 301.43 | E162: 345.66
A163: 4590 | B163: 2.6 | C163: 4.59 | D163: 302.32 | E163: 345.93
A164: 4600 | B164: 2.61 | C164: 4.6 | D164: 303.21 | E164: 346.19
A165: 4610 | B165: 2.63 | C165: 4.61 | D165: 304.1 | E165: 346.46
A166: 4620 | B166: 2.64 | C166: 4.62 | D166: 304.99 | E166: 346.72
A167: 4630 | B167: 2.65 | C167: 4.63 | D167: 305.88 | E167: 346.98
A168: 4640 | B168: 2.66 | C168: 4.64 | D168: 306.77 | E168: 347.24
A169: 4650 | B169: 2.67 | C169: 4.65 | D169: 307.66 | E169: 347.49
A170: 4660 | B170: 2.68 | C170: 4.66 | D170: 308.54 | E170: 347.75
A171: 4670 | B171: 2.69 | C171: 4.67 | D171: 309.42 | E171: 347.98
A172: 4680 | B172: 2.7 | C172: 4.68 | D172: 310.29 | E172: 348.22
A173: 4690 | B173: 2.71 | C173: 4.69 | D173: 311.15 | E173: 348.43
A174: 4700 | B174: 2.73 | C174: 4.7 | D174: 311.99 | E174: 348.64
A175: 4710 | B175: 2.74 | C175: 4.71 | D175: 312.82 | E175: 348.83
A176: 4720 | B176: 2.75 | C176: 4.72 | D176: 313.64 | E176: 349
A177: 4730 | B177: 2.76 | C177: 4.73 | D177: 314.46 | E177: 349.17
A178: 4740 | B178: 2.77 | C178: 4.74 | D178: 315.28 | E178: 349.34
A179: 4750 | B179: 2.78 | C179: 4.75 | D179: 316.1 | E179: 349.51
A180: 4760 | B180: 2.79 | C180: 4.76 | D180: 316.95 | E180: 349.71
A181: 4770 | B181: 2.8 | C181: 4.77 | D181: 317.8 | E181: 349.92
A182: 4780 | B182: 2.81 | C182: 4.78 | D182: 318.71 | E182: 350.18
A183: 4790 | B183: 2.82 | C183: 4.79 | D183: 319.62 | E183: 350.45
A184: 4800 | B184: 2.83 | C184: 4.8 | D184: 320.57 | E184: 350.76
A185: 4810 | B185: 2.84 | C185: 4.81 | D185: 321.54 | E185: 351.09
A186: 4820 | B186: 2.85 | C186: 4.82 | D186: 322.52 | E186: 351.43
A187: 4830 | B187: 2.87 | C187: 4.83 | D187: 323.51 | E187: 351.78
A188: 4840 | B188: 2.88 | C188: 4.84 | D188: 324.5 | E188: 352.13
A189: 4850 | B189: 2.89 | C189: 4.85 | D189: 325.5 | E189: 352.48
A190: 4860 | B190: 2.9 | C190: 4.86 | D190: 326.49 | E190: 352.83
A191: 4870 | B191: 2.91 | C191: 4.87 | D191: 327.5 | E191: 353.19
A192: 4880 | B192: 2.92 | C192: 4.88 | D192: 328.51 | E192: 353.55
A193: 4890 | B193: 2.93 | C193: 4.89 | D193: 329.53 | E193: 353.93
A194: 4900 | B194: 2.94 | C194: 4.9 | D194: 330.57 | E194: 354.32
A195: 4910 | B195: 2.95 | C195: 4.91 | D195: 331.62 | E195: 354.72
A196: 4920 | B196: 2.96 | C196: 4.92 | D196: 332.68 | E196: 355.13
A197: 4930 | B197: 2.97 | C197: 4.93 | D197: 333.74 | E197: 355.54
A198: 4940 | B198: 2.98 | C198: 4.94 | D198: 334.8 | E198: 355.95
A199: 4950 | B199: 2.99 | C199: 4.95 | D199: 335.83 | E199: 356.33
A200: 4960 | B200: 3 | C200: 4.96 | D200: 336.86 | E200: 356.69
... 330 more rows

Sheet Sheet4
A1: Dynojet Research Inc.
A2: Run Name: C:\Users\rcollins\AppData\Local\Temp\Temp1_ID00577-1365200467-E92_M3.zip\RunFile_009.drf
A3: Run Title:
A4: Run Notes:
A5: Run Date: 4/4/2013 7:42:56 PM
A6: RunFile_009.drf: 50.15 ｰF 29.28 in-Hg Humidity: 34 % SAE: 0.97 Average Gear Ratio: 61.37
B7: s | C7: RPM x1000 | D7: hp | E7: ft-lbs
A8: =1000*C8 -> 3040 | B8: 0.21 | C8: 3.04 | D8: 38.64 | E8: 66.93
A9: =1000*C9 -> 3050 | B9: 0.27 | C9: 3.05 | D9: 43.01 | E9: 74.04
A10: 3060 | B10: 0.32 | C10: 3.06 | D10: 46.17 | E10: 79.24
A11: 3070 | B11: 0.37 | C11: 3.07 | D11: 49.11 | E11: 84.01
A12: 3080 | B12: 0.41 | C12: 3.08 | D12: 52.43 | E12: 89.4
A13: 3090 | B13: 0.45 | C13: 3.09 | D13: 55.22 | E13: 93.86
A14: 3100 | B14: 0.49 | C14: 3.1 | D14: 57.02 | E14: 96.59
A15: 3110 | B15: 0.53 | C15: 3.11 | D15: 58.46 | E15: 98.73
A16: 3120 | B16: 0.57 | C16: 3.12 | D16: 60.2 | E16: 101.34
A17: 3130 | B17: 0.61 | C17: 3.13 | D17: 62.11 | E17: 104.22
A18: 3140 | B18: 0.65 | C18: 3.14 | D18: 63.94 | E18: 106.95
A19: 3150 | B19: 0.69 | C19: 3.15 | D19: 65.79 | E19: 109.69
A20: 3160 | B20: 0.72 | C20: 3.16 | D20: 67.77 | E20: 112.63
A21: 3170 | B21: 0.75 | C21: 3.17 | D21: 70.06 | E21: 116.06
A22: 3180 | B22: 0.79 | C22: 3.18 | D22: 72.86 | E22: 120.32
A23: 3190 | B23: 0.82 | C23: 3.19 | D23: 76.18 | E23: 125.42
A24: 3200 | B24: 0.85 | C24: 3.2 | D24: 79.7 | E24: 130.8
A25: 3210 | B25: 0.88 | C25: 3.21 | D25: 83.3 | E25: 136.28
A26: 3220 | B26: 0.91 | C26: 3.22 | D26: 87.11 | E26: 142.07
A27: 3230 | B27: 0.93 | C27: 3.23 | D27: 91.04 | E27: 148
A28: 3240 | B28: 0.95 | C28: 3.24 | D28: 94.95 | E28: 153.88
A29: 3250 | B29: 0.96 | C29: 3.25 | D29: 98.85 | E29: 159.7
A30: 3260 | B30: 0.98 | C30: 3.26 | D30: 102.76 | E30: 165.5
A31: 3270 | B31: 0.99 | C31: 3.27 | D31: 106.84 | E31: 171.53
A32: 3280 | B32: 1.01 | C32: 3.28 | D32: 111.17 | E32: 177.94
A33: 3290 | B33: 1.03 | C33: 3.29 | D33: 115.83 | E33: 184.85
A34: 3300 | B34: 1.04 | C34: 3.3 | D34: 120.93 | E34: 192.42
A35: 3310 | B35: 1.06 | C35: 3.31 | D35: 126.47 | E35: 200.63
A36: 3320 | B36: 1.08 | C36: 3.32 | D36: 131.98 | E36: 208.75
A37: 3330 | B37: 1.1 | C37: 3.33 | D37: 136.93 | E37: 215.93
A38: 3340 | B38: 1.11 | C38: 3.34 | D38: 141.28 | E38: 222.12
A39: 3350 | B39: 1.13 | C39: 3.35 | D39: 145.3 | E39: 227.75
A40: 3360 | B40: 1.14 | C40: 3.36 | D40: 149.15 | E40: 233.1
A41: 3370 | B41: 1.16 | C41: 3.37 | D41: 153.02 | E41: 238.43
A42: 3380 | B42: 1.17 | C42: 3.38 | D42: 157.08 | E42: 244.01
A43: 3390 | B43: 1.18 | C43: 3.39 | D43: 161.27 | E43: 249.77
A44: 3400 | B44: 1.19 | C44: 3.4 | D44: 165.78 | E44: 256
A45: 3410 | B45: 1.21 | C45: 3.41 | D45: 170.41 | E45: 262.39
A46: 3420 | B46: 1.22 | C46: 3.42 | D46: 175.17 | E46: 268.94
A47: 3430 | B47: 1.23 | C47: 3.43 | D47: 179.93 | E47: 275.44
A48: 3440 | B48: 1.25 | C48: 3.44 | D48: 184.53 | E48: 281.67
A49: 3450 | B49: 1.26 | C49: 3.45 | D49: 188.88 | E49: 287.5
A50: 3460 | B50: 1.28 | C50: 3.46 | D50: 192.77 | E50: 292.59
A51: 3470 | B51: 1.29 | C51: 3.47 | D51: 196.08 | E51: 296.75
A52: 3480 | B52: 1.31 | C52: 3.48 | D52: 198.99 | E52: 300.29
A53: 3490 | B53: 1.32 | C53: 3.49 | D53: 201.57 | E53: 303.32
A54: 3500 | B54: 1.33 | C54: 3.5 | D54: 203.73 | E54: 305.69
A55: 3510 | B55: 1.35 | C55: 3.51 | D55: 205.73 | E55: 307.82
A56: 3520 | B56: 1.36 | C56: 3.52 | D56: 207.57 | E56: 309.69
A57: 3530 | B57: 1.37 | C57: 3.53 | D57: 209.21 | E57: 311.26
A58: 3540 | B58: 1.38 | C58: 3.54 | D58: 210.8 | E58: 312.73
A59: 3550 | B59: 1.39 | C59: 3.55 | D59: 212.24 | E59: 313.99
A60: 3560 | B60: 1.41 | C60: 3.56 | D60: 213.62 | E60: 315.15
A61: 3570 | B61: 1.42 | C61: 3.57 | D61: 214.95 | E61: 316.21
A62: 3580 | B62: 1.43 | C62: 3.58 | D62: 216.19 | E62: 317.16
A63: 3590 | B63: 1.44 | C63: 3.59 | D63: 217.41 | E63: 318.05
A64: 3600 | B64: 1.46 | C64: 3.6 | D64: 218.56 | E64: 318.85
A65: 3610 | B65: 1.47 | C65: 3.61 | D65: 219.68 | E65: 319.59
A66: 3620 | B66: 1.48 | C66: 3.62 | D66: 220.77 | E66: 320.29
A67: 3630 | B67: 1.49 | C67: 3.63 | D67: 221.8 | E67: 320.9
A68: 3640 | B68: 1.5 | C68: 3.64 | D68: 222.81 | E68: 321.49
A69: 3650 | B69: 1.52 | C69: 3.65 | D69: 223.79 | E69: 322.01
A70: 3660 | B70: 1.53 | C70: 3.66 | D70: 224.74 | E70: 322.49
A71: 3670 | B71: 1.54 | C71: 3.67 | D71: 225.67 | E71: 322.95
A72: 3680 | B72: 1.55 | C72: 3.68 | D72: 226.56 | E72: 323.34
A73: =1000*C73 -> 3690 | B73: 1.56 | C73: 3.69 | D73: 227.43 | E73: 323.71
A74: 3700 | B74: 1.58 | C74: 3.7 | D74: 228.27 | E74: 324.03
A75: 3710 | B75: 1.59 | C75: 3.71 | D75: 229.08 | E75: 324.3
A76: 3720 | B76: 1.6 | C76: 3.72 | D76: 229.88 | E76: 324.56
A77: 3730 | B77: 1.61 | C77: 3.73 | D77: 230.64 | E77: 324.76
A78: 3740 | B78: 1.62 | C78: 3.74 | D78: 231.4 | E78: 324.96
A79: 3750 | B79: 1.63 | C79: 3.75 | D79: 232.15 | E79: 325.13
A80: 3760 | B80: 1.65 | C80: 3.76 | D80: 232.89 | E80: 325.31
A81: 3770 | B81: 1.66 | C81: 3.77 | D81: 233.64 | E81: 325.5
A82: 3780 | B82: 1.67 | C82: 3.78 | D82: 234.41 | E82: 325.69
A83: 3790 | B83: 1.68 | C83: 3.79 | D83: 235.17 | E83: 325.89
A84: 3800 | B84: 1.69 | C84: 3.8 | D84: 235.94 | E84: 326.1
A85: 3810 | B85: 1.71 | C85: 3.81 | D85: 236.7 | E85: 326.29
A86: 3820 | B86: 1.72 | C86: 3.82 | D86: 237.45 | E86: 326.47
A87: 3830 | B87: 1.73 | C87: 3.83 | D87: 238.18 | E87: 326.62
A88: 3840 | B88: 1.74 | C88: 3.84 | D88: 238.9 | E88: 326.75
A89: 3850 | B89: 1.75 | C89: 3.85 | D89: 239.6 | E89: 326.85
A90: 3860 | B90: 1.76 | C90: 3.86 | D90: 240.29 | E90: 326.95
A91: 3870 | B91: 1.78 | C91: 3.87 | D91: 241 | E91: 327.06
A92: 3880 | B92: 1.79 | C92: 3.88 | D92: 241.74 | E92: 327.22
A93: 3890 | B93: 1.8 | C93: 3.89 | D93: 242.5 | E93: 327.41
A94: 3900 | B94: 1.81 | C94: 3.9 | D94: 243.34 | E94: 327.7
A95: 3910 | B95: 1.82 | C95: 3.91 | D95: 244.2 | E95: 328.02
A96: 3920 | B96: 1.84 | C96: 3.92 | D96: 245.11 | E96: 328.4
A97: 3930 | B97: 1.85 | C97: 3.93 | D97: 246.03 | E97: 328.79
A98: 3940 | B98: 1.86 | C98: 3.94 | D98: 246.96 | E98: 329.2
A99: 3950 | B99: 1.87 | C99: 3.95 | D99: 247.84 | E99: 329.54
A100: 3960 | B100: 1.88 | C100: 3.96 | D100: 248.7 | E100: 329.85
A101: 3970 | B101: 1.89 | C101: 3.97 | D101: 249.48 | E101: 330.05
A102: 3980 | B102: 1.91 | C102: 3.98 | D102: 250.21 | E102: 330.19
A103: 3990 | B103: 1.92 | C103: 3.99 | D103: 250.9 | E103: 330.27
A104: 4000 | B104: 1.93 | C104: 4 | D104: 251.56 | E104: 330.3
A105: 4010 | B105: 1.94 | C105: 4.01 | D105: 252.21 | E105: 330.33
A106: 4020 | B106: 1.95 | C106: 4.02 | D106: 252.88 | E106: 330.38
A107: 4030 | B107: 1.97 | C107: 4.03 | D107: 253.57 | E107: 330.46
A108: 4040 | B108: 1.98 | C108: 4.04 | D108: 254.3 | E108: 330.59
A109: 4050 | B109: 1.99 | C109: 4.05 | D109: 255.07 | E109: 330.78
A110: 4060 | B110: 2 | C110: 4.06 | D110: 255.86 | E110: 330.99
A111: 4070 | B111: 2.01 | C111: 4.07 | D111: 256.71 | E111: 331.27
A112: 4080 | B112: 2.02 | C112: 4.08 | D112: 257.56 | E112: 331.55
A113: 4090 | B113: 2.04 | C113: 4.09 | D113: 258.44 | E113: 331.86
A114: 4100 | B114: 2.05 | C114: 4.1 | D114: 259.32 | E114: 332.18
A115: 4110 | B115: 2.06 | C115: 4.11 | D115: 260.2 | E115: 332.5
A116: 4120 | B116: 2.07 | C116: 4.12 | D116: 261.07 | E116: 332.8
A117: 4130 | B117: 2.08 | C117: 4.13 | D117: 261.93 | E117: 333.09
A118: 4140 | B118: 2.09 | C118: 4.14 | D118: 262.77 | E118: 333.35
A119: 4150 | B119: 2.11 | C119: 4.15 | D119: 263.58 | E119: 333.58
A120: 4160 | B120: 2.12 | C120: 4.16 | D120: 264.37 | E120: 333.78
A121: 4170 | B121: 2.13 | C121: 4.17 | D121: 265.14 | E121: 333.94
A122: 4180 | B122: 2.14 | C122: 4.18 | D122: 265.89 | E122: 334.09
A123: 4190 | B123: 2.15 | C123: 4.19 | D123: 266.65 | E123: 334.24
A124: 4200 | B124: 2.16 | C124: 4.2 | D124: 267.42 | E124: 334.4
A125: 4210 | B125: 2.18 | C125: 4.21 | D125: 268.21 | E125: 334.6
A126: 4220 | B126: 2.19 | C126: 4.22 | D126: 269.06 | E126: 334.86
A127: 4230 | B127: 2.2 | C127: 4.23 | D127: 269.93 | E127: 335.15
A128: 4240 | B128: 2.21 | C128: 4.24 | D128: 270.87 | E128: 335.52
A129: 4250 | B129: 2.22 | C129: 4.25 | D129: 271.82 | E129: 335.91
A130: 4260 | B130: 2.23 | C130: 4.26 | D130: 272.83 | E130: 336.36
A131: 4270 | B131: 2.24 | C131: 4.27 | D131: 273.83 | E131: 336.81
A132: 4280 | B132: 2.26 | C132: 4.28 | D132: 274.84 | E132: 337.26
A133: 4290 | B133: 2.27 | C133: 4.29 | D133: 275.83 | E133: 337.69
A134: 4300 | B134: 2.28 | C134: 4.3 | D134: 276.81 | E134: 338.1
A135: 4310 | B135: 2.29 | C135: 4.31 | D135: 277.74 | E135: 338.45
A136: 4320 | B136: 2.3 | C136: 4.32 | D136: 278.66 | E136: 338.78
A137: =1000*C137 -> 4330 | B137: 2.31 | C137: 4.33 | D137: 279.53 | E137: 339.06
A138: 4340 | B138: 2.32 | C138: 4.34 | D138: 280.39 | E138: 339.31
A139: 4350 | B139: 2.34 | C139: 4.35 | D139: 281.22 | E139: 339.54
A140: 4360 | B140: 2.35 | C140: 4.36 | D140: 282.04 | E140: 339.75
A141: 4370 | B141: 2.36 | C141: 4.37 | D141: 282.85 | E141: 339.94
A142: 4380 | B142: 2.37 | C142: 4.38 | D142: 283.64 | E142: 340.12
A143: 4390 | B143: 2.38 | C143: 4.39 | D143: 284.43 | E143: 340.29
A144: 4400 | B144: 2.39 | C144: 4.4 | D144: 285.23 | E144: 340.46
A145: 4410 | B145: 2.4 | C145: 4.41 | D145: 286.02 | E145: 340.64
A146: 4420 | B146: 2.41 | C146: 4.42 | D146: 286.83 | E146: 340.83
A147: 4430 | B147: 2.43 | C147: 4.43 | D147: 287.65 | E147: 341.03
A148: 4440 | B148: 2.44 | C148: 4.44 | D148: 288.5 | E148: 341.27
A149: 4450 | B149: 2.45 | C149: 4.45 | D149: 289.38 | E149: 341.53
A150: 4460 | B150: 2.46 | C150: 4.46 | D150: 290.27 | E150: 341.82
A151: 4470 | B151: 2.47 | C151: 4.47 | D151: 291.2 | E151: 342.15
A152: 4480 | B152: 2.48 | C152: 4.48 | D152: 292.14 | E152: 342.48
A153: 4490 | B153: 2.49 | C153: 4.49 | D153: 293.09 | E153: 342.84
A154: 4500 | B154: 2.5 | C154: 4.5 | D154: 294.05 | E154: 343.19
A155: 4510 | B155: 2.51 | C155: 4.51 | D155: 295.01 | E155: 343.54
A156: 4520 | B156: 2.53 | C156: 4.52 | D156: 295.95 | E156: 343.89
A157: 4530 | B157: 2.54 | C157: 4.53 | D157: 296.89 | E157: 344.21
A158: 4540 | B158: 2.55 | C158: 4.54 | D158: 297.81 | E158: 344.52
A159: 4550 | B159: 2.56 | C159: 4.55 | D159: 298.73 | E159: 344.83
A160: 4560 | B160: 2.57 | C160: 4.56 | D160: 299.63 | E160: 345.11
A161: 4570 | B161: 2.58 | C161: 4.57 | D161: 300.53 | E161: 345.39
A162: 4580 | B162: 2.59 | C162: 4.58 | D162: 301.43 | E162: 345.66
A163: 4590 | B163: 2.6 | C163: 4.59 | D163: 302.32 | E163: 345.93
A164: 4600 | B164: 2.61 | C164: 4.6 | D164: 303.21 | E164: 346.19
A165: 4610 | B165: 2.63 | C165: 4.61 | D165: 304.1 | E165: 346.46
A166: 4620 | B166: 2.64 | C166: 4.62 | D166: 304.99 | E166: 346.72
A167: 4630 | B167: 2.65 | C167: 4.63 | D167: 305.88 | E167: 346.98
A168: 4640 | B168: 2.66 | C168: 4.64 | D168: 306.77 | E168: 347.24
A169: 4650 | B169: 2.67 | C169: 4.65 | D169: 307.66 | E169: 347.49
A170: 4660 | B170: 2.68 | C170: 4.66 | D170: 308.54 | E170: 347.75
A171: 4670 | B171: 2.69 | C171: 4.67 | D171: 309.42 | E171: 347.98
A172: 4680 | B172: 2.7 | C172: 4.68 | D172: 310.29 | E172: 348.22
A173: 4690 | B173: 2.71 | C173: 4.69 | D173: 311.15 | E173: 348.43
A174: 4700 | B174: 2.73 | C174: 4.7 | D174: 311.99 | E174: 348.64
A175: 4710 | B175: 2.74 | C175: 4.71 | D175: 312.82 | E175: 348.83
A176: 4720 | B176: 2.75 | C176: 4.72 | D176: 313.64 | E176: 349
A177: 4730 | B177: 2.76 | C177: 4.73 | D177: 314.46 | E177: 349.17
A178: 4740 | B178: 2.77 | C178: 4.74 | D178: 315.28 | E178: 349.34
A179: 4750 | B179: 2.78 | C179: 4.75 | D179: 316.1 | E179: 349.51
A180: 4760 | B180: 2.79 | C180: 4.76 | D180: 316.95 | E180: 349.71
A181: 4770 | B181: 2.8 | C181: 4.77 | D181: 317.8 | E181: 349.92
A182: 4780 | B182: 2.81 | C182: 4.78 | D182: 318.71 | E182: 350.18
A183: 4790 | B183: 2.82 | C183: 4.79 | D183: 319.62 | E183: 350.45
A184: 4800 | B184: 2.83 | C184: 4.8 | D184: 320.57 | E184: 350.76
A185: 4810 | B185: 2.84 | C185: 4.81 | D185: 321.54 | E185: 351.09
A186: 4820 | B186: 2.85 | C186: 4.82 | D186: 322.52 | E186: 351.43
A187: 4830 | B187: 2.87 | C187: 4.83 | D187: 323.51 | E187: 351.78
A188: 4840 | B188: 2.88 | C188: 4.84 | D188: 324.5 | E188: 352.13
A189: 4850 | B189: 2.89 | C189: 4.85 | D189: 325.5 | E189: 352.48
A190: 4860 | B190: 2.9 | C190: 4.86 | D190: 326.49 | E190: 352.83
A191: 4870 | B191: 2.91 | C191: 4.87 | D191: 327.5 | E191: 353.19
A192: 4880 | B192: 2.92 | C192: 4.88 | D192: 328.51 | E192: 353.55
A193: 4890 | B193: 2.93 | C193: 4.89 | D193: 329.53 | E193: 353.93
A194: 4900 | B194: 2.94 | C194: 4.9 | D194: 330.57 | E194: 354.32
A195: 4910 | B195: 2.95 | C195: 4.91 | D195: 331.62 | E195: 354.72
A196: 4920 | B196: 2.96 | C196: 4.92 | D196: 332.68 | E196: 355.13
A197: 4930 | B197: 2.97 | C197: 4.93 | D197: 333.74 | E197: 355.54
A198: 4940 | B198: 2.98 | C198: 4.94 | D198: 334.8 | E198: 355.95
A199: 4950 | B199: 2.99 | C199: 4.95 | D199: 335.83 | E199: 356.33
A200: 4960 | B200: 3 | C200: 4.96 | D200: 336.86 | E200: 356.69
... 330 more rows
